Organisation name,Organisation Code,Directorate,Service Category label,Service Category code,Supplier name,Payment date,Transaction number,Net Amount,Purpose of spend,Procurement category name
Southend-on-Sea City Council,http://www.opendatacommunities.org/id/unitary-authority/southend,Children & Public Health,Central Services,9009,(G) EDMUNDS DESIGN & CONSTRUCTION LTD,03/10/2023,12074327,"7,269.11",Main Contractor,Main Contractor
Southend-on-Sea City Council,http://www.opendatacommunities.org/id/unitary-authority/southend,Adults & Communities,Central Services,9010,(N) CIA FIRE AND SECURITY LTD,03/10/2023,12074327,"4,500.00",S106 Community/Leisure expend,S106 Community/Leisure expend
Southend-on-Sea City Council,http://www.opendatacommunities.org/id/unitary-authority/southend,Adults & Communities,Central Services,9010,(N) CIA FIRE AND SECURITY LTD,03/10/2023,12074327,"2,500.00",S106 Community/Leisure expend,S106 Community/Leisure expend
Southend-on-Sea City Council,http://www.opendatacommunities.org/id/unitary-authority/southend,ED Adults & Communities,Adult Social Care,1209,ACCORA LTD,03/10/2023,12074327,"1,242.00",Tools And Equipment Purchase,Equipment Furniture And Materials
Southend-on-Sea City Council,http://www.opendatacommunities.org/id/unitary-authority/southend,ED Children & Public Health,Children And Education Services,3265,REDACTED PERSONAL DATA,03/10/2023,12074327,"1,488.74",Foster Carer Allowance,Other Agencies
Southend-on-Sea City Council,http://www.opendatacommunities.org/id/unitary-authority/southend,ED Children & Public Health,Children And Education Services,3265,REDACTED PERSONAL DATA,03/10/2023,12074327,746.52,Foster Carer Allowance,Other Agencies
Southend-on-Sea City Council,http://www.opendatacommunities.org/id/unitary-authority/southend,ED Children & Public Health,Children And Education Services,3265,REDACTED PERSONAL DATA,03/10/2023,12074327,932.67,Foster Carer Allowance,Other Agencies
Southend-on-Sea City Council,http://www.opendatacommunities.org/id/unitary-authority/southend,ED Adults & Communities,Adult Social Care,1209,BARCLAY & MATHIESON LTD T/A IMS,03/10/2023,12074327,"2,997.50",Alterations And Adaptations,"Repairs, alterations and maintenance of buildings"
Southend-on-Sea City Council,http://www.opendatacommunities.org/id/unitary-authority/southend,ED Neighbourhoods & Environment,Highways And Transport Services,5195,BLOOM PROCUREMENT SERVICES LTD,03/10/2023,12074327,"19,535.00",Consultancy Services,Services
Southend-on-Sea City Council,http://www.opendatacommunities.org/id/unitary-authority/southend,ED Neighbourhoods & Environment,Highways And Transport Services,5180,BUCHANAN COMPUTING LTD,03/10/2023,12074327,"2,782.30",Consultancy Services,Services
Southend-on-Sea City Council,http://www.opendatacommunities.org/id/unitary-authority/southend,ED Neighbourhoods & Environment,Highways And Transport Services,5055,BUCHANAN COMPUTING LTD,03/10/2023,12074327,"19,606.80",Services,Services
Southend-on-Sea City Council,http://www.opendatacommunities.org/id/unitary-authority/southend,ED Growth & Housing,Adult Social Care,6012,REDACTED PERSONAL DATA,03/10/2023,12074327,500,Additional Allowances (non employee),Services
Southend-on-Sea City Council,http://www.opendatacommunities.org/id/unitary-authority/southend,ED Children & Public Health,Children And Education Services,3307,CANARY HOUSE CARE LIMITED,03/10/2023,12074327,"1,300.00",Accomodation Payment,Services
Southend-on-Sea City Council,http://www.opendatacommunities.org/id/unitary-authority/southend,ED Children & Public Health,Children And Education Services,3308,CANARY HOUSE CARE LIMITED,03/10/2023,12074327,"3,700.00",Accomodation Payment,Services
Southend-on-Sea City Council,http://www.opendatacommunities.org/id/unitary-authority/southend,ED Children & Public Health,Children And Education Services,3091,CASTLEDON SCHOOL,03/10/2023,12074327,640.77,Private Contractors,Other Agencies
Southend-on-Sea City Council,http://www.opendatacommunities.org/id/unitary-authority/southend,ED Adults & Communities,Adult Social Care,1310,CHOICES HEALTHCARE LTD,03/10/2023,12074327,"1,292.90",Private Contractors,Other Agencies
Southend-on-Sea City Council,http://www.opendatacommunities.org/id/unitary-authority/southend,ED Adults & Communities,Adult Social Care,1310,CHOICES HEALTHCARE LTD,03/10/2023,12074327,"1,292.90",Private Contractors,Other Agencies
Southend-on-Sea City Council,http://www.opendatacommunities.org/id/unitary-authority/southend,ED Adults & Communities,Adult Social Care,1310,CHOICES HEALTHCARE LTD,03/10/2023,12074327,"1,292.90",Private Contractors,Other Agencies
Southend-on-Sea City Council,http://www.opendatacommunities.org/id/unitary-authority/southend,ED Adults & Communities,Adult Social Care,1105,CHOICES HEALTHCARE LTD,03/10/2023,12074327,664.92,Private Contractors,Other Agencies
Southend-on-Sea City Council,http://www.opendatacommunities.org/id/unitary-authority/southend,ED Adults & Communities,Adult Social Care,1105,CHOICES HEALTHCARE LTD,03/10/2023,12074327,664.92,Private Contractors,Other Agencies
Southend-on-Sea City Council,http://www.opendatacommunities.org/id/unitary-authority/southend,ED Adults & Communities,Adult Social Care,1205,CHOICES HEALTHCARE LTD,03/10/2023,12074327,"1,355.76",Private Contractors,Other Agencies
Southend-on-Sea City Council,http://www.opendatacommunities.org/id/unitary-authority/southend,ED Children & Public Health,Children And Education Services,3265,REDACTED PERSONAL DATA,03/10/2023,12074327,846.52,Foster Carer Allowance,Other Agencies
Southend-on-Sea City Council,http://www.opendatacommunities.org/id/unitary-authority/southend,ED Adults & Communities,Adult Social Care,1105,DE VERE CARE PARTNERSHIP LTD,03/10/2023,12074327,"13,471.44",Private Contractors,Other Agencies
Southend-on-Sea City Council,http://www.opendatacommunities.org/id/unitary-authority/southend,ED Children & Public Health,Children And Education Services,3265,REDACTED PERSONAL DATA,03/10/2023,12074327,775.46,Foster Carer Allowance,Other Agencies
Southend-on-Sea City Council,http://www.opendatacommunities.org/id/unitary-authority/southend,"ED Strategy, Change & Governance",Central Services,7105,EAST ANGLIAN CHAMBERS T/A MS VICTORIA JEMPSON,03/10/2023,12074327,850,Court Costs And Legal Fees,Services
Southend-on-Sea City Council,http://www.opendatacommunities.org/id/unitary-authority/southend,"ED Strategy, Change & Governance",Central Services,7105,EAST ANGLIAN CHAMBERS T/A MS VICTORIA JEMPSON,03/10/2023,12074327,850,Court Costs And Legal Fees,Services
Southend-on-Sea City Council,http://www.opendatacommunities.org/id/unitary-authority/southend,ED Children & Public Health,Children And Education Services,3265,REDACTED PERSONAL DATA,03/10/2023,12074327,746.52,Foster Carer Allowance,Other Agencies
Southend-on-Sea City Council,http://www.opendatacommunities.org/id/unitary-authority/southend,ED Adults & Communities,Adult Social Care,1391,ENCIRCLE HOUSING,03/10/2023,12074327,"1,541.88",Private Contractors,Other Agencies
Southend-on-Sea City Council,http://www.opendatacommunities.org/id/unitary-authority/southend,ED Children & Public Health,Children And Education Services,3091,EPSILON STAR MULTI ACADEMY TRUST,03/10/2023,12074327,"1,203.85",Private Contractors,Other Agencies
Southend-on-Sea City Council,http://www.opendatacommunities.org/id/unitary-authority/southend,ED Children & Public Health,Children And Education Services,3091,EPSILON STAR MULTI ACADEMY TRUST,03/10/2023,12074327,"5,050.00",Private Contractors,Other Agencies
Southend-on-Sea City Council,http://www.opendatacommunities.org/id/unitary-authority/southend,ED Adults & Communities,Adult Social Care,1294,ESSEX NURSING SERVICES,03/10/2023,12074327,541.84,Private Contractors,Other Agencies
Southend-on-Sea City Council,http://www.opendatacommunities.org/id/unitary-authority/southend,ED Adults & Communities,Adult Social Care,1209,ETAC LTD,03/10/2023,12074327,"2,197.00",Tools And Equipment Repair And Maintenance,Equipment Furniture And Materials
Southend-on-Sea City Council,http://www.opendatacommunities.org/id/unitary-authority/southend,ED Adults & Communities,Adult Social Care,1105,FIRST POINT 24 LTD,03/10/2023,12074327,"1,577.00",Private Contractors,Other Agencies
Southend-on-Sea City Council,http://www.opendatacommunities.org/id/unitary-authority/southend,ED Neighbourhoods & Environment,Cultural and Related Services,7520,FUELOILS,03/10/2023,12074327,"4,003.67",Petrol Diesel Or Liquid Petroleum Gas,Direct Transport Costs
Southend-on-Sea City Council,http://www.opendatacommunities.org/id/unitary-authority/southend,ED Neighbourhoods & Environment,Cultural and Related Services,7520,FUELOILS,03/10/2023,12074327,"1,356.81",Petrol Diesel Or Liquid Petroleum Gas,Direct Transport Costs
Southend-on-Sea City Council,http://www.opendatacommunities.org/id/unitary-authority/southend,ED Neighbourhoods & Environment,Cultural and Related Services,7520,FUELOILS,03/10/2023,12074327,"1,295.00",Petrol Diesel Or Liquid Petroleum Gas,Direct Transport Costs
Southend-on-Sea City Council,http://www.opendatacommunities.org/id/unitary-authority/southend,ED Neighbourhoods & Environment,Cultural and Related Services,7540,FUELOILS,03/10/2023,12074327,"1,873.69",Petrol Diesel Or Liquid Petroleum Gas,Direct Transport Costs
Southend-on-Sea City Council,http://www.opendatacommunities.org/id/unitary-authority/southend,ED Adults & Communities,Adult Social Care,1083,GEMSTONE PROPERTIES LTD,03/10/2023,12074327,"2,086.72",Private Contractors,Other Agencies
Southend-on-Sea City Council,http://www.opendatacommunities.org/id/unitary-authority/southend,ED Adults & Communities,Adult Social Care,1641,GEMSTONE PROPERTIES LTD,03/10/2023,12074327,"1,937.67",Private Contractors,Other Agencies
Southend-on-Sea City Council,http://www.opendatacommunities.org/id/unitary-authority/southend,ED Adults & Communities,Cultural And Related Services,4256,GOOD WITH DEVICES LTD T/A GWD,03/10/2023,12074327,"20,206.77",Corporate IT Applications,Communications And Computing
Southend-on-Sea City Council,http://www.opendatacommunities.org/id/unitary-authority/southend,ED Finance & Resources,Central Services,7165,GOWLING WLG (UK) LLP OFFICE,03/10/2023,12074327,"2,528.24",Professional Fees,Services
Southend-on-Sea City Council,http://www.opendatacommunities.org/id/unitary-authority/southend,ED Finance & Resources,Central Services,7165,GOWLING WLG (UK) LLP OFFICE,03/10/2023,12074327,"1,616.00",Professional Fees,Services
Southend-on-Sea City Council,http://www.opendatacommunities.org/id/unitary-authority/southend,ED Finance & Resources,Central Services,7165,GOWLING WLG (UK) LLP OFFICE,03/10/2023,12074327,910.62,Professional Fees,Services
Southend-on-Sea City Council,http://www.opendatacommunities.org/id/unitary-authority/southend,ED Finance & Resources,Central Services,7165,GOWLING WLG (UK) LLP OFFICE,03/10/2023,12074327,950,Professional Fees,Services
Southend-on-Sea City Council,http://www.opendatacommunities.org/id/unitary-authority/southend,ED Finance & Resources,Central Services,7165,GOWLING WLG (UK) LLP OFFICE,03/10/2023,12074327,800,Professional Fees,Services
Southend-on-Sea City Council,http://www.opendatacommunities.org/id/unitary-authority/southend,ED Finance & Resources,Central Services,8605,GRAHAM HIGH GROUP LIMITED,03/10/2023,12074327,821.33,Professional Fees,Services
Southend-on-Sea City Council,http://www.opendatacommunities.org/id/unitary-authority/southend,ED Finance & Resources,Central Services,8605,GRAHAM HIGH GROUP LIMITED,03/10/2023,12074327,821.33,Professional Fees,Services
Southend-on-Sea City Council,http://www.opendatacommunities.org/id/unitary-authority/southend,ED Children & Public Health,Children And Education Services,3483,GRAPECROFT LIMITED T/A HARMONY HEALTHCARE,03/10/2023,12074327,540,Private Contractors,Other Agencies
Southend-on-Sea City Council,http://www.opendatacommunities.org/id/unitary-authority/southend,ED Children & Public Health,Children And Education Services,3308,GREAT FUTURE SUPPORT LTD,03/10/2023,12074327,"1,836.00",Accomodation Payment,Services
Southend-on-Sea City Council,http://www.opendatacommunities.org/id/unitary-authority/southend,ED Children & Public Health,Children And Education Services,3290,GRIHA CARE AND SUPPORT LIMITED,03/10/2023,12074327,"4,040.00",Accomodation Payment,Services
Southend-on-Sea City Council,http://www.opendatacommunities.org/id/unitary-authority/southend,ED Children & Public Health,Children And Education Services,3307,GRIHA CARE AND SUPPORT LIMITED,03/10/2023,12074327,"2,700.00",Accomodation Payment,Services
Southend-on-Sea City Council,http://www.opendatacommunities.org/id/unitary-authority/southend,ED Children & Public Health,Children And Education Services,3308,GRIHA CARE AND SUPPORT LIMITED,03/10/2023,12074327,"1,820.00",Accomodation Payment,Services
Southend-on-Sea City Council,http://www.opendatacommunities.org/id/unitary-authority/southend,"ED Strategy, Change & Governance",Central Services,7125,HAYS SPECIALIST RECRUITMENT LTD RECEIPTS RECRUITMENT FILE ONLY,03/10/2023,12074327,"1,814.90",Recruitment,Indirect Employee Expenses
Southend-on-Sea City Council,http://www.opendatacommunities.org/id/unitary-authority/southend,ED Children & Public Health,Children And Education Services,3265,REDACTED PERSONAL DATA,03/10/2023,12074327,541.2,Foster Carer Allowance,Other Agencies
Southend-on-Sea City Council,http://www.opendatacommunities.org/id/unitary-authority/southend,ED Children & Public Health,Children And Education Services,3265,REDACTED PERSONAL DATA,03/10/2023,12074327,"1,168.74",Foster Carer Allowance,Other Agencies
Southend-on-Sea City Council,http://www.opendatacommunities.org/id/unitary-authority/southend,ED Children & Public Health,Children And Education Services,3265,REDACTED PERSONAL DATA,03/10/2023,12074327,746.52,Foster Carer Allowance,Other Agencies
Southend-on-Sea City Council,http://www.opendatacommunities.org/id/unitary-authority/southend,ED Growth & Housing,Adult Social Care,6012,REDACTED PERSONAL DATA,03/10/2023,12074327,500,Additional Allowances (non employee),Services
Southend-on-Sea City Council,http://www.opendatacommunities.org/id/unitary-authority/southend,ED Children & Public Health,Children And Education Services,3265,REDACTED PERSONAL DATA,03/10/2023,12074327,"1,439.01",Foster Carer Allowance,Other Agencies
Southend-on-Sea City Council,http://www.opendatacommunities.org/id/unitary-authority/southend,ED Children & Public Health,Children And Education Services,3265,REDACTED PERSONAL DATA,03/10/2023,12074327,"1,586.20",Foster Carer Allowance,Other Agencies
Southend-on-Sea City Council,http://www.opendatacommunities.org/id/unitary-authority/southend,ED Children & Public Health,Children And Education Services,3265,REDACTED PERSONAL DATA,03/10/2023,12074327,810.56,Foster Carer Allowance,Other Agencies
Southend-on-Sea City Council,http://www.opendatacommunities.org/id/unitary-authority/southend,ED Children & Public Health,Children And Education Services,3265,REDACTED PERSONAL DATA,03/10/2023,12074327,828.17,Foster Carer Allowance,Other Agencies
Southend-on-Sea City Council,http://www.opendatacommunities.org/id/unitary-authority/southend,ED Growth & Housing,Adult Social Care,6012,REDACTED PERSONAL DATA,03/10/2023,12074327,500,Additional Allowances (non employee),Services
Southend-on-Sea City Council,http://www.opendatacommunities.org/id/unitary-authority/southend,ED Children & Public Health,Children And Education Services,3265,REDACTED PERSONAL DATA,03/10/2023,12074327,746.52,Foster Carer Allowance,Other Agencies
Southend-on-Sea City Council,http://www.opendatacommunities.org/id/unitary-authority/southend,ED Children & Public Health,Children And Education Services,3265,REDACTED PERSONAL DATA,03/10/2023,12074327,"1,561.35",Foster Carer Allowance,Other Agencies
Southend-on-Sea City Council,http://www.opendatacommunities.org/id/unitary-authority/southend,ED Children & Public Health,Children And Education Services,3290,LEIGHVIEW HOUSE LTD T/A LEIGHVIEW HOUSE ROMFORD LTD,03/10/2023,12074327,"1,500.00",Accomodation Payment,Services
Southend-on-Sea City Council,http://www.opendatacommunities.org/id/unitary-authority/southend,ED Children & Public Health,Children And Education Services,3290,LEIGHVIEW HOUSE LTD T/A LEIGHVIEW HOUSE ROMFORD LTD,03/10/2023,12074327,550,Accomodation Payment,Services
Southend-on-Sea City Council,http://www.opendatacommunities.org/id/unitary-authority/southend,ED Children & Public Health,Children And Education Services,3307,LEIGHVIEW HOUSE LTD T/A LEIGHVIEW HOUSE ROMFORD LTD,03/10/2023,12074327,"1,800.00",Accomodation Payment,Services
Southend-on-Sea City Council,http://www.opendatacommunities.org/id/unitary-authority/southend,ED Children & Public Health,Children And Education Services,3308,LEIGHVIEW HOUSE LTD T/A LEIGHVIEW HOUSE ROMFORD LTD,03/10/2023,12074327,"2,200.00",Accomodation Payment,Services
Southend-on-Sea City Council,http://www.opendatacommunities.org/id/unitary-authority/southend,ED Children & Public Health,Children And Education Services,3265,REDACTED PERSONAL DATA,03/10/2023,12074327,"1,028.01",Foster Carer Allowance,Other Agencies
Southend-on-Sea City Council,http://www.opendatacommunities.org/id/unitary-authority/southend,ED Children & Public Health,Children And Education Services,3250,LIONCARE LTD T/A SEAFIELDS,03/10/2023,12074327,"19,294.29",Private Contractors,Other Agencies
Southend-on-Sea City Council,http://www.opendatacommunities.org/id/unitary-authority/southend,ED Children & Public Health,Children And Education Services,3265,REDACTED PERSONAL DATA,03/10/2023,12074327,565.2,Foster Carer Allowance,Other Agencies
Southend-on-Sea City Council,http://www.opendatacommunities.org/id/unitary-authority/southend,ED Children & Public Health,Children And Education Services,3265,REDACTED PERSONAL DATA,03/10/2023,12074327,"1,473.89",Foster Carer Allowance,Other Agencies
Southend-on-Sea City Council,http://www.opendatacommunities.org/id/unitary-authority/southend,ED Children & Public Health,Children And Education Services,3265,REDACTED PERSONAL DATA,03/10/2023,12074327,565.2,Foster Carer Allowance,Other Agencies
Southend-on-Sea City Council,http://www.opendatacommunities.org/id/unitary-authority/southend,ED Children & Public Health,Children And Education Services,3025,MEGA CAMPS LTD,03/10/2023,12074327,"17,920.00",Grants,Grants And Subscriptions
Southend-on-Sea City Council,http://www.opendatacommunities.org/id/unitary-authority/southend,ED Children & Public Health,Children And Education Services,3265,REDACTED PERSONAL DATA,03/10/2023,12074327,"1,365.36",Foster Carer Allowance,Other Agencies
Southend-on-Sea City Council,http://www.opendatacommunities.org/id/unitary-authority/southend,ED Children & Public Health,Children And Education Services,3265,REDACTED PERSONAL DATA,03/10/2023,12074327,"1,769.35",Foster Carer Allowance,Other Agencies
Southend-on-Sea City Council,http://www.opendatacommunities.org/id/unitary-authority/southend,ED Children & Public Health,Children And Education Services,3265,REDACTED PERSONAL DATA,03/10/2023,12074327,746.52,Foster Carer Allowance,Other Agencies
Southend-on-Sea City Council,http://www.opendatacommunities.org/id/unitary-authority/southend,ED Children & Public Health,Children And Education Services,3265,REDACTED PERSONAL DATA,03/10/2023,12074327,979.6,Foster Carer Allowance,Other Agencies
Southend-on-Sea City Council,http://www.opendatacommunities.org/id/unitary-authority/southend,ED Children & Public Health,Children And Education Services,3265,REDACTED PERSONAL DATA,03/10/2023,12074327,946.52,Foster Carer Allowance,Other Agencies
Southend-on-Sea City Council,http://www.opendatacommunities.org/id/unitary-authority/southend,ED Children & Public Health,Children And Education Services,3265,REDACTED PERSONAL DATA,03/10/2023,12074327,790.96,Foster Carer Allowance,Other Agencies
Southend-on-Sea City Council,http://www.opendatacommunities.org/id/unitary-authority/southend,ED Children & Public Health,Children And Education Services,3265,REDACTED PERSONAL DATA,03/10/2023,12074327,641.2,Foster Carer Allowance,Other Agencies
Southend-on-Sea City Council,http://www.opendatacommunities.org/id/unitary-authority/southend,ED Children & Public Health,Children And Education Services,3265,REDACTED PERSONAL DATA,03/10/2023,12074327,"1,046.52",Foster Carer Allowance,Other Agencies
Southend-on-Sea City Council,http://www.opendatacommunities.org/id/unitary-authority/southend,ED Children & Public Health,Children And Education Services,3265,REDACTED PERSONAL DATA,03/10/2023,12074327,"1,032.16",Foster Carer Allowance,Other Agencies
Southend-on-Sea City Council,http://www.opendatacommunities.org/id/unitary-authority/southend,ED Growth & Housing,Housing Services,6010,MR & MRS G CETNIK T/A PAVILION HOTEL,03/10/2023,12074327,"3,645.00",Accommodation Costs,Expenses
Southend-on-Sea City Council,http://www.opendatacommunities.org/id/unitary-authority/southend,ED Growth & Housing,Housing Services,6010,MR & MRS G CETNIK T/A PAVILION HOTEL,03/10/2023,12074327,"4,074.00",Accommodation Costs,Expenses
Southend-on-Sea City Council,http://www.opendatacommunities.org/id/unitary-authority/southend,ED Children & Public Health,Children And Education Services,3265,REDACTED PERSONAL DATA,03/10/2023,12074327,783.73,Foster Carer Allowance,Other Agencies
Southend-on-Sea City Council,http://www.opendatacommunities.org/id/unitary-authority/southend,ED Growth & Housing,Adult Social Care,6012,REDACTED PERSONAL DATA,03/10/2023,12074327,500,Additional Allowances (non employee),Services
Southend-on-Sea City Council,http://www.opendatacommunities.org/id/unitary-authority/southend,ED Growth & Housing,Adult Social Care,6012,REDACTED PERSONAL DATA,03/10/2023,12074327,500,Additional Allowances (non employee),Services
Southend-on-Sea City Council,http://www.opendatacommunities.org/id/unitary-authority/southend,ED Children & Public Health,Children And Education Services,3265,REDACTED PERSONAL DATA,03/10/2023,12074327,"1,132.67",Foster Carer Allowance,Other Agencies
Southend-on-Sea City Council,http://www.opendatacommunities.org/id/unitary-authority/southend,ED Children & Public Health,Children And Education Services,3265,REDACTED PERSONAL DATA,03/10/2023,12074327,"1,511.08",Foster Carer Allowance,Other Agencies
Southend-on-Sea City Council,http://www.opendatacommunities.org/id/unitary-authority/southend,ED Children & Public Health,Children And Education Services,3265,REDACTED PERSONAL DATA,03/10/2023,12074327,541.2,Foster Carer Allowance,Other Agencies
Southend-on-Sea City Council,http://www.opendatacommunities.org/id/unitary-authority/southend,ED Children & Public Health,Children And Education Services,3265,REDACTED PERSONAL DATA,03/10/2023,12074327,810.56,Foster Carer Allowance,Other Agencies
Southend-on-Sea City Council,http://www.opendatacommunities.org/id/unitary-authority/southend,ED Growth & Housing,Adult Social Care,6012,REDACTED PERSONAL DATA,03/10/2023,12074327,500,Additional Allowances (non employee),Services
Southend-on-Sea City Council,http://www.opendatacommunities.org/id/unitary-authority/southend,ED Adults & Communities,Adult Social Care,1200,REDACTED PERSONAL DATA,03/10/2023,12074327,"10,214.10",Private Contractors,Other Agencies
Southend-on-Sea City Council,http://www.opendatacommunities.org/id/unitary-authority/southend,ED Growth & Housing,Adult Social Care,6012,REDACTED PERSONAL DATA,03/10/2023,12074327,500,Additional Allowances (non employee),Services
Southend-on-Sea City Council,http://www.opendatacommunities.org/id/unitary-authority/southend,ED Children & Public Health,Children And Education Services,3265,REDACTED PERSONAL DATA,03/10/2023,12074327,882.4,Foster Carer Allowance,Other Agencies
Southend-on-Sea City Council,http://www.opendatacommunities.org/id/unitary-authority/southend,ED Children & Public Health,Children And Education Services,3265,REDACTED PERSONAL DATA,03/10/2023,12074327,"1,073.89",Foster Carer Allowance,Other Agencies
Southend-on-Sea City Council,http://www.opendatacommunities.org/id/unitary-authority/southend,ED Children & Public Health,Children And Education Services,3265,REDACTED PERSONAL DATA,03/10/2023,12074327,524.55,Foster Carer Allowance,Other Agencies
Southend-on-Sea City Council,http://www.opendatacommunities.org/id/unitary-authority/southend,ED Children & Public Health,Children And Education Services,3265,REDACTED PERSONAL DATA,03/10/2023,12074327,886.95,Foster Carer Allowance,Other Agencies
Southend-on-Sea City Council,http://www.opendatacommunities.org/id/unitary-authority/southend,ED Children & Public Health,Children And Education Services,3265,REDACTED PERSONAL DATA,03/10/2023,12074327,"1,651.14",Foster Carer Allowance,Other Agencies
Southend-on-Sea City Council,http://www.opendatacommunities.org/id/unitary-authority/southend,ED Children & Public Health,Children And Education Services,3265,REDACTED PERSONAL DATA,03/10/2023,12074327,"1,443.25",Foster Carer Allowance,Other Agencies
Southend-on-Sea City Council,http://www.opendatacommunities.org/id/unitary-authority/southend,ED Children & Public Health,Children And Education Services,3455,REDACTED PERSONAL DATA,03/10/2023,12074327,"2,834.45",Guardianship Orders,Other Agencies
Southend-on-Sea City Council,http://www.opendatacommunities.org/id/unitary-authority/southend,ED Children & Public Health,Children And Education Services,3265,REDACTED PERSONAL DATA,03/10/2023,12074327,"1,275.08",Foster Carer Allowance,Other Agencies
Southend-on-Sea City Council,http://www.opendatacommunities.org/id/unitary-authority/southend,ED Children & Public Health,Children And Education Services,3265,REDACTED PERSONAL DATA,03/10/2023,12074327,641.2,Foster Carer Allowance,Other Agencies
Southend-on-Sea City Council,http://www.opendatacommunities.org/id/unitary-authority/southend,ED Growth & Housing,Adult Social Care,6012,REDACTED PERSONAL DATA,03/10/2023,12074327,500,Additional Allowances (non employee),Services
Southend-on-Sea City Council,http://www.opendatacommunities.org/id/unitary-authority/southend,ED Children & Public Health,Children And Education Services,3265,REDACTED PERSONAL DATA,03/10/2023,12074327,"1,259.92",Foster Carer Allowance,Other Agencies
Southend-on-Sea City Council,http://www.opendatacommunities.org/id/unitary-authority/southend,ED Children & Public Health,Children And Education Services,3265,REDACTED PERSONAL DATA,03/10/2023,12074327,"1,273.89",Foster Carer Allowance,Other Agencies
Southend-on-Sea City Council,http://www.opendatacommunities.org/id/unitary-authority/southend,ED Growth & Housing,Adult Social Care,6012,REDACTED PERSONAL DATA,03/10/2023,12074327,500,Additional Allowances (non employee),Services
Southend-on-Sea City Council,http://www.opendatacommunities.org/id/unitary-authority/southend,ED Children & Public Health,Children And Education Services,3491,REDACTED PERSONAL DATA,03/10/2023,12074327,978.28,Additional Allowances (non employee),Services
Southend-on-Sea City Council,http://www.opendatacommunities.org/id/unitary-authority/southend,ED Adults & Communities,Adult Social Care,1266,REDACTED PERSONAL DATA,03/10/2023,12074327,544.57,Private Contractors,Other Agencies
Southend-on-Sea City Council,http://www.opendatacommunities.org/id/unitary-authority/southend,ED Children & Public Health,Children And Education Services,3312,NATIONAL YOUTH ADVOCACY SERVICE,03/10/2023,12074327,"3,831.33",Private Contractors,Other Agencies
Southend-on-Sea City Council,http://www.opendatacommunities.org/id/unitary-authority/southend,ED Children & Public Health,Children And Education Services,3312,NATIONAL YOUTH ADVOCACY SERVICE,03/10/2023,12074327,833.34,Private Contractors,Other Agencies
Southend-on-Sea City Council,http://www.opendatacommunities.org/id/unitary-authority/southend,"ED Strategy, Change & Governance",Central Services,7130,NEC SOFTWARE SOLUTIONS UK LIMITED,03/10/2023,12074327,"17,500.00",IT Contracts,Communications And Computing
Southend-on-Sea City Council,http://www.opendatacommunities.org/id/unitary-authority/southend,ED Adults & Communities,Adult Social Care,1209,NOTTINGHAM REHAB LTD,03/10/2023,12074327,"1,153.50",Tools And Equipment Purchase,Equipment Furniture And Materials
Southend-on-Sea City Council,http://www.opendatacommunities.org/id/unitary-authority/southend,ED Adults & Communities,Adult Social Care,1209,NOTTINGHAM REHAB LTD,03/10/2023,12074327,"1,579.64",Tools And Equipment Purchase,Equipment Furniture And Materials
Southend-on-Sea City Council,http://www.opendatacommunities.org/id/unitary-authority/southend,ED Children & Public Health,Children And Education Services,3265,REDACTED PERSONAL DATA,03/10/2023,12074327,"1,823.60",Foster Carer Allowance,Other Agencies
Southend-on-Sea City Council,http://www.opendatacommunities.org/id/unitary-authority/southend,Neighbourhoods & Environment,Central Services,9008,PEOPLESCOUT LTD,03/10/2023,12074327,984.21,Advertising,Advertising
Southend-on-Sea City Council,http://www.opendatacommunities.org/id/unitary-authority/southend,ED Neighbourhoods & Environment,Highways And Transport Services,5230,RINGGO LIMITED,03/10/2023,12074327,"9,608.80",Consultancy Services,Services
Southend-on-Sea City Council,http://www.opendatacommunities.org/id/unitary-authority/southend,ED Neighbourhoods & Environment,Highways And Transport Services,5230,RINGGO LIMITED,03/10/2023,12074327,"6,680.90",Consultancy Services,Services
Southend-on-Sea City Council,http://www.opendatacommunities.org/id/unitary-authority/southend,ED Children & Public Health,Children And Education Services,3265,REDACTED PERSONAL DATA,03/10/2023,12074327,"1,036.68",Foster Carer Allowance,Other Agencies
Southend-on-Sea City Council,http://www.opendatacommunities.org/id/unitary-authority/southend,ED Children & Public Health,Children And Education Services,3265,REDACTED PERSONAL DATA,03/10/2023,12074327,982.94,Foster Carer Allowance,Other Agencies
Southend-on-Sea City Council,http://www.opendatacommunities.org/id/unitary-authority/southend,ED Children & Public Health,Children And Education Services,3265,REDACTED PERSONAL DATA,03/10/2023,12074327,591.47,Foster Carer Allowance,Other Agencies
Southend-on-Sea City Council,http://www.opendatacommunities.org/id/unitary-authority/southend,ED Children & Public Health,Children And Education Services,3265,REDACTED PERSONAL DATA,03/10/2023,12074327,"1,328.15",Foster Carer Allowance,Other Agencies
Southend-on-Sea City Council,http://www.opendatacommunities.org/id/unitary-authority/southend,ED Children & Public Health,Children And Education Services,3265,REDACTED PERSONAL DATA,03/10/2023,12074327,977.48,Foster Carer Allowance,Other Agencies
Southend-on-Sea City Council,http://www.opendatacommunities.org/id/unitary-authority/southend,ED Children & Public Health,Children And Education Services,3290,SAFE HAVEN SERVICES LTD,03/10/2023,12074327,950,Accomodation Payment,Services
Southend-on-Sea City Council,http://www.opendatacommunities.org/id/unitary-authority/southend,ED Children & Public Health,Children And Education Services,3307,SAFE HAVEN SERVICES LTD,03/10/2023,12074327,"1,300.00",Accomodation Payment,Services
Southend-on-Sea City Council,http://www.opendatacommunities.org/id/unitary-authority/southend,ED Children & Public Health,Children And Education Services,3308,SAFE HAVEN SERVICES LTD,03/10/2023,12074327,"2,691.54",Accomodation Payment,Services
Southend-on-Sea City Council,http://www.opendatacommunities.org/id/unitary-authority/southend,ED Children & Public Health,Children And Education Services,3250,SAFEHOUSES LTD,03/10/2023,12074327,"1,400.40",Private Contractors,Other Agencies
Southend-on-Sea City Council,http://www.opendatacommunities.org/id/unitary-authority/southend,ED Children & Public Health,Children And Education Services,3265,REDACTED PERSONAL DATA,03/10/2023,12074327,836.68,Foster Carer Allowance,Other Agencies
Southend-on-Sea City Council,http://www.opendatacommunities.org/id/unitary-authority/southend,ED Finance & Resources,Central Services,5605,SOUTH ESSEX PROPERTY SERVICES,03/10/2023,12074327,"12,110.52",Security,"Repairs, alterations and maintenance of buildings"
Southend-on-Sea City Council,http://www.opendatacommunities.org/id/unitary-authority/southend,ED Adults & Communities,Adult Social Care,1091,SOUTHEND CARE LTD,03/10/2023,12074327,"2,565.00",Private Contractors,Other Agencies
Southend-on-Sea City Council,http://www.opendatacommunities.org/id/unitary-authority/southend,ED Finance & Resources,Central Services,7165,ST MARY'S PRITTLEWELL PCC,03/10/2023,12074327,"8,000.00",Property Rental,Rents
Southend-on-Sea City Council,http://www.opendatacommunities.org/id/unitary-authority/southend,ED Adults & Communities,Adult Social Care,1105,STRESS FREE EXECUTIVES LTD T/A YOWSUN CARE,03/10/2023,12074327,"2,388.79",Private Contractors,Other Agencies
Southend-on-Sea City Council,http://www.opendatacommunities.org/id/unitary-authority/southend,ED Adults & Communities,Adult Social Care,1205,STRESS FREE EXECUTIVES LTD T/A YOWSUN CARE,03/10/2023,12074327,"1,778.55",Private Contractors,Other Agencies
Southend-on-Sea City Council,http://www.opendatacommunities.org/id/unitary-authority/southend,ED Children & Public Health,Children And Education Services,3250,SURECARE RESIDENTIAL LTD,03/10/2023,12074327,"5,785.71",Private Contractors,Other Agencies
Southend-on-Sea City Council,http://www.opendatacommunities.org/id/unitary-authority/southend,ED Adults & Communities,Cultural And Related Services,4230,TECHNICOLOUR MOON LTD ::(Accounts Payable Sundry),03/10/2023,12074327,500,Cultural And Entertainment Services,Services
Southend-on-Sea City Council,http://www.opendatacommunities.org/id/unitary-authority/southend,ED Children & Public Health,Children And Education Services,3091,THE BRICKFIELDS TRUST T/A GREAT WAKERING PRIMARY ACADEMY,03/10/2023,12074327,"1,625.38",Private Contractors,Other Agencies
Southend-on-Sea City Council,http://www.opendatacommunities.org/id/unitary-authority/southend,ED Children & Public Health,Children And Education Services,3992,THE PEACEFUL PONY CIC,03/10/2023,12074327,"2,240.00",Private Contractors,Other Agencies
Southend-on-Sea City Council,http://www.opendatacommunities.org/id/unitary-authority/southend,ED Children & Public Health,Children And Education Services,3011,THE TRINKET BOX PRE SCHOOL LTD,03/10/2023,12074327,"2,248.40",Child Minding,Services
Southend-on-Sea City Council,http://www.opendatacommunities.org/id/unitary-authority/southend,ED Children & Public Health,Children And Education Services,3011,THE TRINKET BOX PRE SCHOOL LTD,03/10/2023,12074327,"1,022.00",Child Minding,Services
Southend-on-Sea City Council,http://www.opendatacommunities.org/id/unitary-authority/southend,ED Children & Public Health,Children And Education Services,3011,THE TRINKET BOX PRE SCHOOL LTD,03/10/2023,12074327,"1,430.80",Child Minding,Services
Southend-on-Sea City Council,http://www.opendatacommunities.org/id/unitary-authority/southend,ED Children & Public Health,Children And Education Services,3020,THE TRINKET BOX PRE SCHOOL LTD,03/10/2023,12074327,883.74,Other Establishments,Other Establishments
Southend-on-Sea City Council,http://www.opendatacommunities.org/id/unitary-authority/southend,ED Children & Public Health,Children And Education Services,3265,REDACTED PERSONAL DATA,03/10/2023,12074327,"1,364.22",Foster Carer Allowance,Other Agencies
Southend-on-Sea City Council,http://www.opendatacommunities.org/id/unitary-authority/southend,ED Neighbourhoods & Environment,Environmental And Regulatory Services,4561,TIPPER SIGNS,03/10/2023,12074327,887.5,Printing,Printing Stationery And General Office Expenses
Southend-on-Sea City Council,http://www.opendatacommunities.org/id/unitary-authority/southend,ED Neighbourhoods & Environment,Cultural and Related Services,7520,TLM MANAGEMENT LTD,03/10/2023,12074327,"1,205.00",Private Contractors,Other Agencies
Southend-on-Sea City Council,http://www.opendatacommunities.org/id/unitary-authority/southend,ED Neighbourhoods & Environment,Cultural And Related Services,7540,TLM MANAGEMENT LTD,03/10/2023,12074327,"1,232.50",Private Contractors,Other Agencies
Southend-on-Sea City Council,http://www.opendatacommunities.org/id/unitary-authority/southend,ED Children & Public Health,Children And Education Services,3265,REDACTED PERSONAL DATA,03/10/2023,12074327,890.96,Foster Carer Allowance,Other Agencies
Southend-on-Sea City Council,http://www.opendatacommunities.org/id/unitary-authority/southend,ED Neighbourhoods & Environment,Environmental And Regulatory Services,4661,VEOLIA ENVIRONMENTAL SERVICES,03/10/2023,12074327,"3,094.95",Waste Management,Cleaning And Domestic Supplies
Southend-on-Sea City Council,http://www.opendatacommunities.org/id/unitary-authority/southend,"ED Strategy, Change & Governance",Central Services,7130,VODAFONE CORPORATE LTD,03/10/2023,12074327,"1,875.00",Telephone - Mobile,Communications And Computing
Southend-on-Sea City Council,http://www.opendatacommunities.org/id/unitary-authority/southend,ED Finance & Resources,Central Services,7165,WHEELDON AND DEACON,03/10/2023,12074327,700,Professional Fees,Services
Southend-on-Sea City Council,http://www.opendatacommunities.org/id/unitary-authority/southend,ED Finance & Resources,Central Services,7165,WHEELDON AND DEACON,03/10/2023,12074327,700,Professional Fees,Services
Southend-on-Sea City Council,http://www.opendatacommunities.org/id/unitary-authority/southend,ED Children & Public Health,Children And Education Services,3265,REDACTED PERSONAL DATA,03/10/2023,12074327,891.47,Foster Carer Allowance,Other Agencies
Southend-on-Sea City Council,http://www.opendatacommunities.org/id/unitary-authority/southend,Neighbourhoods & Environment,Central Services,9008,(G) BORRAS CONSTRUCTION LTD,04/10/2023,12074334,"200,761.62",Main Contractor,Main Contractor
Southend-on-Sea City Council,http://www.opendatacommunities.org/id/unitary-authority/southend,ED Finance & Resources,Environmental and Regulatory Services,7535,(G) M & P FIRE PROTECTION LTD,04/10/2023,12074334,675,Repairs And Maintenance Contracts,"Repairs, alterations and maintenance of buildings"
Southend-on-Sea City Council,http://www.opendatacommunities.org/id/unitary-authority/southend,ED Finance & Resources,Environmental and Regulatory Services,7535,(N) CCR PROPERTY SERVICES LTD,04/10/2023,12074334,"5,498.00",Repairs And Maintenance Contracts,"Repairs, alterations and maintenance of buildings"
Southend-on-Sea City Council,http://www.opendatacommunities.org/id/unitary-authority/southend,ED Finance & Resources,Environmental and Regulatory Services,7535,(N) R J LIFTS GROUP LTD,04/10/2023,12074334,543,Repairs And Maintenance Lifts,"Repairs, alterations and maintenance of buildings"
Southend-on-Sea City Council,http://www.opendatacommunities.org/id/unitary-authority/southend,ED Finance & Resources,Environmental and Regulatory Services,7110,(N) R J LIFTS GROUP LTD,04/10/2023,12074334,"-5,280.00",Repairs And Maintenance Lifts,"Repairs, alterations and maintenance of buildings"
Southend-on-Sea City Council,http://www.opendatacommunities.org/id/unitary-authority/southend,ED Finance & Resources,Environmental and Regulatory Services,7110,(N) R J LIFTS GROUP LTD,04/10/2023,12074334,"5,280.00",Repairs And Maintenance Lifts,"Repairs, alterations and maintenance of buildings"
Southend-on-Sea City Council,http://www.opendatacommunities.org/id/unitary-authority/southend,"ED Strategy, Change & Governance",Central Services,7105,42 BEDFORD ROW CHAMBERS NO 2 A/C T/A CATRIN HOWELLS,04/10/2023,12074334,613.2,Court Costs And Legal Fees,Services
Southend-on-Sea City Council,http://www.opendatacommunities.org/id/unitary-authority/southend,"ED Strategy, Change & Governance",Central Services,7105,42 BEDFORD ROW NO. 2 ACCOUNT T/A MATHEW MCDERMOTT,04/10/2023,12074334,850,Court Costs And Legal Fees,Services
Southend-on-Sea City Council,http://www.opendatacommunities.org/id/unitary-authority/southend,ED Neighbourhoods & Environment,Cultural And Related Services,7540,AGROVISTA UK LTD,04/10/2023,12074334,"3,701.70",Materials,Equipment Furniture And Materials
Southend-on-Sea City Council,http://www.opendatacommunities.org/id/unitary-authority/southend,ED Adults & Communities,Adult Social Care,1209,AIDAPT BATHROOMS LTD,04/10/2023,12074334,"1,500.00",Tools And Equipment Purchase,Equipment Furniture And Materials
Southend-on-Sea City Council,http://www.opendatacommunities.org/id/unitary-authority/southend,ED Neighbourhoods & Environment,Cultural And Related Services,7540,ANGLIA BATTERY & FILTER CO LTD,04/10/2023,12074334,601.49,Tools And Equipment Repair And Maintenance,Equipment Furniture And Materials
Southend-on-Sea City Council,http://www.opendatacommunities.org/id/unitary-authority/southend,ED Neighbourhoods & Environment,Environmental And Regulatory Services,4525,ASSOCIATION OF TOWN CENTRE MANAGEMENT,04/10/2023,12074334,935,Subscriptions,Grants And Subscriptions
Southend-on-Sea City Council,http://www.opendatacommunities.org/id/unitary-authority/southend,ED Adults & Communities,Adult Social Care,1209,BELLMAN & SYMFON UK LTD,04/10/2023,12074334,"1,856.55",Tools And Equipment Purchase,Equipment Furniture And Materials
Southend-on-Sea City Council,http://www.opendatacommunities.org/id/unitary-authority/southend,ED Finance & Resources,Central Services,7140,BIFFA WASTE SERVICES LTD,04/10/2023,12074334,"1,151.19",Waste Management,Cleaning And Domestic Supplies
Southend-on-Sea City Council,http://www.opendatacommunities.org/id/unitary-authority/southend,ED Children & Public Health,Children And Education Services,3250,CHILDREN FIRST FOSTERING AGENCY LTD,04/10/2023,12074334,"2,660.76",Private Contractors,Other Agencies
Southend-on-Sea City Council,http://www.opendatacommunities.org/id/unitary-authority/southend,"ED Strategy, Change & Governance",Adult Social Care,3201,CORAM ACADEMY LTD T/A CORAMBAAF,04/10/2023,12074334,"1,730.00",Commissioned Training,Services
Southend-on-Sea City Council,http://www.opendatacommunities.org/id/unitary-authority/southend,ED Neighbourhoods & Environment,Environmental And Regulatory Services,4501,DIGNITY FUNERALS LTD T/A J W TATE & SON,04/10/2023,12074334,"1,262.00",Crematoria And Cemetery Services,Services
Southend-on-Sea City Council,http://www.opendatacommunities.org/id/unitary-authority/southend,"ED Strategy, Change & Governance",Central Services,7105,EAST ANGLIAN CHAMBERS T/A MISS CLAIRE THORNE,04/10/2023,12074334,750,Barristers fees,Services
Southend-on-Sea City Council,http://www.opendatacommunities.org/id/unitary-authority/southend,"ED Strategy, Change & Governance",Central Services,7105,EAST ANGLIAN CHAMBERS T/A MISS CLAIRE THORNE,04/10/2023,12074334,750,Barristers fees,Services
Southend-on-Sea City Council,http://www.opendatacommunities.org/id/unitary-authority/southend,"ED Strategy, Change & Governance",Central Services,7105,EAST ANGLIAN CHAMBERS T/A MISS CLAIRE THORNE,04/10/2023,12074334,750,Barristers fees,Services
Southend-on-Sea City Council,http://www.opendatacommunities.org/id/unitary-authority/southend,ED Adults & Communities,Cultural And Related Services,4120,EDF ENERGY,04/10/2023,12074333,"2,847.72",Energy Cost Electricity,Energy Costs
Southend-on-Sea City Council,http://www.opendatacommunities.org/id/unitary-authority/southend,ED Children & Public Health,Children And Education Services,3030,EDF ENERGY,04/10/2023,12074333,952.35,Energy Cost Electricity,Energy Costs
Southend-on-Sea City Council,http://www.opendatacommunities.org/id/unitary-authority/southend,ED Neighbourhoods & Environment,Cultural and Related Services,7520,ERNEST DOE AND SONS LTD,04/10/2023,12074333,"5,669.21",Tools And Equipment Repair And Maintenance,Equipment Furniture And Materials
Southend-on-Sea City Council,http://www.opendatacommunities.org/id/unitary-authority/southend,ED Finance & Resources,Central Services,7096,ESSEX INTERPRETING LTD,04/10/2023,12074333,"6,486.67",Interpretation And Translation,Services
Southend-on-Sea City Council,http://www.opendatacommunities.org/id/unitary-authority/southend,ED Adults & Communities,Adult Social Care,1105,FIRST POINT 24 LTD,04/10/2023,12074333,"7,685.05",Private Contractors,Other Agencies
Southend-on-Sea City Council,http://www.opendatacommunities.org/id/unitary-authority/southend,ED Adults & Communities,Adult Social Care,1205,FIRST POINT 24 LTD,04/10/2023,12074333,"2,106.11",Private Contractors,Other Agencies
Southend-on-Sea City Council,http://www.opendatacommunities.org/id/unitary-authority/southend,ED Adults & Communities,Adult Social Care,1105,FIRST POINT 24 LTD,04/10/2023,12074333,"8,024.47",Private Contractors,Other Agencies
Southend-on-Sea City Council,http://www.opendatacommunities.org/id/unitary-authority/southend,ED Adults & Communities,Adult Social Care,1205,FIRST POINT 24 LTD,04/10/2023,12074333,"2,351.79",Private Contractors,Other Agencies
Southend-on-Sea City Council,http://www.opendatacommunities.org/id/unitary-authority/southend,ED Children & Public Health,Children And Education Services,3020,JENX LIMITED,04/10/2023,12074333,"2,678.00",Tools And Equipment Purchase,Equipment Furniture And Materials
Southend-on-Sea City Council,http://www.opendatacommunities.org/id/unitary-authority/southend,ED Neighbourhoods & Environment,Cultural And Related Services,7540,LEIGH BAXTER ASSOCIATES LTD,04/10/2023,12074333,814.29,Tools And Equipment Repair And Maintenance,Equipment Furniture And Materials
Southend-on-Sea City Council,http://www.opendatacommunities.org/id/unitary-authority/southend,ED Adults & Communities,Adult Social Care,1209,MR D OLFORD T/A OLFORD CARE SERVICES,04/10/2023,12074333,"1,626.00",Tools And Equipment Purchase,Equipment Furniture And Materials
Southend-on-Sea City Council,http://www.opendatacommunities.org/id/unitary-authority/southend,ED Children & Public Health,Children And Education Services,3590,NONSTOP CONSULTING LTD (PERMS),04/10/2023,12074333,"1,350.00",Agency Staff,Direct Employee Expenses
Southend-on-Sea City Council,http://www.opendatacommunities.org/id/unitary-authority/southend,"ED Strategy, Change & Governance",Central Services,7130,NTT UNITED KINGDOM LIMITED,04/10/2023,12074333,"6,997.44",IT Contracts,Communications And Computing
Southend-on-Sea City Council,http://www.opendatacommunities.org/id/unitary-authority/southend,ED Growth & Housing,Adult Social Care,2041,OCTAGON PIER T/A PARK INN PALACE,04/10/2023,12074333,"16,226.00",Catering Food And Beverages,Catering
Southend-on-Sea City Council,http://www.opendatacommunities.org/id/unitary-authority/southend,ED Adults & Communities,Adult Social Care,1209,PRISM MEDICAL UK,04/10/2023,12074333,766.4,Tools And Equipment Repair And Maintenance,Equipment Furniture And Materials
Southend-on-Sea City Council,http://www.opendatacommunities.org/id/unitary-authority/southend,ED Children & Public Health,Children And Education Services,3481,PROSPERO GROUP LTD,04/10/2023,12074333,"3,216.36",Professional Fees,Services
Southend-on-Sea City Council,http://www.opendatacommunities.org/id/unitary-authority/southend,ED Children & Public Health,Children And Education Services,3481,PROSPERO GROUP LTD,04/10/2023,12074333,"3,216.36",Professional Fees,Services
Southend-on-Sea City Council,http://www.opendatacommunities.org/id/unitary-authority/southend,ED Children & Public Health,Children And Education Services,3481,PROSPERO GROUP LTD,04/10/2023,12074333,"3,216.36",Professional Fees,Services
Southend-on-Sea City Council,http://www.opendatacommunities.org/id/unitary-authority/southend,ED Children & Public Health,Children And Education Services,3481,PROSPERO GROUP LTD,04/10/2023,12074333,"2,297.40",Professional Fees,Services
Southend-on-Sea City Council,http://www.opendatacommunities.org/id/unitary-authority/southend,ED Finance & Resources,Central Services,7085,PROSPERO GROUP LTD,04/10/2023,12074333,"-3,134.31",Stationery,Printing Stationery And General Office Expenses
Southend-on-Sea City Council,http://www.opendatacommunities.org/id/unitary-authority/southend,ED Finance & Resources,Central Services,7085,PROSPERO GROUP LTD,04/10/2023,12074333,"3,134.31",Stationery,Printing Stationery And General Office Expenses
Southend-on-Sea City Council,http://www.opendatacommunities.org/id/unitary-authority/southend,ED Finance & Resources,Central Services,7085,PROSPERO GROUP LTD,04/10/2023,12074333,"-3,134.31",Stationery,Printing Stationery And General Office Expenses
Southend-on-Sea City Council,http://www.opendatacommunities.org/id/unitary-authority/southend,ED Finance & Resources,Central Services,7085,PROSPERO GROUP LTD,04/10/2023,12074333,"3,134.31",Stationery,Printing Stationery And General Office Expenses
Southend-on-Sea City Council,http://www.opendatacommunities.org/id/unitary-authority/southend,ED Children & Public Health,Children And Education Services,3481,RE HOUSE LIMITED,04/10/2023,12074333,576,Childrens outings,Services
Southend-on-Sea City Council,http://www.opendatacommunities.org/id/unitary-authority/southend,ED Children & Public Health,Children And Education Services,3200,RWB CONSULTANCY LIMITED,04/10/2023,12074333,"5,465.00",Education Services,Services
Southend-on-Sea City Council,http://www.opendatacommunities.org/id/unitary-authority/southend,ED Finance & Resources,Housing Services,6165,SALE APPLIANCES,04/10/2023,12074333,683.13,Materials,Equipment Furniture And Materials
Southend-on-Sea City Council,http://www.opendatacommunities.org/id/unitary-authority/southend,ED Adults & Communities,Cultural And Related Services,4230,SETH JULIAN WELLS T/A SNUB23,04/10/2023,12074333,"1,000.00",Cultural And Entertainment Services,Services
Southend-on-Sea City Council,http://www.opendatacommunities.org/id/unitary-authority/southend,ED Adults & Communities,Cultural And Related Services,4055,SOMETHING & SON LTD,04/10/2023,12074333,"2,500.00",Professional Fees,Services
Southend-on-Sea City Council,http://www.opendatacommunities.org/id/unitary-authority/southend,ED Neighbourhoods & Environment,Environmental And Regulatory Services,4537,STAMBRIDGE SECURITY SERVICES LTD,04/10/2023,12074333,"7,444.16",Security,"Repairs, alterations and maintenance of buildings"
Southend-on-Sea City Council,http://www.opendatacommunities.org/id/unitary-authority/southend,ED Neighbourhoods & Environment,Environmental And Regulatory Services,4537,STAMBRIDGE SECURITY SERVICES LTD,04/10/2023,12074333,"8,379.84",Security,"Repairs, alterations and maintenance of buildings"
Southend-on-Sea City Council,http://www.opendatacommunities.org/id/unitary-authority/southend,"ED Strategy, Change & Governance",Central Services,7133,UNIT4 BUSINESS SOFTWARE LTD,04/10/2023,12074333,"1,792.01",Corporate IT Applications,Communications And Computing
Southend-on-Sea City Council,http://www.opendatacommunities.org/id/unitary-authority/southend,ED Adults & Communities,Adult Social Care,1450,VIBRANCE,04/10/2023,12074333,"15,298.34",Other Agencies,Other Agencies
Southend-on-Sea City Council,http://www.opendatacommunities.org/id/unitary-authority/southend,ED Growth & Housing,Housing Services,9005,(G) ADVANCED BUILDING & MAINTENANCE SERVICES LTD,06/10/2023,12074338,"5,071.95",Contractors General,Contractors General
Southend-on-Sea City Council,http://www.opendatacommunities.org/id/unitary-authority/southend,Children & Public Health,Central Services,9009,(G) DAVID STAGG & ASSOCIATES LTD T/A DSA ELECTRICAL,06/10/2023,12074338,998,Main Contractor,Main Contractor
Southend-on-Sea City Council,http://www.opendatacommunities.org/id/unitary-authority/southend,ED Adults & Communities,Cultural And Related Services,4115,(G) DAVID STAGG & ASSOCIATES LTD T/A DSA ELECTRICAL,06/10/2023,12074338,"1,599.00",Repairs And Maintenance Contracts,"Repairs, alterations and maintenance of buildings"
Southend-on-Sea City Council,http://www.opendatacommunities.org/id/unitary-authority/southend,Children & Public Health,Central Services,9009,(G) EDMUNDS DESIGN & CONSTRUCTION LTD,06/10/2023,12074338,"45,947.59",Main Contractor,Main Contractor
Southend-on-Sea City Council,http://www.opendatacommunities.org/id/unitary-authority/southend,Adults & Communities,Central Services,9010,(G) ELEMENTS M & E CONTRACTING LIMITED,06/10/2023,12074338,765.85,Main Contractor,Main Contractor
Southend-on-Sea City Council,http://www.opendatacommunities.org/id/unitary-authority/southend,ED Growth & Housing,Housing Services,9005,(G) GRACELANDS CMS LTD,06/10/2023,12074338,"4,111.02",Contractors General,Contractors General
Southend-on-Sea City Council,http://www.opendatacommunities.org/id/unitary-authority/southend,ED Growth & Housing,Housing Services,9005,(G) GRACELANDS CMS LTD,06/10/2023,12074338,"6,125.28",Contractors General,Contractors General
Southend-on-Sea City Council,http://www.opendatacommunities.org/id/unitary-authority/southend,ED Neighbourhoods & Environment,Cultural And Related Services,4220,(G) KIERAN LUCAS CONTRACTORS LTD,06/10/2023,12074338,"1,353.05",Repairs And Maintenance Contracts,"Repairs, alterations and maintenance of buildings"
Southend-on-Sea City Council,http://www.opendatacommunities.org/id/unitary-authority/southend,Neighbourhoods & Environment,Central Services,9008,(G) MARLBOROUGH SURFACING LIMITED,06/10/2023,12074338,"60,731.71",Contractors General,Contractors General
Southend-on-Sea City Council,http://www.opendatacommunities.org/id/unitary-authority/southend,Neighbourhoods & Environment,Central Services,9008,(G) MARLBOROUGH SURFACING LIMITED,06/10/2023,12074338,"5,179.06",Main Contractor,Main Contractor
Southend-on-Sea City Council,http://www.opendatacommunities.org/id/unitary-authority/southend,Neighbourhoods & Environment,Central Services,9008,(G) MARLBOROUGH SURFACING LIMITED,06/10/2023,12074338,"94,281.43",Main Contractor,Main Contractor
Southend-on-Sea City Council,http://www.opendatacommunities.org/id/unitary-authority/southend,Neighbourhoods & Environment,Central Services,9008,(G) MARLBOROUGH SURFACING LIMITED,06/10/2023,12074338,"74,181.01",Main Contractor,Main Contractor
Southend-on-Sea City Council,http://www.opendatacommunities.org/id/unitary-authority/southend,Neighbourhoods & Environment,Central Services,9008,(G) MARLBOROUGH SURFACING LIMITED,06/10/2023,12074338,"31,191.09",Main Contractor,Main Contractor
Southend-on-Sea City Council,http://www.opendatacommunities.org/id/unitary-authority/southend,Neighbourhoods & Environment,Central Services,9008,(G) MARLBOROUGH SURFACING LIMITED,06/10/2023,12074338,"43,597.63",Main Contractor,Main Contractor
Southend-on-Sea City Council,http://www.opendatacommunities.org/id/unitary-authority/southend,ED Neighbourhoods & Environment,Cultural And Related Services,4200,(G) MARLBOROUGH SURFACING LIMITED,06/10/2023,12074338,"1,066.00",Private Contractors,Other Agencies
Southend-on-Sea City Council,http://www.opendatacommunities.org/id/unitary-authority/southend,ED Neighbourhoods & Environment,Highways And Transport Services,5710,(G) MARLBOROUGH SURFACING LIMITED,06/10/2023,12074338,"107,702.32",Private Contractors,Other Agencies
Southend-on-Sea City Council,http://www.opendatacommunities.org/id/unitary-authority/southend,ED Neighbourhoods & Environment,Highways And Transport Services,5140,(G) MARLBOROUGH SURFACING LIMITED,06/10/2023,12074338,620,Private Contractors,Other Agencies
Southend-on-Sea City Council,http://www.opendatacommunities.org/id/unitary-authority/southend,ED Neighbourhoods & Environment,Highways And Transport Services,5170,(G) MARLBOROUGH SURFACING LIMITED,06/10/2023,12074338,"5,971.62",Private Contractors,Other Agencies
Southend-on-Sea City Council,http://www.opendatacommunities.org/id/unitary-authority/southend,ED Neighbourhoods & Environment,Highways And Transport Services,5122,(G) MARLBOROUGH SURFACING LIMITED,06/10/2023,12074338,"16,540.63",Private Contractors,Other Agencies
Southend-on-Sea City Council,http://www.opendatacommunities.org/id/unitary-authority/southend,ED Adults & Communities,Adult Social Care,1209,ACCORA LTD,06/10/2023,12074338,"2,026.00",Tools And Equipment Purchase,Equipment Furniture And Materials
Southend-on-Sea City Council,http://www.opendatacommunities.org/id/unitary-authority/southend,ED Adults & Communities,Adult Social Care,1510,APPOINTMOOR LTD,06/10/2023,12074338,"2,100.00",Additional Allowances (non employee),Services
Southend-on-Sea City Council,http://www.opendatacommunities.org/id/unitary-authority/southend,ED Adults & Communities,Adult Social Care,1510,APPOINTMOOR LTD,06/10/2023,12074338,"2,250.00",Additional Allowances (non employee),Services
Southend-on-Sea City Council,http://www.opendatacommunities.org/id/unitary-authority/southend,ED Adults & Communities,Adult Social Care,1105,ASHLEY COMMUNITY CARE SERVICES LTD T/A ASHLEY CARE,06/10/2023,12074338,"23,454.46",Private Contractors,Other Agencies
Southend-on-Sea City Council,http://www.opendatacommunities.org/id/unitary-authority/southend,ED Adults & Communities,Adult Social Care,1108,ASHLEY COMMUNITY CARE SERVICES LTD T/A ASHLEY CARE,06/10/2023,12074338,751,Private Contractors,Other Agencies
Southend-on-Sea City Council,http://www.opendatacommunities.org/id/unitary-authority/southend,ED Adults & Communities,Adult Social Care,1205,ASHLEY COMMUNITY CARE SERVICES LTD T/A ASHLEY CARE,06/10/2023,12074338,"3,687.35",Private Contractors,Other Agencies
Southend-on-Sea City Council,http://www.opendatacommunities.org/id/unitary-authority/southend,ED Adults & Communities,Adult Social Care,1491,BENJAMIN HENDERSON T/A REPOSE CREATIVE,06/10/2023,12074338,"1,591.00",Professional Fees,Services
Southend-on-Sea City Council,http://www.opendatacommunities.org/id/unitary-authority/southend,ED Adults & Communities,Cultural And Related Services,4120,BIFFA WASTE SERVICES LTD,06/10/2023,12074338,"2,775.52",Waste Management,Cleaning And Domestic Supplies
Southend-on-Sea City Council,http://www.opendatacommunities.org/id/unitary-authority/southend,ED Adults & Communities,Cultural And Related Services,4120,BLACKWATER FUELS LIMITED,06/10/2023,12074338,"2,120.00",Petrol Diesel Or Liquid Petroleum Gas,Direct Transport Costs
Southend-on-Sea City Council,http://www.opendatacommunities.org/id/unitary-authority/southend,ED Children & Public Health,Children And Education Services,3892,CARTER BROWN - THE EXPERT SERVICE LIMITED,06/10/2023,12074338,"3,125.15",Professional Fees,Services
Southend-on-Sea City Council,http://www.opendatacommunities.org/id/unitary-authority/southend,Adults & Communities,Central Services,9010,COLES CONSERVATION ARCHITECTS LIMITED,06/10/2023,12074338,"8,935.00",Main Contractor,Main Contractor
Southend-on-Sea City Council,http://www.opendatacommunities.org/id/unitary-authority/southend,ED Finance & Resources,Central Services,9011,DAVIES BURTON SWEETLOVE LTD,06/10/2023,12074338,"2,290.00",Main Contractor,Main Contractor
Southend-on-Sea City Council,http://www.opendatacommunities.org/id/unitary-authority/southend,ED Growth & Housing,Housing Services,6011,DEVINE TREASURES T/A DEVINE BEACH GUEST HOUSE,06/10/2023,12074338,"1,615.00",Accommodation Costs,Expenses
Southend-on-Sea City Council,http://www.opendatacommunities.org/id/unitary-authority/southend,ED Growth & Housing,Housing Services,6011,DEVINE TREASURES T/A DEVINE BEACH GUEST HOUSE,06/10/2023,12074338,"2,660.00",Accommodation Costs,Expenses
Southend-on-Sea City Council,http://www.opendatacommunities.org/id/unitary-authority/southend,ED Children & Public Health,Children And Education Services,3590,DIVERSE REC LTD T/A PEOPLE POOL LTD,06/10/2023,12074338,"1,395.50",Agency Staff,Direct Employee Expenses
Southend-on-Sea City Council,http://www.opendatacommunities.org/id/unitary-authority/southend,ED Children & Public Health,Children And Education Services,3892,DOLLY AND BEAR LTD T/A MONKEY PUZZLE DAY NURSERY SOUTHEND,06/10/2023,12074338,"3,908.82",Education Services,Services
Southend-on-Sea City Council,http://www.opendatacommunities.org/id/unitary-authority/southend,ED Finance & Resources,Central Services,8605,DRISCOLL KINGSTON & CO LTD CLIENT ACCOUNT,06/10/2023,12074338,"8,250.00",Court Costs And Legal Fees,Services
Southend-on-Sea City Council,http://www.opendatacommunities.org/id/unitary-authority/southend,ED Children & Public Health,Children And Education Services,3892,E4LAW LIMITED T/A LEXTOX,06/10/2023,12074338,561,Medical And Health Services,Services
Southend-on-Sea City Council,http://www.opendatacommunities.org/id/unitary-authority/southend,ED Children & Public Health,Children And Education Services,3307,ESSEX INTERPRETING LTD,06/10/2023,12074338,787.1,Interpretation And Translation,Services
Southend-on-Sea City Council,http://www.opendatacommunities.org/id/unitary-authority/southend,ED Adults & Communities,Adult Social Care,1105,FIRST POINT 24 LTD,06/10/2023,12074338,"7,795.63",Private Contractors,Other Agencies
Southend-on-Sea City Council,http://www.opendatacommunities.org/id/unitary-authority/southend,ED Adults & Communities,Adult Social Care,1205,FIRST POINT 24 LTD,06/10/2023,12074338,"2,330.53",Private Contractors,Other Agencies
Southend-on-Sea City Council,http://www.opendatacommunities.org/id/unitary-authority/southend,ED Adults & Communities,Adult Social Care,1105,FIRST POINT 24 LTD,06/10/2023,12074338,"8,012.44",Private Contractors,Other Agencies
Southend-on-Sea City Council,http://www.opendatacommunities.org/id/unitary-authority/southend,ED Adults & Communities,Adult Social Care,1205,FIRST POINT 24 LTD,06/10/2023,12074338,"2,481.66",Private Contractors,Other Agencies
Southend-on-Sea City Council,http://www.opendatacommunities.org/id/unitary-authority/southend,ED Adults & Communities,Adult Social Care,1105,FIRST POINT 24 LTD,06/10/2023,12074338,"8,321.34",Private Contractors,Other Agencies
Southend-on-Sea City Council,http://www.opendatacommunities.org/id/unitary-authority/southend,ED Adults & Communities,Adult Social Care,1205,FIRST POINT 24 LTD,06/10/2023,12074338,"2,308.89",Private Contractors,Other Agencies
Southend-on-Sea City Council,http://www.opendatacommunities.org/id/unitary-authority/southend,ED Adults & Communities,Adult Social Care,1105,FIRST POINT 24 LTD,06/10/2023,12074338,"8,027.54",Private Contractors,Other Agencies
Southend-on-Sea City Council,http://www.opendatacommunities.org/id/unitary-authority/southend,ED Adults & Communities,Adult Social Care,1205,FIRST POINT 24 LTD,06/10/2023,12074338,"2,196.78",Private Contractors,Other Agencies
Southend-on-Sea City Council,http://www.opendatacommunities.org/id/unitary-authority/southend,ED Adults & Communities,Adult Social Care,1105,FIRST POINT 24 LTD,06/10/2023,12074338,"7,809.51",Private Contractors,Other Agencies
Southend-on-Sea City Council,http://www.opendatacommunities.org/id/unitary-authority/southend,ED Adults & Communities,Adult Social Care,1205,FIRST POINT 24 LTD,06/10/2023,12074338,"2,166.36",Private Contractors,Other Agencies
Southend-on-Sea City Council,http://www.opendatacommunities.org/id/unitary-authority/southend,ED Adults & Communities,Adult Social Care,1105,FIRST POINT 24 LTD,06/10/2023,12074338,"7,523.53",Private Contractors,Other Agencies
Southend-on-Sea City Council,http://www.opendatacommunities.org/id/unitary-authority/southend,ED Adults & Communities,Adult Social Care,1205,FIRST POINT 24 LTD,06/10/2023,12074338,"2,197.68",Private Contractors,Other Agencies
Southend-on-Sea City Council,http://www.opendatacommunities.org/id/unitary-authority/southend,ED Children & Public Health,Children And Education Services,3250,FOSTER CARE UK,06/10/2023,12074338,"5,498.78",Private Contractors,Other Agencies
Southend-on-Sea City Council,http://www.opendatacommunities.org/id/unitary-authority/southend,ED Children & Public Health,Children And Education Services,3250,FOSTERING SUPPORT GROUP,06/10/2023,12074338,"6,981.90",Private Contractors,Other Agencies
Southend-on-Sea City Council,http://www.opendatacommunities.org/id/unitary-authority/southend,ED Children & Public Health,Children And Education Services,3250,FUTURES FOR CHILDREN,06/10/2023,12074338,"4,266.22",Private Contractors,Other Agencies
Southend-on-Sea City Council,http://www.opendatacommunities.org/id/unitary-authority/southend,ED Children & Public Health,Children And Education Services,3250,FUTURES FOR CHILDREN,06/10/2023,12074338,"3,520.98",Private Contractors,Other Agencies
Southend-on-Sea City Council,http://www.opendatacommunities.org/id/unitary-authority/southend,ED Children & Public Health,Children And Education Services,3250,FUTURES FOR CHILDREN,06/10/2023,12074338,"4,266.22",Private Contractors,Other Agencies
Southend-on-Sea City Council,http://www.opendatacommunities.org/id/unitary-authority/southend,ED Children & Public Health,Children And Education Services,3250,FUTURES FOR CHILDREN,06/10/2023,12074338,"3,485.95",Private Contractors,Other Agencies
Southend-on-Sea City Council,http://www.opendatacommunities.org/id/unitary-authority/southend,ED Adults & Communities,Adult Social Care,1209,GORDON ELLIS & CO T/A LANGHAM,06/10/2023,12074338,889.1,Tools And Equipment Purchase,Equipment Furniture And Materials
Southend-on-Sea City Council,http://www.opendatacommunities.org/id/unitary-authority/southend,ED Adults & Communities,Adult Social Care,1105,HALES GROUP LTD,06/10/2023,12074338,697.06,Private Contractors,Other Agencies
Southend-on-Sea City Council,http://www.opendatacommunities.org/id/unitary-authority/southend,ED Adults & Communities,Adult Social Care,1105,HALES GROUP LTD,06/10/2023,12074338,697.06,Private Contractors,Other Agencies
Southend-on-Sea City Council,http://www.opendatacommunities.org/id/unitary-authority/southend,ED Adults & Communities,Adult Social Care,1105,HALES GROUP LTD,06/10/2023,12074338,697.06,Private Contractors,Other Agencies
Southend-on-Sea City Council,http://www.opendatacommunities.org/id/unitary-authority/southend,ED Adults & Communities,Adult Social Care,1105,HALES GROUP LTD,06/10/2023,12074338,697.06,Private Contractors,Other Agencies
Southend-on-Sea City Council,http://www.opendatacommunities.org/id/unitary-authority/southend,ED Adults & Communities,Adult Social Care,1105,HALES GROUP LTD,06/10/2023,12074338,674.56,Private Contractors,Other Agencies
Southend-on-Sea City Council,http://www.opendatacommunities.org/id/unitary-authority/southend,ED Adults & Communities,Adult Social Care,1105,HALES GROUP LTD,06/10/2023,12074338,"2,057.45",Private Contractors,Other Agencies
Southend-on-Sea City Council,http://www.opendatacommunities.org/id/unitary-authority/southend,ED Adults & Communities,Adult Social Care,1365,HAYS SPECIALIST RECRUITMENT LTD RECEIPTS RECRUITMENT FILE ONLY,06/10/2023,12074338,"1,332.38",Agency Staff,Direct Employee Expenses
Southend-on-Sea City Council,http://www.opendatacommunities.org/id/unitary-authority/southend,ED Adults & Communities,Adult Social Care,1365,HAYS SPECIALIST RECRUITMENT LTD RECEIPTS RECRUITMENT FILE ONLY,06/10/2023,12074338,"1,376.25",Agency Staff,Direct Employee Expenses
Southend-on-Sea City Council,http://www.opendatacommunities.org/id/unitary-authority/southend,ED Adults & Communities,Adult Social Care,1180,HAYS SPECIALIST RECRUITMENT LTD RECEIPTS RECRUITMENT FILE ONLY,06/10/2023,12074338,"1,332.39",Agency Staff,Direct Employee Expenses
Southend-on-Sea City Council,http://www.opendatacommunities.org/id/unitary-authority/southend,ED Adults & Communities,Adult Social Care,1180,HAYS SPECIALIST RECRUITMENT LTD RECEIPTS RECRUITMENT FILE ONLY,06/10/2023,12074338,"1,074.11",Agency Staff,Direct Employee Expenses
Southend-on-Sea City Council,http://www.opendatacommunities.org/id/unitary-authority/southend,ED Adults & Communities,Adult Social Care,1051,HAYS SPECIALIST RECRUITMENT LTD RECEIPTS RECRUITMENT FILE ONLY,06/10/2023,12074338,"1,086.78",Agency Staff,Direct Employee Expenses
Southend-on-Sea City Council,http://www.opendatacommunities.org/id/unitary-authority/southend,ED Adults & Communities,Adult Social Care,1180,HAYS SPECIALIST RECRUITMENT LTD RECEIPTS RECRUITMENT FILE ONLY,06/10/2023,12074338,679.14,Agency Staff,Direct Employee Expenses
Southend-on-Sea City Council,http://www.opendatacommunities.org/id/unitary-authority/southend,ED Adults & Communities,Adult Social Care,1490,HAYS SPECIALIST RECRUITMENT LTD RECEIPTS RECRUITMENT FILE ONLY,06/10/2023,12074338,738.6,Agency Staff,Direct Employee Expenses
Southend-on-Sea City Council,http://www.opendatacommunities.org/id/unitary-authority/southend,ED Adults & Communities,Adult Social Care,1490,HAYS SPECIALIST RECRUITMENT LTD RECEIPTS RECRUITMENT FILE ONLY,06/10/2023,12074338,"1,107.90",Agency Staff,Direct Employee Expenses
Southend-on-Sea City Council,http://www.opendatacommunities.org/id/unitary-authority/southend,ED Adults & Communities,Adult Social Care,1342,HAYS SPECIALIST RECRUITMENT LTD RECEIPTS RECRUITMENT FILE ONLY,06/10/2023,12074338,"2,294.28",Agency Staff,Direct Employee Expenses
Southend-on-Sea City Council,http://www.opendatacommunities.org/id/unitary-authority/southend,ED Adults & Communities,Adult Social Care,1051,HAYS SPECIALIST RECRUITMENT LTD RECEIPTS RECRUITMENT FILE ONLY,06/10/2023,12074338,"1,338.66",Agency Staff,Direct Employee Expenses
Southend-on-Sea City Council,http://www.opendatacommunities.org/id/unitary-authority/southend,ED Adults & Communities,Adult Social Care,1490,HAYS SPECIALIST RECRUITMENT LTD RECEIPTS RECRUITMENT FILE ONLY,06/10/2023,12074338,"1,107.90",Agency Staff,Direct Employee Expenses
Southend-on-Sea City Council,http://www.opendatacommunities.org/id/unitary-authority/southend,ED Adults & Communities,Adult Social Care,1051,HAYS SPECIALIST RECRUITMENT LTD RECEIPTS RECRUITMENT FILE ONLY,06/10/2023,12074338,"1,071.60",Agency Staff,Direct Employee Expenses
Southend-on-Sea City Council,http://www.opendatacommunities.org/id/unitary-authority/southend,ED Adults & Communities,Adult Social Care,1490,HAYS SPECIALIST RECRUITMENT LTD RECEIPTS RECRUITMENT FILE ONLY,06/10/2023,12074338,738.6,Agency Staff,Direct Employee Expenses
Southend-on-Sea City Council,http://www.opendatacommunities.org/id/unitary-authority/southend,ED Adults & Communities,Adult Social Care,1365,HAYS SPECIALIST RECRUITMENT LTD RECEIPTS RECRUITMENT FILE ONLY,06/10/2023,12074338,"1,000.16",Agency Staff,Direct Employee Expenses
Southend-on-Sea City Council,http://www.opendatacommunities.org/id/unitary-authority/southend,ED Adults & Communities,Adult Social Care,1180,HAYS SPECIALIST RECRUITMENT LTD RECEIPTS RECRUITMENT FILE ONLY,06/10/2023,12074338,"1,126.62",Agency Staff,Direct Employee Expenses
Southend-on-Sea City Council,http://www.opendatacommunities.org/id/unitary-authority/southend,ED Adults & Communities,Adult Social Care,1352,HAYS SPECIALIST RECRUITMENT LTD RECEIPTS RECRUITMENT FILE ONLY,06/10/2023,12074338,"1,140.88",Agency Staff,Direct Employee Expenses
Southend-on-Sea City Council,http://www.opendatacommunities.org/id/unitary-authority/southend,ED Adults & Communities,Adult Social Care,1365,HAYS SPECIALIST RECRUITMENT LTD RECEIPTS RECRUITMENT FILE ONLY,06/10/2023,12074338,"1,656.67",Agency Staff,Direct Employee Expenses
Southend-on-Sea City Council,http://www.opendatacommunities.org/id/unitary-authority/southend,ED Adults & Communities,Adult Social Care,1350,HAYS SPECIALIST RECRUITMENT LTD RECEIPTS RECRUITMENT FILE ONLY,06/10/2023,12074338,"-1,086.78",Agency Staff,Direct Employee Expenses
Southend-on-Sea City Council,http://www.opendatacommunities.org/id/unitary-authority/southend,ED Adults & Communities,Adult Social Care,1350,HAYS SPECIALIST RECRUITMENT LTD RECEIPTS RECRUITMENT FILE ONLY,06/10/2023,12074338,"-1,363.08",Agency Staff,Direct Employee Expenses
Southend-on-Sea City Council,http://www.opendatacommunities.org/id/unitary-authority/southend,ED Adults & Communities,Adult Social Care,1350,HAYS SPECIALIST RECRUITMENT LTD RECEIPTS RECRUITMENT FILE ONLY,06/10/2023,12074338,"-1,363.08",Agency Staff,Direct Employee Expenses
Southend-on-Sea City Council,http://www.opendatacommunities.org/id/unitary-authority/southend,ED Adults & Communities,Adult Social Care,1350,HAYS SPECIALIST RECRUITMENT LTD RECEIPTS RECRUITMENT FILE ONLY,06/10/2023,12074338,"-1,363.08",Agency Staff,Direct Employee Expenses
Southend-on-Sea City Council,http://www.opendatacommunities.org/id/unitary-authority/southend,ED Adults & Communities,Adult Social Care,1350,HAYS SPECIALIST RECRUITMENT LTD RECEIPTS RECRUITMENT FILE ONLY,06/10/2023,12074338,"-1,363.08",Agency Staff,Direct Employee Expenses
Southend-on-Sea City Council,http://www.opendatacommunities.org/id/unitary-authority/southend,ED Adults & Communities,Adult Social Care,1350,HAYS SPECIALIST RECRUITMENT LTD RECEIPTS RECRUITMENT FILE ONLY,06/10/2023,12074338,"-1,363.08",Agency Staff,Direct Employee Expenses
Southend-on-Sea City Council,http://www.opendatacommunities.org/id/unitary-authority/southend,ED Adults & Communities,Adult Social Care,1350,HAYS SPECIALIST RECRUITMENT LTD RECEIPTS RECRUITMENT FILE ONLY,06/10/2023,12074338,"-1,086.78",Agency Staff,Direct Employee Expenses
Southend-on-Sea City Council,http://www.opendatacommunities.org/id/unitary-authority/southend,ED Adults & Communities,Adult Social Care,1350,HAYS SPECIALIST RECRUITMENT LTD RECEIPTS RECRUITMENT FILE ONLY,06/10/2023,12074338,"-1,363.08",Agency Staff,Direct Employee Expenses
Southend-on-Sea City Council,http://www.opendatacommunities.org/id/unitary-authority/southend,ED Adults & Communities,Adult Social Care,1490,HAYS SPECIALIST RECRUITMENT LTD RECEIPTS RECRUITMENT FILE ONLY,06/10/2023,12074338,553.95,Agency Staff,Direct Employee Expenses
Southend-on-Sea City Council,http://www.opendatacommunities.org/id/unitary-authority/southend,ED Adults & Communities,Cultural And Related Services,4120,HAYS SPECIALIST RECRUITMENT LTD RECEIPTS RECRUITMENT FILE ONLY,06/10/2023,12074338,619.1,Agency Staff,Direct Employee Expenses
Southend-on-Sea City Council,http://www.opendatacommunities.org/id/unitary-authority/southend,ED Adults & Communities,Cultural And Related Services,4120,HAYS SPECIALIST RECRUITMENT LTD RECEIPTS RECRUITMENT FILE ONLY,06/10/2023,12074338,553.83,Agency Staff,Direct Employee Expenses
Southend-on-Sea City Council,http://www.opendatacommunities.org/id/unitary-authority/southend,ED Adults & Communities,Cultural And Related Services,4120,HAYS SPECIALIST RECRUITMENT LTD RECEIPTS RECRUITMENT FILE ONLY,06/10/2023,12074338,609.4,Agency Staff,Direct Employee Expenses
Southend-on-Sea City Council,http://www.opendatacommunities.org/id/unitary-authority/southend,ED Adults & Communities,Cultural And Related Services,4120,HAYS SPECIALIST RECRUITMENT LTD RECEIPTS RECRUITMENT FILE ONLY,06/10/2023,12074338,846.36,Agency Staff,Direct Employee Expenses
Southend-on-Sea City Council,http://www.opendatacommunities.org/id/unitary-authority/southend,ED Adults & Communities,Cultural And Related Services,4120,HAYS SPECIALIST RECRUITMENT LTD RECEIPTS RECRUITMENT FILE ONLY,06/10/2023,12074338,728.33,Agency Staff,Direct Employee Expenses
Southend-on-Sea City Council,http://www.opendatacommunities.org/id/unitary-authority/southend,ED Adults & Communities,Cultural And Related Services,4120,HAYS SPECIALIST RECRUITMENT LTD RECEIPTS RECRUITMENT FILE ONLY,06/10/2023,12074338,975.12,Agency Staff,Direct Employee Expenses
Southend-on-Sea City Council,http://www.opendatacommunities.org/id/unitary-authority/southend,ED Adults & Communities,Cultural And Related Services,4120,HAYS SPECIALIST RECRUITMENT LTD RECEIPTS RECRUITMENT FILE ONLY,06/10/2023,12074338,537.57,Agency Staff,Direct Employee Expenses
Southend-on-Sea City Council,http://www.opendatacommunities.org/id/unitary-authority/southend,ED Adults & Communities,Cultural And Related Services,4120,HAYS SPECIALIST RECRUITMENT LTD RECEIPTS RECRUITMENT FILE ONLY,06/10/2023,12074338,683.83,Agency Staff,Direct Employee Expenses
Southend-on-Sea City Council,http://www.opendatacommunities.org/id/unitary-authority/southend,ED Adults & Communities,Cultural And Related Services,4015,HAYS SPECIALIST RECRUITMENT LTD RECEIPTS RECRUITMENT FILE ONLY,06/10/2023,12074338,579.12,Agency Staff,Direct Employee Expenses
Southend-on-Sea City Council,http://www.opendatacommunities.org/id/unitary-authority/southend,ED Adults & Communities,Cultural And Related Services,4120,HAYS SPECIALIST RECRUITMENT LTD RECEIPTS RECRUITMENT FILE ONLY,06/10/2023,12074338,578.11,Agency Staff,Direct Employee Expenses
Southend-on-Sea City Council,http://www.opendatacommunities.org/id/unitary-authority/southend,ED Adults & Communities,Cultural And Related Services,4015,HAYS SPECIALIST RECRUITMENT LTD RECEIPTS RECRUITMENT FILE ONLY,06/10/2023,12074338,545.7,Agency Staff,Direct Employee Expenses
Southend-on-Sea City Council,http://www.opendatacommunities.org/id/unitary-authority/southend,ED Adults & Communities,Cultural And Related Services,4120,HAYS SPECIALIST RECRUITMENT LTD RECEIPTS RECRUITMENT FILE ONLY,06/10/2023,12074338,609.4,Agency Staff,Direct Employee Expenses
Southend-on-Sea City Council,http://www.opendatacommunities.org/id/unitary-authority/southend,ED Adults & Communities,Cultural And Related Services,4120,HAYS SPECIALIST RECRUITMENT LTD RECEIPTS RECRUITMENT FILE ONLY,06/10/2023,12074338,596.07,Agency Staff,Direct Employee Expenses
Southend-on-Sea City Council,http://www.opendatacommunities.org/id/unitary-authority/southend,ED Adults & Communities,Adult Social Care,4522,HAYS SPECIALIST RECRUITMENT LTD RECEIPTS RECRUITMENT FILE ONLY,06/10/2023,12074338,"3,335.75",Agency Staff,Direct Employee Expenses
Southend-on-Sea City Council,http://www.opendatacommunities.org/id/unitary-authority/southend,ED Adults & Communities,Adult Social Care,4522,HAYS SPECIALIST RECRUITMENT LTD RECEIPTS RECRUITMENT FILE ONLY,06/10/2023,12074338,"2,668.60",Agency Staff,Direct Employee Expenses
Southend-on-Sea City Council,http://www.opendatacommunities.org/id/unitary-authority/southend,ED Adults & Communities,Housing Services,1011,HAYS SPECIALIST RECRUITMENT LTD RECEIPTS RECRUITMENT FILE ONLY,06/10/2023,12074338,"2,090.28",Agency Staff,Direct Employee Expenses
Southend-on-Sea City Council,http://www.opendatacommunities.org/id/unitary-authority/southend,ED Children & Public Health,Adult Social Care,1035,HAYS SPECIALIST RECRUITMENT LTD RECEIPTS RECRUITMENT FILE ONLY,06/10/2023,12074338,"2,258.37",Agency Staff,Direct Employee Expenses
Southend-on-Sea City Council,http://www.opendatacommunities.org/id/unitary-authority/southend,ED Children & Public Health,Adult Social Care,1035,HAYS SPECIALIST RECRUITMENT LTD RECEIPTS RECRUITMENT FILE ONLY,06/10/2023,12074338,"2,509.30",Agency Staff,Direct Employee Expenses
Southend-on-Sea City Council,http://www.opendatacommunities.org/id/unitary-authority/southend,ED Children & Public Health,Adult Social Care,1035,HAYS SPECIALIST RECRUITMENT LTD RECEIPTS RECRUITMENT FILE ONLY,06/10/2023,12074338,"2,509.30",Agency Staff,Direct Employee Expenses
Southend-on-Sea City Council,http://www.opendatacommunities.org/id/unitary-authority/southend,ED Children & Public Health,Adult Social Care,1035,HAYS SPECIALIST RECRUITMENT LTD RECEIPTS RECRUITMENT FILE ONLY,06/10/2023,12074338,"1,505.58",Agency Staff,Direct Employee Expenses
Southend-on-Sea City Council,http://www.opendatacommunities.org/id/unitary-authority/southend,ED Children & Public Health,Adult Social Care,1035,HAYS SPECIALIST RECRUITMENT LTD RECEIPTS RECRUITMENT FILE ONLY,06/10/2023,12074338,"2,509.30",Agency Staff,Direct Employee Expenses
Southend-on-Sea City Council,http://www.opendatacommunities.org/id/unitary-authority/southend,ED Children & Public Health,Adult Social Care,1035,HAYS SPECIALIST RECRUITMENT LTD RECEIPTS RECRUITMENT FILE ONLY,06/10/2023,12074338,"2,509.30",Agency Staff,Direct Employee Expenses
Southend-on-Sea City Council,http://www.opendatacommunities.org/id/unitary-authority/southend,ED Children & Public Health,Adult Social Care,1035,HAYS SPECIALIST RECRUITMENT LTD RECEIPTS RECRUITMENT FILE ONLY,06/10/2023,12074338,"2,509.30",Agency Staff,Direct Employee Expenses
Southend-on-Sea City Council,http://www.opendatacommunities.org/id/unitary-authority/southend,ED Children & Public Health,Adult Social Care,1035,HAYS SPECIALIST RECRUITMENT LTD RECEIPTS RECRUITMENT FILE ONLY,06/10/2023,12074338,"2,007.44",Agency Staff,Direct Employee Expenses
Southend-on-Sea City Council,http://www.opendatacommunities.org/id/unitary-authority/southend,ED Children & Public Health,Adult Social Care,1035,HAYS SPECIALIST RECRUITMENT LTD RECEIPTS RECRUITMENT FILE ONLY,06/10/2023,12074338,625.8,Agency Staff,Direct Employee Expenses
Southend-on-Sea City Council,http://www.opendatacommunities.org/id/unitary-authority/southend,ED Children & Public Health,Children And Education Services,3993,HAYS SPECIALIST RECRUITMENT LTD RECEIPTS RECRUITMENT FILE ONLY,06/10/2023,12074338,"1,404.30",Agency Staff,Direct Employee Expenses
Southend-on-Sea City Council,http://www.opendatacommunities.org/id/unitary-authority/southend,ED Children & Public Health,Children And Education Services,3265,HAYS SPECIALIST RECRUITMENT LTD RECEIPTS RECRUITMENT FILE ONLY,06/10/2023,12074338,"1,161.60",Agency Staff,Direct Employee Expenses
Southend-on-Sea City Council,http://www.opendatacommunities.org/id/unitary-authority/southend,ED Children & Public Health,Children And Education Services,3890,HAYS SPECIALIST RECRUITMENT LTD RECEIPTS RECRUITMENT FILE ONLY,06/10/2023,12074338,542.08,Agency Staff,Direct Employee Expenses
Southend-on-Sea City Council,http://www.opendatacommunities.org/id/unitary-authority/southend,ED Children & Public Health,Children And Education Services,3590,HAYS SPECIALIST RECRUITMENT LTD RECEIPTS RECRUITMENT FILE ONLY,06/10/2023,12074338,"1,311.60",Agency Staff,Direct Employee Expenses
Southend-on-Sea City Council,http://www.opendatacommunities.org/id/unitary-authority/southend,ED Children & Public Health,Children And Education Services,3790,HAYS SPECIALIST RECRUITMENT LTD RECEIPTS RECRUITMENT FILE ONLY,06/10/2023,12074338,"1,394.08",Agency Staff,Direct Employee Expenses
Southend-on-Sea City Council,http://www.opendatacommunities.org/id/unitary-authority/southend,ED Children & Public Health,Children And Education Services,3993,HAYS SPECIALIST RECRUITMENT LTD RECEIPTS RECRUITMENT FILE ONLY,06/10/2023,12074338,"1,357.80",Agency Staff,Direct Employee Expenses
Southend-on-Sea City Council,http://www.opendatacommunities.org/id/unitary-authority/southend,ED Children & Public Health,Children And Education Services,3231,HAYS SPECIALIST RECRUITMENT LTD RECEIPTS RECRUITMENT FILE ONLY,06/10/2023,12074338,"2,017.64",Agency Staff,Direct Employee Expenses
Southend-on-Sea City Council,http://www.opendatacommunities.org/id/unitary-authority/southend,ED Children & Public Health,Children And Education Services,3265,HAYS SPECIALIST RECRUITMENT LTD RECEIPTS RECRUITMENT FILE ONLY,06/10/2023,12074338,"1,424.08",Agency Staff,Direct Employee Expenses
Southend-on-Sea City Council,http://www.opendatacommunities.org/id/unitary-authority/southend,ED Children & Public Health,Children And Education Services,3890,HAYS SPECIALIST RECRUITMENT LTD RECEIPTS RECRUITMENT FILE ONLY,06/10/2023,12074338,"1,259.94",Agency Staff,Direct Employee Expenses
Southend-on-Sea City Council,http://www.opendatacommunities.org/id/unitary-authority/southend,ED Children & Public Health,Children And Education Services,3890,HAYS SPECIALIST RECRUITMENT LTD RECEIPTS RECRUITMENT FILE ONLY,06/10/2023,12074338,"1,401.60",Agency Staff,Direct Employee Expenses
Southend-on-Sea City Council,http://www.opendatacommunities.org/id/unitary-authority/southend,ED Children & Public Health,Children And Education Services,3265,HAYS SPECIALIST RECRUITMENT LTD RECEIPTS RECRUITMENT FILE ONLY,06/10/2023,12074338,737.95,Agency Staff,Direct Employee Expenses
Southend-on-Sea City Council,http://www.opendatacommunities.org/id/unitary-authority/southend,ED Children & Public Health,Children And Education Services,3590,HAYS SPECIALIST RECRUITMENT LTD RECEIPTS RECRUITMENT FILE ONLY,06/10/2023,12074338,874.69,Agency Staff,Direct Employee Expenses
Southend-on-Sea City Council,http://www.opendatacommunities.org/id/unitary-authority/southend,ED Children & Public Health,Children And Education Services,3790,HAYS SPECIALIST RECRUITMENT LTD RECEIPTS RECRUITMENT FILE ONLY,06/10/2023,12074338,"1,401.60",Agency Staff,Direct Employee Expenses
Southend-on-Sea City Council,http://www.opendatacommunities.org/id/unitary-authority/southend,ED Children & Public Health,Children And Education Services,3290,HAYS SPECIALIST RECRUITMENT LTD RECEIPTS RECRUITMENT FILE ONLY,06/10/2023,12074338,"1,251.60",Agency Staff,Direct Employee Expenses
Southend-on-Sea City Council,http://www.opendatacommunities.org/id/unitary-authority/southend,ED Children & Public Health,Children And Education Services,3480,HAYS SPECIALIST RECRUITMENT LTD RECEIPTS RECRUITMENT FILE ONLY,06/10/2023,12074338,"1,321.64",Agency Staff,Direct Employee Expenses
Southend-on-Sea City Council,http://www.opendatacommunities.org/id/unitary-authority/southend,ED Children & Public Health,Children And Education Services,3480,HAYS SPECIALIST RECRUITMENT LTD RECEIPTS RECRUITMENT FILE ONLY,06/10/2023,12074338,"1,071.60",Agency Staff,Direct Employee Expenses
Southend-on-Sea City Council,http://www.opendatacommunities.org/id/unitary-authority/southend,ED Children & Public Health,Children And Education Services,3220,HAYS SPECIALIST RECRUITMENT LTD RECEIPTS RECRUITMENT FILE ONLY,06/10/2023,12074338,"1,596.16",Agency Staff,Direct Employee Expenses
Southend-on-Sea City Council,http://www.opendatacommunities.org/id/unitary-authority/southend,ED Children & Public Health,Children And Education Services,3183,HAYS SPECIALIST RECRUITMENT LTD RECEIPTS RECRUITMENT FILE ONLY,06/10/2023,12074338,"1,346.20",Agency Staff,Direct Employee Expenses
Southend-on-Sea City Council,http://www.opendatacommunities.org/id/unitary-authority/southend,ED Children & Public Health,Children And Education Services,3790,HAYS SPECIALIST RECRUITMENT LTD RECEIPTS RECRUITMENT FILE ONLY,06/10/2023,12074338,"1,251.60",Agency Staff,Direct Employee Expenses
Southend-on-Sea City Council,http://www.opendatacommunities.org/id/unitary-authority/southend,ED Children & Public Health,Children And Education Services,3790,HAYS SPECIALIST RECRUITMENT LTD RECEIPTS RECRUITMENT FILE ONLY,06/10/2023,12074338,822.37,Agency Staff,Direct Employee Expenses
Southend-on-Sea City Council,http://www.opendatacommunities.org/id/unitary-authority/southend,ED Children & Public Health,Children And Education Services,3200,HAYS SPECIALIST RECRUITMENT LTD RECEIPTS RECRUITMENT FILE ONLY,06/10/2023,12074338,"2,294.28",Agency Staff,Direct Employee Expenses
Southend-on-Sea City Council,http://www.opendatacommunities.org/id/unitary-authority/southend,ED Children & Public Health,Children And Education Services,3790,HAYS SPECIALIST RECRUITMENT LTD RECEIPTS RECRUITMENT FILE ONLY,06/10/2023,12074338,"1,345.92",Agency Staff,Direct Employee Expenses
Southend-on-Sea City Council,http://www.opendatacommunities.org/id/unitary-authority/southend,ED Children & Public Health,Children And Education Services,3590,HAYS SPECIALIST RECRUITMENT LTD RECEIPTS RECRUITMENT FILE ONLY,06/10/2023,12074338,823.6,Agency Staff,Direct Employee Expenses
Southend-on-Sea City Council,http://www.opendatacommunities.org/id/unitary-authority/southend,ED Children & Public Health,Children And Education Services,3265,HAYS SPECIALIST RECRUITMENT LTD RECEIPTS RECRUITMENT FILE ONLY,06/10/2023,12074338,"1,452.13",Agency Staff,Direct Employee Expenses
Southend-on-Sea City Council,http://www.opendatacommunities.org/id/unitary-authority/southend,ED Children & Public Health,Children And Education Services,3220,HAYS SPECIALIST RECRUITMENT LTD RECEIPTS RECRUITMENT FILE ONLY,06/10/2023,12074338,894.24,Agency Staff,Direct Employee Expenses
Southend-on-Sea City Council,http://www.opendatacommunities.org/id/unitary-authority/southend,ED Children & Public Health,Children And Education Services,3790,HAYS SPECIALIST RECRUITMENT LTD RECEIPTS RECRUITMENT FILE ONLY,06/10/2023,12074338,"1,398.60",Agency Staff,Direct Employee Expenses
Southend-on-Sea City Council,http://www.opendatacommunities.org/id/unitary-authority/southend,ED Children & Public Health,Children And Education Services,3455,HAYS SPECIALIST RECRUITMENT LTD RECEIPTS RECRUITMENT FILE ONLY,06/10/2023,12074338,"1,201.24",Agency Staff,Direct Employee Expenses
Southend-on-Sea City Council,http://www.opendatacommunities.org/id/unitary-authority/southend,ED Children & Public Health,Children And Education Services,3590,HAYS SPECIALIST RECRUITMENT LTD RECEIPTS RECRUITMENT FILE ONLY,06/10/2023,12074338,"1,293.32",Agency Staff,Direct Employee Expenses
Southend-on-Sea City Council,http://www.opendatacommunities.org/id/unitary-authority/southend,ED Children & Public Health,Children And Education Services,3290,HAYS SPECIALIST RECRUITMENT LTD RECEIPTS RECRUITMENT FILE ONLY,06/10/2023,12074338,"1,292.72",Agency Staff,Direct Employee Expenses
Southend-on-Sea City Council,http://www.opendatacommunities.org/id/unitary-authority/southend,ED Children & Public Health,Children And Education Services,3790,HAYS SPECIALIST RECRUITMENT LTD RECEIPTS RECRUITMENT FILE ONLY,06/10/2023,12074338,"1,238.58",Agency Staff,Direct Employee Expenses
Southend-on-Sea City Council,http://www.opendatacommunities.org/id/unitary-authority/southend,ED Children & Public Health,Children And Education Services,3315,HAYS SPECIALIST RECRUITMENT LTD RECEIPTS RECRUITMENT FILE ONLY,06/10/2023,12074338,"1,520.40",Agency Staff,Direct Employee Expenses
Southend-on-Sea City Council,http://www.opendatacommunities.org/id/unitary-authority/southend,ED Finance & Resources,Central Services,7096,HAYS SPECIALIST RECRUITMENT LTD RECEIPTS RECRUITMENT FILE ONLY,06/10/2023,12074338,538.08,Agency Staff,Direct Employee Expenses
Southend-on-Sea City Council,http://www.opendatacommunities.org/id/unitary-authority/southend,ED Finance & Resources,Central Services,7075,HAYS SPECIALIST RECRUITMENT LTD RECEIPTS RECRUITMENT FILE ONLY,06/10/2023,12074338,"3,163.00",Agency Staff,Direct Employee Expenses
Southend-on-Sea City Council,http://www.opendatacommunities.org/id/unitary-authority/southend,ED Finance & Resources,Housing Services,7150,HAYS SPECIALIST RECRUITMENT LTD RECEIPTS RECRUITMENT FILE ONLY,06/10/2023,12074338,"2,064.88",Agency Staff,Direct Employee Expenses
Southend-on-Sea City Council,http://www.opendatacommunities.org/id/unitary-authority/southend,ED Finance & Resources,Housing Services,6165,HAYS SPECIALIST RECRUITMENT LTD RECEIPTS RECRUITMENT FILE ONLY,06/10/2023,12074338,620.2,Agency Staff,Direct Employee Expenses
Southend-on-Sea City Council,http://www.opendatacommunities.org/id/unitary-authority/southend,ED Finance & Resources,Central Services,7185,HAYS SPECIALIST RECRUITMENT LTD RECEIPTS RECRUITMENT FILE ONLY,06/10/2023,12074338,529.51,Agency Staff,Direct Employee Expenses
Southend-on-Sea City Council,http://www.opendatacommunities.org/id/unitary-authority/southend,ED Finance & Resources,Central Services,7185,HAYS SPECIALIST RECRUITMENT LTD RECEIPTS RECRUITMENT FILE ONLY,06/10/2023,12074338,520.54,Agency Staff,Direct Employee Expenses
Southend-on-Sea City Council,http://www.opendatacommunities.org/id/unitary-authority/southend,ED Growth & Housing,Adult Social Care,6012,HAYS SPECIALIST RECRUITMENT LTD RECEIPTS RECRUITMENT FILE ONLY,06/10/2023,12074338,682.91,Agency Staff,Direct Employee Expenses
Southend-on-Sea City Council,http://www.opendatacommunities.org/id/unitary-authority/southend,ED Growth & Housing,Adult Social Care,6012,HAYS SPECIALIST RECRUITMENT LTD RECEIPTS RECRUITMENT FILE ONLY,06/10/2023,12074338,682.91,Agency Staff,Direct Employee Expenses
Southend-on-Sea City Council,http://www.opendatacommunities.org/id/unitary-authority/southend,ED Growth & Housing,Housing Services,6010,HAYS SPECIALIST RECRUITMENT LTD RECEIPTS RECRUITMENT FILE ONLY,06/10/2023,12074338,"1,083.92",Recruitment,Indirect Employee Expenses
Southend-on-Sea City Council,http://www.opendatacommunities.org/id/unitary-authority/southend,ED Growth & Housing,Planning Services,5641,HAYS SPECIALIST RECRUITMENT LTD RECEIPTS RECRUITMENT FILE ONLY,06/10/2023,12074338,817.95,Agency Staff,Direct Employee Expenses
Southend-on-Sea City Council,http://www.opendatacommunities.org/id/unitary-authority/southend,ED Growth & Housing,Planning Services,5641,HAYS SPECIALIST RECRUITMENT LTD RECEIPTS RECRUITMENT FILE ONLY,06/10/2023,12074338,817.95,Agency Staff,Direct Employee Expenses
Southend-on-Sea City Council,http://www.opendatacommunities.org/id/unitary-authority/southend,ED Neighbourhoods & Environment,Cultural and Related Services,7505,HAYS SPECIALIST RECRUITMENT LTD RECEIPTS RECRUITMENT FILE ONLY,06/10/2023,12074338,601.27,Agency Staff,Direct Employee Expenses
Southend-on-Sea City Council,http://www.opendatacommunities.org/id/unitary-authority/southend,ED Neighbourhoods & Environment,Cultural and Related Services,7505,HAYS SPECIALIST RECRUITMENT LTD RECEIPTS RECRUITMENT FILE ONLY,06/10/2023,12074338,601.25,Agency Staff,Direct Employee Expenses
Southend-on-Sea City Council,http://www.opendatacommunities.org/id/unitary-authority/southend,ED Neighbourhoods & Environment,Cultural and Related Services,7505,HAYS SPECIALIST RECRUITMENT LTD RECEIPTS RECRUITMENT FILE ONLY,06/10/2023,12074338,601.25,Agency Staff,Direct Employee Expenses
Southend-on-Sea City Council,http://www.opendatacommunities.org/id/unitary-authority/southend,ED Neighbourhoods & Environment,Cultural and Related Services,7505,HAYS SPECIALIST RECRUITMENT LTD RECEIPTS RECRUITMENT FILE ONLY,06/10/2023,12074338,601.27,Agency Staff,Direct Employee Expenses
Southend-on-Sea City Council,http://www.opendatacommunities.org/id/unitary-authority/southend,ED Neighbourhoods & Environment,Cultural and Related Services,7505,HAYS SPECIALIST RECRUITMENT LTD RECEIPTS RECRUITMENT FILE ONLY,06/10/2023,12074338,552.51,Agency Staff,Direct Employee Expenses
Southend-on-Sea City Council,http://www.opendatacommunities.org/id/unitary-authority/southend,ED Neighbourhoods & Environment,Cultural and Related Services,7505,HAYS SPECIALIST RECRUITMENT LTD RECEIPTS RECRUITMENT FILE ONLY,06/10/2023,12074338,511.88,Agency Staff,Direct Employee Expenses
Southend-on-Sea City Council,http://www.opendatacommunities.org/id/unitary-authority/southend,ED Neighbourhoods & Environment,Cultural and Related Services,7505,HAYS SPECIALIST RECRUITMENT LTD RECEIPTS RECRUITMENT FILE ONLY,06/10/2023,12074338,601.27,Agency Staff,Direct Employee Expenses
Southend-on-Sea City Council,http://www.opendatacommunities.org/id/unitary-authority/southend,ED Neighbourhoods & Environment,Cultural and Related Services,7505,HAYS SPECIALIST RECRUITMENT LTD RECEIPTS RECRUITMENT FILE ONLY,06/10/2023,12074338,601.27,Agency Staff,Direct Employee Expenses
Southend-on-Sea City Council,http://www.opendatacommunities.org/id/unitary-authority/southend,ED Neighbourhoods & Environment,Cultural and Related Services,7505,HAYS SPECIALIST RECRUITMENT LTD RECEIPTS RECRUITMENT FILE ONLY,06/10/2023,12074338,601.27,Agency Staff,Direct Employee Expenses
Southend-on-Sea City Council,http://www.opendatacommunities.org/id/unitary-authority/southend,ED Neighbourhoods & Environment,Cultural and Related Services,7505,HAYS SPECIALIST RECRUITMENT LTD RECEIPTS RECRUITMENT FILE ONLY,06/10/2023,12074338,601.27,Agency Staff,Direct Employee Expenses
Southend-on-Sea City Council,http://www.opendatacommunities.org/id/unitary-authority/southend,ED Neighbourhoods & Environment,Cultural and Related Services,7505,HAYS SPECIALIST RECRUITMENT LTD RECEIPTS RECRUITMENT FILE ONLY,06/10/2023,12074338,641.88,Agency Staff,Direct Employee Expenses
Southend-on-Sea City Council,http://www.opendatacommunities.org/id/unitary-authority/southend,ED Neighbourhoods & Environment,Environmental And Regulatory Services,4506,HAYS SPECIALIST RECRUITMENT LTD RECEIPTS RECRUITMENT FILE ONLY,06/10/2023,12074338,601.25,Agency Staff,Direct Employee Expenses
Southend-on-Sea City Council,http://www.opendatacommunities.org/id/unitary-authority/southend,ED Neighbourhoods & Environment,Environmental And Regulatory Services,7031,HAYS SPECIALIST RECRUITMENT LTD RECEIPTS RECRUITMENT FILE ONLY,06/10/2023,12074338,"1,162.14",Agency Staff,Direct Employee Expenses
Southend-on-Sea City Council,http://www.opendatacommunities.org/id/unitary-authority/southend,ED Neighbourhoods & Environment,Environmental And Regulatory Services,4535,HAYS SPECIALIST RECRUITMENT LTD RECEIPTS RECRUITMENT FILE ONLY,06/10/2023,12074338,573.57,Agency Staff,Direct Employee Expenses
Southend-on-Sea City Council,http://www.opendatacommunities.org/id/unitary-authority/southend,ED Neighbourhoods & Environment,Cultural and Related Services,7540,HAYS SPECIALIST RECRUITMENT LTD RECEIPTS RECRUITMENT FILE ONLY,06/10/2023,12074338,601.27,Agency Staff,Direct Employee Expenses
Southend-on-Sea City Council,http://www.opendatacommunities.org/id/unitary-authority/southend,ED Neighbourhoods & Environment,Highways And Transport Services,5700,HAYS SPECIALIST RECRUITMENT LTD RECEIPTS RECRUITMENT FILE ONLY,06/10/2023,12074338,635.88,Agency Staff,Direct Employee Expenses
Southend-on-Sea City Council,http://www.opendatacommunities.org/id/unitary-authority/southend,ED Neighbourhoods & Environment,Highways And Transport Services,5015,HAYS SPECIALIST RECRUITMENT LTD RECEIPTS RECRUITMENT FILE ONLY,06/10/2023,12074338,"1,950.28",Agency Staff,Direct Employee Expenses
Southend-on-Sea City Council,http://www.opendatacommunities.org/id/unitary-authority/southend,ED Neighbourhoods & Environment,Highways And Transport Services,5235,HAYS SPECIALIST RECRUITMENT LTD RECEIPTS RECRUITMENT FILE ONLY,06/10/2023,12074338,"1,365.16",Agency Staff,Direct Employee Expenses
Southend-on-Sea City Council,http://www.opendatacommunities.org/id/unitary-authority/southend,ED Neighbourhoods & Environment,Housing Services,6045,HAYS SPECIALIST RECRUITMENT LTD RECEIPTS RECRUITMENT FILE ONLY,06/10/2023,12074338,"1,487.70",Agency Staff,Direct Employee Expenses
Southend-on-Sea City Council,http://www.opendatacommunities.org/id/unitary-authority/southend,"ED Strategy, Change & Governance",Central Services,7105,HAYS SPECIALIST RECRUITMENT LTD RECEIPTS RECRUITMENT FILE ONLY,06/10/2023,12074338,628.48,Agency Staff,Direct Employee Expenses
Southend-on-Sea City Council,http://www.opendatacommunities.org/id/unitary-authority/southend,"ED Strategy, Change & Governance",Central Services,7130,HAYS SPECIALIST RECRUITMENT LTD RECEIPTS RECRUITMENT FILE ONLY,06/10/2023,12074338,"1,447.47",Agency Staff,Direct Employee Expenses
Southend-on-Sea City Council,http://www.opendatacommunities.org/id/unitary-authority/southend,"ED Strategy, Change & Governance",Central Services,7125,HAYS SPECIALIST RECRUITMENT LTD RECEIPTS RECRUITMENT FILE ONLY,06/10/2023,12074338,"1,059.92",Agency Staff,Direct Employee Expenses
Southend-on-Sea City Council,http://www.opendatacommunities.org/id/unitary-authority/southend,"ED Strategy, Change & Governance",Central Services,7130,HAYS SPECIALIST RECRUITMENT LTD RECEIPTS RECRUITMENT FILE ONLY,06/10/2023,12074338,"1,584.21",Agency Staff,Direct Employee Expenses
Southend-on-Sea City Council,http://www.opendatacommunities.org/id/unitary-authority/southend,"ED Strategy, Change & Governance",Central Services,7130,HAYS SPECIALIST RECRUITMENT LTD RECEIPTS RECRUITMENT FILE ONLY,06/10/2023,12074338,"2,640.35",Agency Staff,Direct Employee Expenses
Southend-on-Sea City Council,http://www.opendatacommunities.org/id/unitary-authority/southend,"ED Strategy, Change & Governance",Central Services,7105,HAYS SPECIALIST RECRUITMENT LTD RECEIPTS RECRUITMENT FILE ONLY,06/10/2023,12074338,690.78,Agency Staff,Direct Employee Expenses
Southend-on-Sea City Council,http://www.opendatacommunities.org/id/unitary-authority/southend,"ED Strategy, Change & Governance",Central Services,7137,HAYS SPECIALIST RECRUITMENT LTD RECEIPTS RECRUITMENT FILE ONLY,06/10/2023,12074338,"1,672.28",Agency Staff,Direct Employee Expenses
Southend-on-Sea City Council,http://www.opendatacommunities.org/id/unitary-authority/southend,"ED Strategy, Change & Governance",Central Services,7137,HAYS SPECIALIST RECRUITMENT LTD RECEIPTS RECRUITMENT FILE ONLY,06/10/2023,12074338,"1,330.84",Agency Staff,Direct Employee Expenses
Southend-on-Sea City Council,http://www.opendatacommunities.org/id/unitary-authority/southend,"ED Strategy, Change & Governance",Central Services,7137,HAYS SPECIALIST RECRUITMENT LTD RECEIPTS RECRUITMENT FILE ONLY,06/10/2023,12074338,"2,612.85",Agency Staff,Direct Employee Expenses
Southend-on-Sea City Council,http://www.opendatacommunities.org/id/unitary-authority/southend,"ED Strategy, Change & Governance",Central Services,7137,HAYS SPECIALIST RECRUITMENT LTD RECEIPTS RECRUITMENT FILE ONLY,06/10/2023,12074338,"2,612.85",Agency Staff,Direct Employee Expenses
Southend-on-Sea City Council,http://www.opendatacommunities.org/id/unitary-authority/southend,"ED Strategy, Change & Governance",Central Services,7137,HAYS SPECIALIST RECRUITMENT LTD RECEIPTS RECRUITMENT FILE ONLY,06/10/2023,12074338,"2,612.85",Agency Staff,Direct Employee Expenses
Southend-on-Sea City Council,http://www.opendatacommunities.org/id/unitary-authority/southend,"ED Strategy, Change & Governance",Central Services,7129,HAYS SPECIALIST RECRUITMENT LTD RECEIPTS RECRUITMENT FILE ONLY,06/10/2023,12074338,"1,358.64",Agency Staff,Direct Employee Expenses
Southend-on-Sea City Council,http://www.opendatacommunities.org/id/unitary-authority/southend,"ED Strategy, Change & Governance",Central Services,7129,HAYS SPECIALIST RECRUITMENT LTD RECEIPTS RECRUITMENT FILE ONLY,06/10/2023,12074338,"1,254.21",Agency Staff,Direct Employee Expenses
Southend-on-Sea City Council,http://www.opendatacommunities.org/id/unitary-authority/southend,"ED Strategy, Change & Governance",Central Services,7129,HAYS SPECIALIST RECRUITMENT LTD RECEIPTS RECRUITMENT FILE ONLY,06/10/2023,12074338,"1,254.21",Agency Staff,Direct Employee Expenses
Southend-on-Sea City Council,http://www.opendatacommunities.org/id/unitary-authority/southend,"ED Strategy, Change & Governance",Central Services,7137,HAYS SPECIALIST RECRUITMENT LTD RECEIPTS RECRUITMENT FILE ONLY,06/10/2023,12074338,"1,901.08",Agency Staff,Direct Employee Expenses
Southend-on-Sea City Council,http://www.opendatacommunities.org/id/unitary-authority/southend,"ED Strategy, Change & Governance",Central Services,7139,HAYS SPECIALIST RECRUITMENT LTD RECEIPTS RECRUITMENT FILE ONLY,06/10/2023,12074338,"2,323.48",Agency Staff,Direct Employee Expenses
Southend-on-Sea City Council,http://www.opendatacommunities.org/id/unitary-authority/southend,ED Adults & Communities,Adult Social Care,1105,HOMECARE PROFESSIONALS (ESSEX) LTD,06/10/2023,12074338,"3,965.93",Private Contractors,Other Agencies
Southend-on-Sea City Council,http://www.opendatacommunities.org/id/unitary-authority/southend,ED Adults & Communities,Adult Social Care,1391,INTEGRA SUPPORTED HOUSING WALSALL LTD,06/10/2023,12074338,"10,182.00",Private Contractors,Other Agencies
Southend-on-Sea City Council,http://www.opendatacommunities.org/id/unitary-authority/southend,"ED Strategy, Change & Governance",Central Services,7130,INTUITY COMMUNICATIONS LIMITED,06/10/2023,12074338,"12,297.47",Communications Maintenance Agreements,Communications And Computing
Southend-on-Sea City Council,http://www.opendatacommunities.org/id/unitary-authority/southend,ED Adults & Communities,Adult Social Care,1105,J C MICHAEL GROUPS LTD,06/10/2023,12074338,"15,591.71",Private Contractors,Other Agencies
Southend-on-Sea City Council,http://www.opendatacommunities.org/id/unitary-authority/southend,ED Adults & Communities,Adult Social Care,1205,J C MICHAEL GROUPS LTD,06/10/2023,12074338,"3,588.29",Private Contractors,Other Agencies
Southend-on-Sea City Council,http://www.opendatacommunities.org/id/unitary-authority/southend,ED Adults & Communities,Adult Social Care,1105,J C MICHAEL GROUPS LTD,06/10/2023,12074338,"4,363.40",Private Contractors,Other Agencies
Southend-on-Sea City Council,http://www.opendatacommunities.org/id/unitary-authority/southend,ED Adults & Communities,Adult Social Care,1205,J C MICHAEL GROUPS LTD,06/10/2023,12074338,820.55,Private Contractors,Other Agencies
Southend-on-Sea City Council,http://www.opendatacommunities.org/id/unitary-authority/southend,ED Adults & Communities,Adult Social Care,1205,J C MICHAEL GROUPS LTD,06/10/2023,12074338,584.25,Private Contractors,Other Agencies
Southend-on-Sea City Council,http://www.opendatacommunities.org/id/unitary-authority/southend,ED Adults & Communities,Adult Social Care,1205,J C MICHAEL GROUPS LTD,06/10/2023,12074338,"1,192.56",Private Contractors,Other Agencies
Southend-on-Sea City Council,http://www.opendatacommunities.org/id/unitary-authority/southend,ED Adults & Communities,Adult Social Care,1105,J C MICHAEL GROUPS LTD,06/10/2023,12074338,"3,751.29",Private Contractors,Other Agencies
Southend-on-Sea City Council,http://www.opendatacommunities.org/id/unitary-authority/southend,ED Adults & Communities,Adult Social Care,1205,J C MICHAEL GROUPS LTD,06/10/2023,12074338,987.69,Private Contractors,Other Agencies
Southend-on-Sea City Council,http://www.opendatacommunities.org/id/unitary-authority/southend,ED Adults & Communities,Adult Social Care,1105,J C MICHAEL GROUPS LTD,06/10/2023,12074338,"4,284.68",Private Contractors,Other Agencies
Southend-on-Sea City Council,http://www.opendatacommunities.org/id/unitary-authority/southend,ED Adults & Communities,Adult Social Care,1205,J C MICHAEL GROUPS LTD,06/10/2023,12074338,"1,020.45",Private Contractors,Other Agencies
Southend-on-Sea City Council,http://www.opendatacommunities.org/id/unitary-authority/southend,ED Adults & Communities,Adult Social Care,1213,JAMES LECKEY DESIGN LIMITED T/A LECKEY,06/10/2023,12074338,"3,025.00",Tools And Equipment Purchase,Equipment Furniture And Materials
Southend-on-Sea City Council,http://www.opendatacommunities.org/id/unitary-authority/southend,ED Adults & Communities,Adult Social Care,1213,JAMES LECKEY DESIGN LIMITED T/A LECKEY,06/10/2023,12074338,"3,486.00",Tools And Equipment Purchase,Equipment Furniture And Materials
Southend-on-Sea City Council,http://www.opendatacommunities.org/id/unitary-authority/southend,ED Children & Public Health,Children And Education Services,3090,JAMES LECKEY DESIGN LIMITED T/A LECKEY,06/10/2023,12074338,"3,345.00",Tools And Equipment Purchase,Equipment Furniture And Materials
Southend-on-Sea City Council,http://www.opendatacommunities.org/id/unitary-authority/southend,ED Children & Public Health,Children And Education Services,3250,JAMMA UMOJA RESIDENTIAL SERVICES LIMITED,06/10/2023,12074338,"4,483.00",Private Contractors,Other Agencies
Southend-on-Sea City Council,http://www.opendatacommunities.org/id/unitary-authority/southend,ED Children & Public Health,Children And Education Services,3692,JAMMA UMOJA RESIDENTIAL SERVICES LIMITED,06/10/2023,12074338,"5,040.00",Private Contractors,Other Agencies
Southend-on-Sea City Council,http://www.opendatacommunities.org/id/unitary-authority/southend,ED Children & Public Health,Children And Education Services,3692,JAMMA UMOJA RESIDENTIAL SERVICES LIMITED,06/10/2023,12074338,"5,040.00",Private Contractors,Other Agencies
Southend-on-Sea City Council,http://www.opendatacommunities.org/id/unitary-authority/southend,ED Adults & Communities,Adult Social Care,1105,KINDERED HEARTS LIMITED,06/10/2023,12074338,"10,151.39",Private Contractors,Other Agencies
Southend-on-Sea City Council,http://www.opendatacommunities.org/id/unitary-authority/southend,ED Adults & Communities,Adult Social Care,1205,KINDERED HEARTS LIMITED,06/10/2023,12074338,"1,003.82",Private Contractors,Other Agencies
Southend-on-Sea City Council,http://www.opendatacommunities.org/id/unitary-authority/southend,ED Children & Public Health,Children And Education Services,3250,LEIGHVIEW HOUSE LTD T/A LEIGHVIEW HOUSE ROMFORD LTD,06/10/2023,12074338,"41,327.34",Private Contractors,Other Agencies
Southend-on-Sea City Council,http://www.opendatacommunities.org/id/unitary-authority/southend,ED Adults & Communities,Adult Social Care,1105,MISS TARISAI MUSWABURI T/A PTSMART CARE,06/10/2023,12074338,"4,165.76",Private Contractors,Other Agencies
Southend-on-Sea City Council,http://www.opendatacommunities.org/id/unitary-authority/southend,ED Adults & Communities,Adult Social Care,1205,MISS TARISAI MUSWABURI T/A PTSMART CARE,06/10/2023,12074338,944.34,Private Contractors,Other Agencies
Southend-on-Sea City Council,http://www.opendatacommunities.org/id/unitary-authority/southend,ED Growth & Housing,Housing Services,6010,MR & MRS G CETNIK T/A PAVILION HOTEL,06/10/2023,12074338,"2,888.00",Accommodation Costs,Expenses
Southend-on-Sea City Council,http://www.opendatacommunities.org/id/unitary-authority/southend,ED Children & Public Health,Children And Education Services,3592,REDACTED PERSONAL DATA,06/10/2023,12074338,"2,095.96",Additional Allowances (non employee),Services
Southend-on-Sea City Council,http://www.opendatacommunities.org/id/unitary-authority/southend,ED Adults & Communities,Cultural And Related Services,4230,MR DAWID MAREK PARADOWSKI T/A WOSKERSKI,06/10/2023,12074338,"1,000.00",Cultural And Entertainment Services,Services
Southend-on-Sea City Council,http://www.opendatacommunities.org/id/unitary-authority/southend,ED Children & Public Health,Children And Education Services,3691,REDACTED PERSONAL DATA,06/10/2023,12074338,725.76,Additional Allowances (non employee),Services
Southend-on-Sea City Council,http://www.opendatacommunities.org/id/unitary-authority/southend,ED Adults & Communities,Adult Social Care,1105,NEWDAY HEALTHCARE PROFESSIONALS LTD,06/10/2023,12074338,"3,747.06",Private Contractors,Other Agencies
Southend-on-Sea City Council,http://www.opendatacommunities.org/id/unitary-authority/southend,ED Adults & Communities,Adult Social Care,1205,NEWDAY HEALTHCARE PROFESSIONALS LTD,06/10/2023,12074338,716.26,Private Contractors,Other Agencies
Southend-on-Sea City Council,http://www.opendatacommunities.org/id/unitary-authority/southend,ED Adults & Communities,Adult Social Care,1105,NONHLANHLA ABIGAIL MKHIZE T/A TOP OPTION HEALTHCARE LIMITED,06/10/2023,12074338,"2,967.49",Private Contractors,Other Agencies
Southend-on-Sea City Council,http://www.opendatacommunities.org/id/unitary-authority/southend,ED Adults & Communities,Adult Social Care,1105,NONHLANHLA ABIGAIL MKHIZE T/A TOP OPTION HEALTHCARE LIMITED,06/10/2023,12074338,"2,869.53",Private Contractors,Other Agencies
Southend-on-Sea City Council,http://www.opendatacommunities.org/id/unitary-authority/southend,ED Adults & Communities,Adult Social Care,1209,NOTTINGHAM REHAB LTD,06/10/2023,12074338,689,Tools And Equipment Purchase,Equipment Furniture And Materials
Southend-on-Sea City Council,http://www.opendatacommunities.org/id/unitary-authority/southend,ED Neighbourhoods & Environment,Environmental And Regulatory Services,4575,OSBORNE RICHARDSON LTD,06/10/2023,12074338,556,Private Contractors,Other Agencies
Southend-on-Sea City Council,http://www.opendatacommunities.org/id/unitary-authority/southend,ED Neighbourhoods & Environment,Environmental And Regulatory Services,4575,OSBORNE RICHARDSON LTD,06/10/2023,12074338,638,Private Contractors,Other Agencies
Southend-on-Sea City Council,http://www.opendatacommunities.org/id/unitary-authority/southend,Neighbourhoods & Environment,Central Services,9008,PEOPLESCOUT LTD,06/10/2023,12074338,"3,051.43",Advertising,Advertising
Southend-on-Sea City Council,http://www.opendatacommunities.org/id/unitary-authority/southend,ED Neighbourhoods & Environment,Highways And Transport Services,5075,PEOPLESCOUT LTD,06/10/2023,12074338,918.93,Non Staff Advertising,Services
Southend-on-Sea City Council,http://www.opendatacommunities.org/id/unitary-authority/southend,ED Adults & Communities,Cultural And Related Services,4230,PHASE HIRE LTD,06/10/2023,12074338,719.9,Cultural And Entertainment Services,Services
Southend-on-Sea City Council,http://www.opendatacommunities.org/id/unitary-authority/southend,"ED Strategy, Change & Governance",Central Services,8590,PHOENIX SOFTWARE LTD,06/10/2023,12074338,576,Corporate IT Applications,Communications And Computing
Southend-on-Sea City Council,http://www.opendatacommunities.org/id/unitary-authority/southend,Transformation,Central Services,9012,POINT TOPIC LIMITED,06/10/2023,12074338,"2,880.00",Software License,Software License
Southend-on-Sea City Council,http://www.opendatacommunities.org/id/unitary-authority/southend,ED Adults & Communities,Cultural And Related Services,4115,PORT OF LONDON AUTHORITY,06/10/2023,12074338,"3,937.56",Property Leases,Rents
Southend-on-Sea City Council,http://www.opendatacommunities.org/id/unitary-authority/southend,ED Children & Public Health,Children And Education Services,3892,POTTON KARE SERVICES LTD T/A PKS SOCIAL CARE AGENCY,06/10/2023,12074338,"1,098.00",Private Contractors,Other Agencies
Southend-on-Sea City Council,http://www.opendatacommunities.org/id/unitary-authority/southend,ED Children & Public Health,Children And Education Services,3892,PSYCHOLOGY DIRECT LTD T/A PSYCHIATRY DIRECT,06/10/2023,12074338,"2,507.07",Professional Fees,Services
Southend-on-Sea City Council,http://www.opendatacommunities.org/id/unitary-authority/southend,ED Children & Public Health,Children And Education Services,3891,QUEENSWAY HOUSE,06/10/2023,12074338,954.9,Additional Allowances (non employee),Services
Southend-on-Sea City Council,http://www.opendatacommunities.org/id/unitary-authority/southend,ED Children & Public Health,Children And Education Services,3250,RAINBOW FOSTERING SERVICES LTD,06/10/2023,12074338,"3,835.71",Private Contractors,Other Agencies
Southend-on-Sea City Council,http://www.opendatacommunities.org/id/unitary-authority/southend,ED Children & Public Health,Children And Education Services,3250,RAINBOW FOSTERING SERVICES LTD,06/10/2023,12074338,"3,835.71",Private Contractors,Other Agencies
Southend-on-Sea City Council,http://www.opendatacommunities.org/id/unitary-authority/southend,ED Growth & Housing,Housing Services,6010,RENT CONNECT,06/10/2023,12074338,"1,500.00",Accommodation Costs,Expenses
Southend-on-Sea City Council,http://www.opendatacommunities.org/id/unitary-authority/southend,ED Adults & Communities,Housing Services,6210,RICHMOND FELLOWSHIP,06/10/2023,12074338,"71,482.50",Social Care Services,Services
Southend-on-Sea City Council,http://www.opendatacommunities.org/id/unitary-authority/southend,ED Finance & Resources,Central Services,7111,RICOH UK LIMITED,06/10/2023,12074338,"7,945.06",Printing,Printing Stationery And General Office Expenses
Southend-on-Sea City Council,http://www.opendatacommunities.org/id/unitary-authority/southend,ED Adults & Communities,Adult Social Care,1209,RNIB ENTERPRISES,06/10/2023,12074338,658,Tools And Equipment Purchase,Equipment Furniture And Materials
Southend-on-Sea City Council,http://www.opendatacommunities.org/id/unitary-authority/southend,ED Adults & Communities,Adult Social Care,1209,RNIB ENTERPRISES,06/10/2023,12074338,658,Tools And Equipment Purchase,Equipment Furniture And Materials
Southend-on-Sea City Council,http://www.opendatacommunities.org/id/unitary-authority/southend,ED Finance & Resources,Central Services,8605,ROPEWALK CHAMBERS T/A ALEXANDRA DENTON,06/10/2023,12074338,600,Court Costs And Legal Fees,Services
Southend-on-Sea City Council,http://www.opendatacommunities.org/id/unitary-authority/southend,ED Adults & Communities,Adult Social Care,1105,ROYALE CARERS LIMITED,06/10/2023,12074338,"10,064.56",Private Contractors,Other Agencies
Southend-on-Sea City Council,http://www.opendatacommunities.org/id/unitary-authority/southend,ED Adults & Communities,Adult Social Care,1205,ROYALE CARERS LIMITED,06/10/2023,12074338,570.59,Private Contractors,Other Agencies
Southend-on-Sea City Council,http://www.opendatacommunities.org/id/unitary-authority/southend,ED Neighbourhoods & Environment,Highways And Transport Services,5236,SAGOSS LIMITED,06/10/2023,12074338,"2,000.00",Services,Services
Southend-on-Sea City Council,http://www.opendatacommunities.org/id/unitary-authority/southend,ED Neighbourhoods & Environment,Highways And Transport Services,5236,SAGOSS LIMITED,06/10/2023,12074338,"2,000.00",Services,Services
Southend-on-Sea City Council,http://www.opendatacommunities.org/id/unitary-authority/southend,ED Finance & Resources,Housing Services,6165,SALE APPLIANCES,06/10/2023,12074338,683.13,Materials,Equipment Furniture And Materials
Southend-on-Sea City Council,http://www.opendatacommunities.org/id/unitary-authority/southend,ED Adults & Communities,Adult Social Care,1192,SALUTEM LD BIDCO IV LTD T/A AMBITO CARE & EDUCATION,06/10/2023,12074338,"9,895.80",Private Contractors,Other Agencies
Southend-on-Sea City Council,http://www.opendatacommunities.org/id/unitary-authority/southend,ED Adults & Communities,Housing Services,6210,SANCTUARY HOUSING ASSOCIATION,06/10/2023,12074338,"40,579.50",Social Care Services,Services
Southend-on-Sea City Council,http://www.opendatacommunities.org/id/unitary-authority/southend,ED Finance & Resources,Central Services,5605,SAVILLS (UK) LTD,06/10/2023,12074338,"18,766.00",Service Charges,Rents
Southend-on-Sea City Council,http://www.opendatacommunities.org/id/unitary-authority/southend,ED Children & Public Health,Children And Education Services,3105,SCHOOL OF BEATBOX LTD,06/10/2023,12074338,"1,375.00",Professional Fees,Services
Southend-on-Sea City Council,http://www.opendatacommunities.org/id/unitary-authority/southend,ED Growth & Housing,Housing Services,6011,SOUTHEND INN HOTEL LTD,06/10/2023,12074338,"1,350.00",Accommodation Costs,Expenses
Southend-on-Sea City Council,http://www.opendatacommunities.org/id/unitary-authority/southend,ED Adults & Communities,Cultural And Related Services,4230,STEVES SELF DRIVE LIMITED LIABILITY PARTNERSHIP T/A STEVE'S SELF DRIVE HIRE,06/10/2023,12074338,825.81,Cultural And Entertainment Services,Services
Southend-on-Sea City Council,http://www.opendatacommunities.org/id/unitary-authority/southend,ED Adults & Communities,Adult Social Care,1105,STRESS FREE EXECUTIVES LTD T/A YOWSUN CARE,06/10/2023,12074338,"2,053.47",Private Contractors,Other Agencies
Southend-on-Sea City Council,http://www.opendatacommunities.org/id/unitary-authority/southend,ED Adults & Communities,Adult Social Care,1205,STRESS FREE EXECUTIVES LTD T/A YOWSUN CARE,06/10/2023,12074338,"2,032.27",Private Contractors,Other Agencies
Southend-on-Sea City Council,http://www.opendatacommunities.org/id/unitary-authority/southend,ED Adults & Communities,Adult Social Care,1105,STRESS FREE EXECUTIVES LTD T/A YOWSUN CARE,06/10/2023,12074338,"1,913.00",Private Contractors,Other Agencies
Southend-on-Sea City Council,http://www.opendatacommunities.org/id/unitary-authority/southend,ED Adults & Communities,Adult Social Care,1205,STRESS FREE EXECUTIVES LTD T/A YOWSUN CARE,06/10/2023,12074338,"1,918.12",Private Contractors,Other Agencies
Southend-on-Sea City Council,http://www.opendatacommunities.org/id/unitary-authority/southend,ED Adults & Communities,Adult Social Care,1105,STRESS FREE EXECUTIVES LTD T/A YOWSUN CARE,06/10/2023,12074338,"2,300.37",Private Contractors,Other Agencies
Southend-on-Sea City Council,http://www.opendatacommunities.org/id/unitary-authority/southend,ED Adults & Communities,Adult Social Care,1205,STRESS FREE EXECUTIVES LTD T/A YOWSUN CARE,06/10/2023,12074338,"2,054.13",Private Contractors,Other Agencies
Southend-on-Sea City Council,http://www.opendatacommunities.org/id/unitary-authority/southend,ED Adults & Communities,Adult Social Care,1105,STRESS FREE EXECUTIVES LTD T/A YOWSUN CARE,06/10/2023,12074338,"1,606.47",Private Contractors,Other Agencies
Southend-on-Sea City Council,http://www.opendatacommunities.org/id/unitary-authority/southend,ED Adults & Communities,Adult Social Care,1205,STRESS FREE EXECUTIVES LTD T/A YOWSUN CARE,06/10/2023,12074338,"1,214.34",Private Contractors,Other Agencies
Southend-on-Sea City Council,http://www.opendatacommunities.org/id/unitary-authority/southend,ED Adults & Communities,Adult Social Care,1105,STRESS FREE EXECUTIVES LTD T/A YOWSUN CARE,06/10/2023,12074338,"1,178.09",Private Contractors,Other Agencies
Southend-on-Sea City Council,http://www.opendatacommunities.org/id/unitary-authority/southend,ED Adults & Communities,Adult Social Care,1205,STRESS FREE EXECUTIVES LTD T/A YOWSUN CARE,06/10/2023,12074338,968.51,Private Contractors,Other Agencies
Southend-on-Sea City Council,http://www.opendatacommunities.org/id/unitary-authority/southend,ED Neighbourhoods & Environment,Environmental And Regulatory Services,4660,SUEZ RECYCLING AND RECOVERY UK LTD,06/10/2023,12074338,"312,102.78",Private Contractors,Other Agencies
Southend-on-Sea City Council,http://www.opendatacommunities.org/id/unitary-authority/southend,ED Neighbourhoods & Environment,Environmental And Regulatory Services,4506,TELESHORE UK LTD,06/10/2023,12074338,833.31,Tools And Equipment Repair And Maintenance,Equipment Furniture And Materials
Southend-on-Sea City Council,http://www.opendatacommunities.org/id/unitary-authority/southend,ED Adults & Communities,Cultural And Related Services,4011,THE WHITE BUS LIMITED,06/10/2023,12074338,"1,600.00",Professional Fees,Services
Southend-on-Sea City Council,http://www.opendatacommunities.org/id/unitary-authority/southend,ED Children & Public Health,Children And Education Services,3231,TILE HILL INTERIM & EXECUTIVE LIMITED,06/10/2023,12074338,"18,172.00",Agency Staff,Direct Employee Expenses
Southend-on-Sea City Council,http://www.opendatacommunities.org/id/unitary-authority/southend,"ED Strategy, Change & Governance",Central Services,7105,TILE HILL INTERIM & EXECUTIVE LIMITED,06/10/2023,12074338,"3,540.00",Barristers fees,Services
Southend-on-Sea City Council,http://www.opendatacommunities.org/id/unitary-authority/southend,ED Growth & Housing,Planning Services,5520,TOWN LEGAL LLP OFFICE ACCOUNT,06/10/2023,12074338,"3,150.00",Professional Fees,Services
Southend-on-Sea City Council,http://www.opendatacommunities.org/id/unitary-authority/southend,ED Adults & Communities,Adult Social Care,1105,TRIX MEDCARE LTD,06/10/2023,12074338,"7,640.56",Private Contractors,Other Agencies
Southend-on-Sea City Council,http://www.opendatacommunities.org/id/unitary-authority/southend,ED Adults & Communities,Adult Social Care,1205,TRIX MEDCARE LTD,06/10/2023,12074338,"2,291.55",Private Contractors,Other Agencies
Southend-on-Sea City Council,http://www.opendatacommunities.org/id/unitary-authority/southend,ED Adults & Communities,Adult Social Care,1450,VIBRANCE,06/10/2023,12074338,"15,298.34",Other Agencies,Other Agencies
Southend-on-Sea City Council,http://www.opendatacommunities.org/id/unitary-authority/southend,ED Adults & Communities,Adult Social Care,1450,VIBRANCE,06/10/2023,12074338,"15,298.34",Other Agencies,Other Agencies
Southend-on-Sea City Council,http://www.opendatacommunities.org/id/unitary-authority/southend,"ED Strategy, Change & Governance",Central Services,7125,VINE HR LTD MAIN ACCOUNT,06/10/2023,12074338,"3,000.00",Subscriptions,Grants And Subscriptions
Southend-on-Sea City Council,http://www.opendatacommunities.org/id/unitary-authority/southend,ED Adults & Communities,Adult Social Care,1105,VOLSEC LTD T/A VOLSEC HEALTHCARE,06/10/2023,12074338,"6,742.48",Private Contractors,Other Agencies
Southend-on-Sea City Council,http://www.opendatacommunities.org/id/unitary-authority/southend,ED Adults & Communities,Adult Social Care,1205,VOLSEC LTD T/A VOLSEC HEALTHCARE,06/10/2023,12074338,"1,442.39",Private Contractors,Other Agencies
Southend-on-Sea City Council,http://www.opendatacommunities.org/id/unitary-authority/southend,ED Adults & Communities,Adult Social Care,1105,VOLSEC LTD T/A VOLSEC HEALTHCARE,06/10/2023,12074338,"6,562.01",Private Contractors,Other Agencies
Southend-on-Sea City Council,http://www.opendatacommunities.org/id/unitary-authority/southend,ED Adults & Communities,Adult Social Care,1205,VOLSEC LTD T/A VOLSEC HEALTHCARE,06/10/2023,12074338,"1,421.55",Private Contractors,Other Agencies
Southend-on-Sea City Council,http://www.opendatacommunities.org/id/unitary-authority/southend,ED Adults & Communities,Adult Social Care,1510,WELBECK HOTEL,06/10/2023,12074338,"1,200.00",Additional Allowances (non employee),Services
Southend-on-Sea City Council,http://www.opendatacommunities.org/id/unitary-authority/southend,Neighbourhoods & Environment,Central Services,9008,(G) MARLBOROUGH SURFACING LIMITED,10/10/2023,12074345,"78,655.17",Main Contractor,Main Contractor
Southend-on-Sea City Council,http://www.opendatacommunities.org/id/unitary-authority/southend,Neighbourhoods & Environment,Central Services,9008,(G) MARLBOROUGH SURFACING LIMITED,10/10/2023,12074345,"131,181.54",Main Contractor,Main Contractor
Southend-on-Sea City Council,http://www.opendatacommunities.org/id/unitary-authority/southend,Neighbourhoods & Environment,Central Services,9008,(G) MARLBOROUGH SURFACING LIMITED,10/10/2023,12074345,"36,190.12",Main Contractor,Main Contractor
Southend-on-Sea City Council,http://www.opendatacommunities.org/id/unitary-authority/southend,Neighbourhoods & Environment,Central Services,9008,(G) MARLBOROUGH SURFACING LIMITED,10/10/2023,12074345,"44,498.89",Main Contractor,Main Contractor
Southend-on-Sea City Council,http://www.opendatacommunities.org/id/unitary-authority/southend,Neighbourhoods & Environment,Central Services,9008,(G) MARLBOROUGH SURFACING LIMITED,10/10/2023,12074345,"36,636.21",Main Contractor,Main Contractor
Southend-on-Sea City Council,http://www.opendatacommunities.org/id/unitary-authority/southend,ED Finance & Resources,Central Services,7140,(G) MILLANE CONTRACT SERVICES LTD,10/10/2023,12074345,730,Repairs And Maintenance Contracts,"Repairs, alterations and maintenance of buildings"
Southend-on-Sea City Council,http://www.opendatacommunities.org/id/unitary-authority/southend,ED Finance & Resources,Environmental and Regulatory Services,7110,(G) MILLANE CONTRACT SERVICES LTD,10/10/2023,12074345,937.62,Repairs And Maintenance Contracts,"Repairs, alterations and maintenance of buildings"
Southend-on-Sea City Council,http://www.opendatacommunities.org/id/unitary-authority/southend,ED Adults & Communities,Cultural And Related Services,4230,(N) JONATHAN SMITH T/A BRIGHT LIGHTS ELECTRICAL CONTRACTORS,10/10/2023,12074345,"3,900.00",Cultural And Entertainment Services,Services
Southend-on-Sea City Council,http://www.opendatacommunities.org/id/unitary-authority/southend,ED Adults & Communities,Cultural And Related Services,4240,(N) JONATHAN SMITH T/A BRIGHT LIGHTS ELECTRICAL CONTRACTORS,10/10/2023,12074345,"2,000.00",Cultural And Entertainment Services,Services
Southend-on-Sea City Council,http://www.opendatacommunities.org/id/unitary-authority/southend,ED Adults & Communities,Adult Social Care,1060,ACCESS ANYONE LTD,10/10/2023,12074345,925,Conveyance of Clients,Contract Hire And Operating Leases
Southend-on-Sea City Council,http://www.opendatacommunities.org/id/unitary-authority/southend,ED Children & Public Health,Children And Education Services,3265,REDACTED PERSONAL DATA,10/10/2023,12074345,"1,488.74",Foster Carer Allowance,Other Agencies
Southend-on-Sea City Council,http://www.opendatacommunities.org/id/unitary-authority/southend,ED Adults & Communities,Central Services,8601,ALLPAY . NET LIMITED,10/10/2023,12074345,730.64,Services Fees And Charges,Services
Southend-on-Sea City Council,http://www.opendatacommunities.org/id/unitary-authority/southend,ED Finance & Resources,Housing Services,6165,ALLPAY . NET LIMITED,10/10/2023,12074345,825.25,Services Fees And Charges,Services
Southend-on-Sea City Council,http://www.opendatacommunities.org/id/unitary-authority/southend,ED Adults & Communities,Adult Social Care,1205,ALPHA HEALTH AND CARE SERVICES LTD T/A ALPHA SOCIAL CARE,10/10/2023,12074345,"1,463.00",Private Contractors,Other Agencies
Southend-on-Sea City Council,http://www.opendatacommunities.org/id/unitary-authority/southend,ED Adults & Communities,Adult Social Care,1205,ALPHA HEALTH AND CARE SERVICES LTD T/A ALPHA SOCIAL CARE,10/10/2023,12074345,"1,463.00",Private Contractors,Other Agencies
Southend-on-Sea City Council,http://www.opendatacommunities.org/id/unitary-authority/southend,ED Adults & Communities,Adult Social Care,1105,ALPHA HEALTH AND CARE SERVICES LTD T/A ALPHA SOCIAL CARE,10/10/2023,12074345,931,Private Contractors,Other Agencies
Southend-on-Sea City Council,http://www.opendatacommunities.org/id/unitary-authority/southend,"ED Strategy, Change & Governance",Adult Social Care,3201,AMBULANCE SERVICE COLLEGE,10/10/2023,12074345,682,Commissioned Training,Services
Southend-on-Sea City Council,http://www.opendatacommunities.org/id/unitary-authority/southend,ED Growth & Housing,Adult Social Care,6012,REDACTED PERSONAL DATA,10/10/2023,12074345,500,Additional Allowances (non employee),Services
Southend-on-Sea City Council,http://www.opendatacommunities.org/id/unitary-authority/southend,ED Children & Public Health,Children And Education Services,3265,REDACTED PERSONAL DATA,10/10/2023,12074345,746.52,Foster Carer Allowance,Other Agencies
Southend-on-Sea City Council,http://www.opendatacommunities.org/id/unitary-authority/southend,ED Children & Public Health,Children And Education Services,3265,REDACTED PERSONAL DATA,10/10/2023,12074345,932.67,Foster Carer Allowance,Other Agencies
Southend-on-Sea City Council,http://www.opendatacommunities.org/id/unitary-authority/southend,ED Adults & Communities,Adult Social Care,1105,ASHLEY COMMUNITY CARE SERVICES LTD T/A ASHLEY CARE,10/10/2023,12074345,"25,256.70",Private Contractors,Other Agencies
Southend-on-Sea City Council,http://www.opendatacommunities.org/id/unitary-authority/southend,ED Adults & Communities,Adult Social Care,1108,ASHLEY COMMUNITY CARE SERVICES LTD T/A ASHLEY CARE,10/10/2023,12074345,755.78,Private Contractors,Other Agencies
Southend-on-Sea City Council,http://www.opendatacommunities.org/id/unitary-authority/southend,ED Adults & Communities,Adult Social Care,1205,ASHLEY COMMUNITY CARE SERVICES LTD T/A ASHLEY CARE,10/10/2023,12074345,"3,537.50",Private Contractors,Other Agencies
Southend-on-Sea City Council,http://www.opendatacommunities.org/id/unitary-authority/southend,ED Adults & Communities,Adult Social Care,1105,ASHLEY COMMUNITY CARE SERVICES LTD T/A ASHLEY CARE,10/10/2023,12074345,"1,044.94",Private Contractors,Other Agencies
Southend-on-Sea City Council,http://www.opendatacommunities.org/id/unitary-authority/southend,ED Adults & Communities,Adult Social Care,1105,ASHLEY COMMUNITY CARE SERVICES LTD T/A ASHLEY CARE,10/10/2023,12074345,"1,211.17",Private Contractors,Other Agencies
Southend-on-Sea City Council,http://www.opendatacommunities.org/id/unitary-authority/southend,ED Children & Public Health,Children And Education Services,3290,AVANCE LTD,10/10/2023,12074345,"3,321.43",Accomodation Payment,Services
Southend-on-Sea City Council,http://www.opendatacommunities.org/id/unitary-authority/southend,ED Adults & Communities,Adult Social Care,1105,BROOKS CARE & NURSING SERVICES LTD,10/10/2023,12074345,"7,638.50",Private Contractors,Other Agencies
Southend-on-Sea City Council,http://www.opendatacommunities.org/id/unitary-authority/southend,ED Children & Public Health,Children And Education Services,3307,CANARY HOUSE CARE LIMITED,10/10/2023,12074345,"1,300.00",Accomodation Payment,Services
Southend-on-Sea City Council,http://www.opendatacommunities.org/id/unitary-authority/southend,ED Children & Public Health,Children And Education Services,3308,CANARY HOUSE CARE LIMITED,10/10/2023,12074345,"3,700.00",Accomodation Payment,Services
Southend-on-Sea City Council,http://www.opendatacommunities.org/id/unitary-authority/southend,ED Children & Public Health,Children And Education Services,3250,CARE2SHARE LTD,10/10/2023,12074345,"14,171.34",Private Contractors,Other Agencies
Southend-on-Sea City Council,http://www.opendatacommunities.org/id/unitary-authority/southend,ED Children & Public Health,Children And Education Services,3250,CARE2SHARE LTD,10/10/2023,12074345,"14,171.34",Private Contractors,Other Agencies
Southend-on-Sea City Council,http://www.opendatacommunities.org/id/unitary-authority/southend,ED Adults & Communities,Adult Social Care,1105,CHOICES HEALTHCARE LTD,10/10/2023,12074345,"14,646.03",Private Contractors,Other Agencies
Southend-on-Sea City Council,http://www.opendatacommunities.org/id/unitary-authority/southend,ED Adults & Communities,Adult Social Care,1108,CHOICES HEALTHCARE LTD,10/10/2023,12074345,611.08,Private Contractors,Other Agencies
Southend-on-Sea City Council,http://www.opendatacommunities.org/id/unitary-authority/southend,ED Adults & Communities,Adult Social Care,1205,CHOICES HEALTHCARE LTD,10/10/2023,12074345,"2,560.87",Private Contractors,Other Agencies
Southend-on-Sea City Council,http://www.opendatacommunities.org/id/unitary-authority/southend,ED Children & Public Health,Children And Education Services,3265,REDACTED PERSONAL DATA,10/10/2023,12074345,"1,193.04",Foster Carer Allowance,Other Agencies
Southend-on-Sea City Council,http://www.opendatacommunities.org/id/unitary-authority/southend,"ED Strategy, Change & Governance",Central Services,7125,CLOSE INVOICE FINANCE T/A INNOVATE HEALTHCARE,10/10/2023,12074345,"4,292.00",Medical And Health Services,Services
Southend-on-Sea City Council,http://www.opendatacommunities.org/id/unitary-authority/southend,"ED Strategy, Change & Governance",Central Services,7125,CLOSE INVOICE FINANCE T/A INNOVATE HEALTHCARE,10/10/2023,12074345,"2,734.50",Medical And Health Services,Services
Southend-on-Sea City Council,http://www.opendatacommunities.org/id/unitary-authority/southend,"ED Strategy, Change & Governance",Central Services,7125,CLOSE INVOICE FINANCE T/A INNOVATE HEALTHCARE,10/10/2023,12074345,"4,484.50",Medical And Health Services,Services
Southend-on-Sea City Council,http://www.opendatacommunities.org/id/unitary-authority/southend,"ED Strategy, Change & Governance",Central Services,7125,CLOSE INVOICE FINANCE T/A INNOVATE HEALTHCARE,10/10/2023,12074345,"1,096.50",Medical And Health Services,Services
Southend-on-Sea City Council,http://www.opendatacommunities.org/id/unitary-authority/southend,ED Adults & Communities,Adult Social Care,1105,CONCEPT CARE SOLUTIONS LTD T/A DOLPHIN CARE,10/10/2023,12074345,"1,120.97",Private Contractors,Other Agencies
Southend-on-Sea City Council,http://www.opendatacommunities.org/id/unitary-authority/southend,ED Adults & Communities,Adult Social Care,1105,CONCEPT CARE SOLUTIONS LTD T/A DOLPHIN CARE,10/10/2023,12074345,"1,124.07",Private Contractors,Other Agencies
Southend-on-Sea City Council,http://www.opendatacommunities.org/id/unitary-authority/southend,ED Adults & Communities,Adult Social Care,1105,DE VERE CARE PARTNERSHIP LTD,10/10/2023,12074345,"12,912.75",Private Contractors,Other Agencies
Southend-on-Sea City Council,http://www.opendatacommunities.org/id/unitary-authority/southend,ED Children & Public Health,Children And Education Services,3265,REDACTED PERSONAL DATA,10/10/2023,12074345,775.46,Foster Carer Allowance,Other Agencies
Southend-on-Sea City Council,http://www.opendatacommunities.org/id/unitary-authority/southend,ED Growth & Housing,Adult Social Care,6012,REDACTED PERSONAL DATA,10/10/2023,12074345,500,Additional Allowances (non employee),Services
Southend-on-Sea City Council,http://www.opendatacommunities.org/id/unitary-authority/southend,ED Children & Public Health,Children And Education Services,3152,DR G HORRIGAN,10/10/2023,12074345,"3,450.00",Private Contractors,Other Agencies
Southend-on-Sea City Council,http://www.opendatacommunities.org/id/unitary-authority/southend,ED Children & Public Health,Public Health,7625,DR HOUSTON,10/10/2023,12074345,780,Medical And Health Services,Services
Southend-on-Sea City Council,http://www.opendatacommunities.org/id/unitary-authority/southend,ED Children & Public Health,Children And Education Services,3265,REDACTED PERSONAL DATA,10/10/2023,12074345,"1,279.75",Foster Carer Allowance,Other Agencies
Southend-on-Sea City Council,http://www.opendatacommunities.org/id/unitary-authority/southend,ED Children & Public Health,Children And Education Services,3011,FAIRWAYS PRE SCHOOL PLAYGROUP,10/10/2023,12074345,672,Child Minding,Services
Southend-on-Sea City Council,http://www.opendatacommunities.org/id/unitary-authority/southend,ED Adults & Communities,Adult Social Care,1105,FIRST POINT 24 LTD,10/10/2023,12074345,"7,486.82",Private Contractors,Other Agencies
Southend-on-Sea City Council,http://www.opendatacommunities.org/id/unitary-authority/southend,ED Adults & Communities,Adult Social Care,1205,FIRST POINT 24 LTD,10/10/2023,12074345,"2,240.59",Private Contractors,Other Agencies
Southend-on-Sea City Council,http://www.opendatacommunities.org/id/unitary-authority/southend,ED Adults & Communities,Adult Social Care,1105,FIRST POINT 24 LTD,10/10/2023,12074345,"7,466.54",Private Contractors,Other Agencies
Southend-on-Sea City Council,http://www.opendatacommunities.org/id/unitary-authority/southend,ED Adults & Communities,Adult Social Care,1205,FIRST POINT 24 LTD,10/10/2023,12074345,"2,114.92",Private Contractors,Other Agencies
Southend-on-Sea City Council,http://www.opendatacommunities.org/id/unitary-authority/southend,ED Neighbourhoods & Environment,Highways And Transport Services,5230,FLOWBIRD SMART CITY UK LIMITED,10/10/2023,12074345,"9,123.36",Tools And Equipment Purchase,Equipment Furniture And Materials
Southend-on-Sea City Council,http://www.opendatacommunities.org/id/unitary-authority/southend,ED Neighbourhoods & Environment,Highways And Transport Services,5230,FLOWBIRD SMART CITY UK LIMITED,10/10/2023,12074345,"1,215.00",Tools And Equipment Purchase,Equipment Furniture And Materials
Southend-on-Sea City Council,http://www.opendatacommunities.org/id/unitary-authority/southend,ED Neighbourhoods & Environment,Highways And Transport Services,5230,FLOWBIRD SMART CITY UK LIMITED,10/10/2023,12074345,"2,295.00",Tools And Equipment Purchase,Equipment Furniture And Materials
Southend-on-Sea City Council,http://www.opendatacommunities.org/id/unitary-authority/southend,ED Adults & Communities,Adult Social Care,1320,FORGET ME NOT CARING LTD,10/10/2023,12074345,982.5,Private Contractors,Other Agencies
Southend-on-Sea City Council,http://www.opendatacommunities.org/id/unitary-authority/southend,ED Adults & Communities,Adult Social Care,1105,GOLDEN KEYS CARE AGENCY LIMITED,10/10/2023,12074345,"30,615.79",Private Contractors,Other Agencies
Southend-on-Sea City Council,http://www.opendatacommunities.org/id/unitary-authority/southend,ED Adults & Communities,Adult Social Care,1205,GOLDEN KEYS CARE AGENCY LIMITED,10/10/2023,12074345,"2,437.73",Private Contractors,Other Agencies
Southend-on-Sea City Council,http://www.opendatacommunities.org/id/unitary-authority/southend,ED Adults & Communities,Adult Social Care,1400,GOLDEN KEYS CARE AGENCY LIMITED,10/10/2023,12074345,811.21,Private Contractors,Other Agencies
Southend-on-Sea City Council,http://www.opendatacommunities.org/id/unitary-authority/southend,ED Adults & Communities,Adult Social Care,1613,GOLDEN KEYS CARE AGENCY LIMITED,10/10/2023,12074345,693.76,Private Contractors,Other Agencies
Southend-on-Sea City Council,http://www.opendatacommunities.org/id/unitary-authority/southend,ED Adults & Communities,Adult Social Care,1674,GOLDEN KEYS CARE AGENCY LIMITED,10/10/2023,12074345,692.26,Private Contractors,Other Agencies
Southend-on-Sea City Council,http://www.opendatacommunities.org/id/unitary-authority/southend,ED Adults & Communities,Adult Social Care,1105,GOLDEN KEYS CARE AGENCY LIMITED,10/10/2023,12074345,"31,115.60",Private Contractors,Other Agencies
Southend-on-Sea City Council,http://www.opendatacommunities.org/id/unitary-authority/southend,ED Adults & Communities,Adult Social Care,1205,GOLDEN KEYS CARE AGENCY LIMITED,10/10/2023,12074345,"2,206.28",Private Contractors,Other Agencies
Southend-on-Sea City Council,http://www.opendatacommunities.org/id/unitary-authority/southend,ED Adults & Communities,Adult Social Care,1400,GOLDEN KEYS CARE AGENCY LIMITED,10/10/2023,12074345,899.71,Private Contractors,Other Agencies
Southend-on-Sea City Council,http://www.opendatacommunities.org/id/unitary-authority/southend,ED Adults & Communities,Adult Social Care,1613,GOLDEN KEYS CARE AGENCY LIMITED,10/10/2023,12074345,681.01,Private Contractors,Other Agencies
Southend-on-Sea City Council,http://www.opendatacommunities.org/id/unitary-authority/southend,ED Adults & Communities,Adult Social Care,1674,GOLDEN KEYS CARE AGENCY LIMITED,10/10/2023,12074345,676.22,Private Contractors,Other Agencies
Southend-on-Sea City Council,http://www.opendatacommunities.org/id/unitary-authority/southend,ED Children & Public Health,Children And Education Services,3483,GRAPECROFT LIMITED T/A HARMONY HEALTHCARE,10/10/2023,12074345,540,Private Contractors,Other Agencies
Southend-on-Sea City Council,http://www.opendatacommunities.org/id/unitary-authority/southend,ED Children & Public Health,Children And Education Services,3290,GRIHA CARE AND SUPPORT LIMITED,10/10/2023,12074345,"4,040.00",Accomodation Payment,Services
Southend-on-Sea City Council,http://www.opendatacommunities.org/id/unitary-authority/southend,ED Children & Public Health,Children And Education Services,3307,GRIHA CARE AND SUPPORT LIMITED,10/10/2023,12074345,"2,700.00",Accomodation Payment,Services
Southend-on-Sea City Council,http://www.opendatacommunities.org/id/unitary-authority/southend,ED Children & Public Health,Children And Education Services,3308,GRIHA CARE AND SUPPORT LIMITED,10/10/2023,12074345,"1,820.00",Accomodation Payment,Services
Southend-on-Sea City Council,http://www.opendatacommunities.org/id/unitary-authority/southend,ED Adults & Communities,Adult Social Care,1105,HALES GROUP LTD,10/10/2023,12074345,"2,261.01",Private Contractors,Other Agencies
Southend-on-Sea City Council,http://www.opendatacommunities.org/id/unitary-authority/southend,ED Adults & Communities,Adult Social Care,1205,HALES GROUP LTD,10/10/2023,12074345,502.56,Private Contractors,Other Agencies
Southend-on-Sea City Council,http://www.opendatacommunities.org/id/unitary-authority/southend,ED Adults & Communities,Adult Social Care,1105,HALES GROUP LTD,10/10/2023,12074345,"2,119.97",Private Contractors,Other Agencies
Southend-on-Sea City Council,http://www.opendatacommunities.org/id/unitary-authority/southend,ED Children & Public Health,Children And Education Services,3265,REDACTED PERSONAL DATA,10/10/2023,12074345,541.2,Foster Carer Allowance,Other Agencies
Southend-on-Sea City Council,http://www.opendatacommunities.org/id/unitary-authority/southend,ED Adults & Communities,Adult Social Care,1105,HOMECARE PROFESSIONALS (ESSEX) LTD,10/10/2023,12074345,"4,047.68",Private Contractors,Other Agencies
Southend-on-Sea City Council,http://www.opendatacommunities.org/id/unitary-authority/southend,ED Adults & Communities,Adult Social Care,1105,J C MICHAEL GROUPS LTD,10/10/2023,12074345,"4,100.13",Private Contractors,Other Agencies
Southend-on-Sea City Council,http://www.opendatacommunities.org/id/unitary-authority/southend,ED Adults & Communities,Adult Social Care,1205,J C MICHAEL GROUPS LTD,10/10/2023,12074345,896.89,Private Contractors,Other Agencies
Southend-on-Sea City Council,http://www.opendatacommunities.org/id/unitary-authority/southend,ED Children & Public Health,Children And Education Services,3265,REDACTED PERSONAL DATA,10/10/2023,12074345,"1,168.74",Foster Carer Allowance,Other Agencies
Southend-on-Sea City Council,http://www.opendatacommunities.org/id/unitary-authority/southend,ED Children & Public Health,Children And Education Services,3265,REDACTED PERSONAL DATA,10/10/2023,12074345,586.55,Foster Carer Allowance,Other Agencies
Southend-on-Sea City Council,http://www.opendatacommunities.org/id/unitary-authority/southend,ED Children & Public Health,Children And Education Services,3265,REDACTED PERSONAL DATA,10/10/2023,12074345,"1,439.01",Foster Carer Allowance,Other Agencies
Southend-on-Sea City Council,http://www.opendatacommunities.org/id/unitary-authority/southend,ED Children & Public Health,Children And Education Services,3265,REDACTED PERSONAL DATA,10/10/2023,12074345,"1,586.20",Foster Carer Allowance,Other Agencies
Southend-on-Sea City Council,http://www.opendatacommunities.org/id/unitary-authority/southend,ED Children & Public Health,Children And Education Services,3265,REDACTED PERSONAL DATA,10/10/2023,12074345,810.56,Foster Carer Allowance,Other Agencies
Southend-on-Sea City Council,http://www.opendatacommunities.org/id/unitary-authority/southend,ED Children & Public Health,Children And Education Services,3265,REDACTED PERSONAL DATA,10/10/2023,12074345,828.17,Foster Carer Allowance,Other Agencies
Southend-on-Sea City Council,http://www.opendatacommunities.org/id/unitary-authority/southend,ED Children & Public Health,Children And Education Services,3265,REDACTED PERSONAL DATA,10/10/2023,12074345,"1,561.35",Foster Carer Allowance,Other Agencies
Southend-on-Sea City Council,http://www.opendatacommunities.org/id/unitary-authority/southend,ED Adults & Communities,Adult Social Care,1105,KEMFA SERVICES LTD,10/10/2023,12074345,"7,837.14",Private Contractors,Other Agencies
Southend-on-Sea City Council,http://www.opendatacommunities.org/id/unitary-authority/southend,ED Adults & Communities,Adult Social Care,1108,KEMFA SERVICES LTD,10/10/2023,12074345,726,Private Contractors,Other Agencies
Southend-on-Sea City Council,http://www.opendatacommunities.org/id/unitary-authority/southend,ED Adults & Communities,Adult Social Care,1205,KEMFA SERVICES LTD,10/10/2023,12074345,"1,253.60",Private Contractors,Other Agencies
Southend-on-Sea City Council,http://www.opendatacommunities.org/id/unitary-authority/southend,ED Adults & Communities,Adult Social Care,1310,KEMFA SERVICES LTD,10/10/2023,12074345,657.51,Private Contractors,Other Agencies
Southend-on-Sea City Council,http://www.opendatacommunities.org/id/unitary-authority/southend,ED Children & Public Health,Children And Education Services,3308,LEIGHVIEW HOUSE LTD T/A LEIGHVIEW HOUSE ROMFORD LTD,10/10/2023,12074345,550,Accomodation Payment,Services
Southend-on-Sea City Council,http://www.opendatacommunities.org/id/unitary-authority/southend,ED Children & Public Health,Children And Education Services,3290,LEIGHVIEW HOUSE LTD T/A LEIGHVIEW HOUSE ROMFORD LTD,10/10/2023,12074345,"1,500.00",Accomodation Payment,Services
Southend-on-Sea City Council,http://www.opendatacommunities.org/id/unitary-authority/southend,ED Children & Public Health,Children And Education Services,3290,LEIGHVIEW HOUSE LTD T/A LEIGHVIEW HOUSE ROMFORD LTD,10/10/2023,12074345,550,Accomodation Payment,Services
Southend-on-Sea City Council,http://www.opendatacommunities.org/id/unitary-authority/southend,ED Children & Public Health,Children And Education Services,3307,LEIGHVIEW HOUSE LTD T/A LEIGHVIEW HOUSE ROMFORD LTD,10/10/2023,12074345,"1,800.00",Accomodation Payment,Services
Southend-on-Sea City Council,http://www.opendatacommunities.org/id/unitary-authority/southend,ED Children & Public Health,Children And Education Services,3308,LEIGHVIEW HOUSE LTD T/A LEIGHVIEW HOUSE ROMFORD LTD,10/10/2023,12074345,"2,200.00",Accomodation Payment,Services
Southend-on-Sea City Council,http://www.opendatacommunities.org/id/unitary-authority/southend,ED Children & Public Health,Children And Education Services,3265,REDACTED PERSONAL DATA,10/10/2023,12074345,"1,400.00",Additional Allowances (non employee),Services
Southend-on-Sea City Council,http://www.opendatacommunities.org/id/unitary-authority/southend,ED Children & Public Health,Children And Education Services,3265,REDACTED PERSONAL DATA,10/10/2023,12074345,"1,146.53",Foster Carer Allowance,Other Agencies
Southend-on-Sea City Council,http://www.opendatacommunities.org/id/unitary-authority/southend,ED Children & Public Health,Children And Education Services,3265,REDACTED PERSONAL DATA,10/10/2023,12074345,565.2,Foster Carer Allowance,Other Agencies
Southend-on-Sea City Council,http://www.opendatacommunities.org/id/unitary-authority/southend,ED Children & Public Health,Children And Education Services,3265,REDACTED PERSONAL DATA,10/10/2023,12074345,"1,273.89",Foster Carer Allowance,Other Agencies
Southend-on-Sea City Council,http://www.opendatacommunities.org/id/unitary-authority/southend,ED Children & Public Health,Children And Education Services,3265,REDACTED PERSONAL DATA,10/10/2023,12074345,595.48,Foster Carer Allowance,Other Agencies
Southend-on-Sea City Council,http://www.opendatacommunities.org/id/unitary-authority/southend,ED Children & Public Health,Children And Education Services,3290,REDACTED PERSONAL DATA,10/10/2023,12074345,761.38,Additional Allowances (non employee),Services
Southend-on-Sea City Council,http://www.opendatacommunities.org/id/unitary-authority/southend,ED Children & Public Health,Children And Education Services,3265,REDACTED PERSONAL DATA,10/10/2023,12074345,"1,206.40",Foster Carer Allowance,Other Agencies
Southend-on-Sea City Council,http://www.opendatacommunities.org/id/unitary-authority/southend,ED Children & Public Health,Children And Education Services,3265,REDACTED PERSONAL DATA,10/10/2023,12074345,"1,365.36",Foster Carer Allowance,Other Agencies
Southend-on-Sea City Council,http://www.opendatacommunities.org/id/unitary-authority/southend,ED Growth & Housing,Adult Social Care,6012,REDACTED PERSONAL DATA,10/10/2023,12074345,"2,000.00",Additional Allowances (non employee),Services
Southend-on-Sea City Council,http://www.opendatacommunities.org/id/unitary-authority/southend,ED Children & Public Health,Children And Education Services,3265,REDACTED PERSONAL DATA,10/10/2023,12074345,"1,769.35",Foster Carer Allowance,Other Agencies
Southend-on-Sea City Council,http://www.opendatacommunities.org/id/unitary-authority/southend,ED Children & Public Health,Children And Education Services,3265,REDACTED PERSONAL DATA,10/10/2023,12074345,746.52,Foster Carer Allowance,Other Agencies
Southend-on-Sea City Council,http://www.opendatacommunities.org/id/unitary-authority/southend,ED Children & Public Health,Children And Education Services,3265,REDACTED PERSONAL DATA,10/10/2023,12074345,536.97,Foster Carer Allowance,Other Agencies
Southend-on-Sea City Council,http://www.opendatacommunities.org/id/unitary-authority/southend,ED Children & Public Health,Children And Education Services,3265,REDACTED PERSONAL DATA,10/10/2023,12074345,979.6,Foster Carer Allowance,Other Agencies
Southend-on-Sea City Council,http://www.opendatacommunities.org/id/unitary-authority/southend,ED Children & Public Health,Children And Education Services,3265,REDACTED PERSONAL DATA,10/10/2023,12074345,946.52,Foster Carer Allowance,Other Agencies
Southend-on-Sea City Council,http://www.opendatacommunities.org/id/unitary-authority/southend,ED Children & Public Health,Children And Education Services,3265,REDACTED PERSONAL DATA,10/10/2023,12074345,790.96,Foster Carer Allowance,Other Agencies
Southend-on-Sea City Council,http://www.opendatacommunities.org/id/unitary-authority/southend,ED Children & Public Health,Children And Education Services,3265,REDACTED PERSONAL DATA,10/10/2023,12074345,"1,579.75",Foster Carer Allowance,Other Agencies
Southend-on-Sea City Council,http://www.opendatacommunities.org/id/unitary-authority/southend,ED Adults & Communities,Adult Social Care,1105,MISS TARISAI MUSWABURI T/A PTSMART CARE,10/10/2023,12074345,"4,138.47",Private Contractors,Other Agencies
Southend-on-Sea City Council,http://www.opendatacommunities.org/id/unitary-authority/southend,ED Adults & Communities,Adult Social Care,1205,MISS TARISAI MUSWABURI T/A PTSMART CARE,10/10/2023,12074345,944.34,Private Contractors,Other Agencies
Southend-on-Sea City Council,http://www.opendatacommunities.org/id/unitary-authority/southend,Growth & Housing,Central Services,9007,MOTT MACDONALD,10/10/2023,12074345,"47,837.65",Contractors General,Contractors General
Southend-on-Sea City Council,http://www.opendatacommunities.org/id/unitary-authority/southend,ED Finance & Resources,Central Services,7085,MOTT MACDONALD,10/10/2023,12074345,"-17,527.11",Stationery,Printing Stationery And General Office Expenses
Southend-on-Sea City Council,http://www.opendatacommunities.org/id/unitary-authority/southend,ED Finance & Resources,Central Services,7085,MOTT MACDONALD,10/10/2023,12074345,"17,527.11",Stationery,Printing Stationery And General Office Expenses
Southend-on-Sea City Council,http://www.opendatacommunities.org/id/unitary-authority/southend,ED Children & Public Health,Children And Education Services,3265,REDACTED PERSONAL DATA,10/10/2023,12074345,"1,032.16",Foster Carer Allowance,Other Agencies
Southend-on-Sea City Council,http://www.opendatacommunities.org/id/unitary-authority/southend,ED Growth & Housing,Housing Services,6010,MR & MRS G CETNIK T/A PAVILION HOTEL,10/10/2023,12074345,588,Accommodation Costs,Expenses
Southend-on-Sea City Council,http://www.opendatacommunities.org/id/unitary-authority/southend,ED Children & Public Health,Children And Education Services,3265,REDACTED PERSONAL DATA,10/10/2023,12074345,783.73,Foster Carer Allowance,Other Agencies
Southend-on-Sea City Council,http://www.opendatacommunities.org/id/unitary-authority/southend,ED Growth & Housing,Adult Social Care,6012,REDACTED PERSONAL DATA,10/10/2023,12074345,500,Additional Allowances (non employee),Services
Southend-on-Sea City Council,http://www.opendatacommunities.org/id/unitary-authority/southend,ED Children & Public Health,Children And Education Services,3265,REDACTED PERSONAL DATA,10/10/2023,12074345,"1,132.67",Foster Carer Allowance,Other Agencies
Southend-on-Sea City Council,http://www.opendatacommunities.org/id/unitary-authority/southend,ED Growth & Housing,Adult Social Care,6012,REDACTED PERSONAL DATA,10/10/2023,12074345,500,Additional Allowances (non employee),Services
Southend-on-Sea City Council,http://www.opendatacommunities.org/id/unitary-authority/southend,ED Children & Public Health,Children And Education Services,3265,REDACTED PERSONAL DATA,10/10/2023,12074345,"1,511.08",Foster Carer Allowance,Other Agencies
Southend-on-Sea City Council,http://www.opendatacommunities.org/id/unitary-authority/southend,ED Growth & Housing,Adult Social Care,6012,REDACTED PERSONAL DATA,10/10/2023,12074345,500,Additional Allowances (non employee),Services
Southend-on-Sea City Council,http://www.opendatacommunities.org/id/unitary-authority/southend,ED Growth & Housing,Adult Social Care,6012,REDACTED PERSONAL DATA,10/10/2023,12074345,"2,550.00",Additional Allowances (non employee),Services
Southend-on-Sea City Council,http://www.opendatacommunities.org/id/unitary-authority/southend,ED Children & Public Health,Children And Education Services,3265,REDACTED PERSONAL DATA,10/10/2023,12074345,541.2,Foster Carer Allowance,Other Agencies
Southend-on-Sea City Council,http://www.opendatacommunities.org/id/unitary-authority/southend,ED Children & Public Health,Children And Education Services,3265,REDACTED PERSONAL DATA,10/10/2023,12074345,810.56,Foster Carer Allowance,Other Agencies
Southend-on-Sea City Council,http://www.opendatacommunities.org/id/unitary-authority/southend,ED Children & Public Health,Children And Education Services,3265,REDACTED PERSONAL DATA,10/10/2023,12074345,925.49,Foster Carer Allowance,Other Agencies
Southend-on-Sea City Council,http://www.opendatacommunities.org/id/unitary-authority/southend,ED Adults & Communities,Adult Social Care,1266,REDACTED PERSONAL DATA,10/10/2023,12074345,816.67,Private Contractors,Other Agencies
Southend-on-Sea City Council,http://www.opendatacommunities.org/id/unitary-authority/southend,ED Children & Public Health,Children And Education Services,3265,REDACTED PERSONAL DATA,10/10/2023,12074345,"1,073.89",Foster Carer Allowance,Other Agencies
Southend-on-Sea City Council,http://www.opendatacommunities.org/id/unitary-authority/southend,ED Children & Public Health,Children And Education Services,3265,REDACTED PERSONAL DATA,10/10/2023,12074345,524.55,Foster Carer Allowance,Other Agencies
Southend-on-Sea City Council,http://www.opendatacommunities.org/id/unitary-authority/southend,ED Children & Public Health,Children And Education Services,3265,REDACTED PERSONAL DATA,10/10/2023,12074345,886.95,Foster Carer Allowance,Other Agencies
Southend-on-Sea City Council,http://www.opendatacommunities.org/id/unitary-authority/southend,ED Children & Public Health,Children And Education Services,3265,REDACTED PERSONAL DATA,10/10/2023,12074345,"1,651.14",Foster Carer Allowance,Other Agencies
Southend-on-Sea City Council,http://www.opendatacommunities.org/id/unitary-authority/southend,ED Children & Public Health,Children And Education Services,3265,REDACTED PERSONAL DATA,10/10/2023,12074345,"1,017.85",Foster Carer Allowance,Other Agencies
Southend-on-Sea City Council,http://www.opendatacommunities.org/id/unitary-authority/southend,ED Children & Public Health,Children And Education Services,3265,REDACTED PERSONAL DATA,10/10/2023,12074345,670.28,Foster Carer Allowance,Other Agencies
Southend-on-Sea City Council,http://www.opendatacommunities.org/id/unitary-authority/southend,ED Children & Public Health,Children And Education Services,3265,REDACTED PERSONAL DATA,10/10/2023,12074345,"1,275.08",Foster Carer Allowance,Other Agencies
Southend-on-Sea City Council,http://www.opendatacommunities.org/id/unitary-authority/southend,ED Adults & Communities,Adult Social Care,1266,REDACTED PERSONAL DATA,10/10/2023,12074345,"2,265.34",Private Contractors,Other Agencies
Southend-on-Sea City Council,http://www.opendatacommunities.org/id/unitary-authority/southend,ED Growth & Housing,Adult Social Care,6012,REDACTED PERSONAL DATA,10/10/2023,12074345,500,Additional Allowances (non employee),Services
Southend-on-Sea City Council,http://www.opendatacommunities.org/id/unitary-authority/southend,ED Children & Public Health,Children And Education Services,3265,REDACTED PERSONAL DATA,10/10/2023,12074345,641.2,Foster Carer Allowance,Other Agencies
Southend-on-Sea City Council,http://www.opendatacommunities.org/id/unitary-authority/southend,ED Children & Public Health,Children And Education Services,3265,REDACTED PERSONAL DATA,10/10/2023,12074345,"1,259.92",Foster Carer Allowance,Other Agencies
Southend-on-Sea City Council,http://www.opendatacommunities.org/id/unitary-authority/southend,ED Children & Public Health,Children And Education Services,3265,REDACTED PERSONAL DATA,10/10/2023,12074345,"1,860.44",Foster Carer Allowance,Other Agencies
Southend-on-Sea City Council,http://www.opendatacommunities.org/id/unitary-authority/southend,ED Growth & Housing,Adult Social Care,6012,REDACTED PERSONAL DATA,10/10/2023,12074345,500,Additional Allowances (non employee),Services
Southend-on-Sea City Council,http://www.opendatacommunities.org/id/unitary-authority/southend,ED Adults & Communities,Adult Social Care,1105,NEWDAY HEALTHCARE PROFESSIONALS LTD,10/10/2023,12074345,"3,775.80",Private Contractors,Other Agencies
Southend-on-Sea City Council,http://www.opendatacommunities.org/id/unitary-authority/southend,ED Adults & Communities,Adult Social Care,1205,NEWDAY HEALTHCARE PROFESSIONALS LTD,10/10/2023,12074345,706.68,Private Contractors,Other Agencies
Southend-on-Sea City Council,http://www.opendatacommunities.org/id/unitary-authority/southend,ED Adults & Communities,Adult Social Care,1105,NONHLANHLA ABIGAIL MKHIZE T/A TOP OPTION HEALTHCARE LIMITED,10/10/2023,12074345,"3,662.60",Private Contractors,Other Agencies
Southend-on-Sea City Council,http://www.opendatacommunities.org/id/unitary-authority/southend,ED Adults & Communities,Adult Social Care,1105,NONHLANHLA ABIGAIL MKHIZE T/A TOP OPTION HEALTHCARE LIMITED,10/10/2023,12074345,"2,875.45",Private Contractors,Other Agencies
Southend-on-Sea City Council,http://www.opendatacommunities.org/id/unitary-authority/southend,ED Children & Public Health,Children And Education Services,3265,REDACTED PERSONAL DATA,10/10/2023,12074345,"1,823.60",Foster Carer Allowance,Other Agencies
Southend-on-Sea City Council,http://www.opendatacommunities.org/id/unitary-authority/southend,ED Adults & Communities,Adult Social Care,1675,PEABODY SOUTH EAST LIMITED,10/10/2023,12074345,"4,443.64",Private Contractors,Other Agencies
Southend-on-Sea City Council,http://www.opendatacommunities.org/id/unitary-authority/southend,ED Children & Public Health,Public Health,7625,QUEENSWAY SURGERY,10/10/2023,12074345,"1,860.00",Medical And Health Services,Services
Southend-on-Sea City Council,http://www.opendatacommunities.org/id/unitary-authority/southend,ED Adults & Communities,Adult Social Care,1105,ROYALE CARERS LIMITED,10/10/2023,12074345,"9,944.18",Private Contractors,Other Agencies
Southend-on-Sea City Council,http://www.opendatacommunities.org/id/unitary-authority/southend,ED Adults & Communities,Adult Social Care,1205,ROYALE CARERS LIMITED,10/10/2023,12074345,533.7,Private Contractors,Other Agencies
Southend-on-Sea City Council,http://www.opendatacommunities.org/id/unitary-authority/southend,ED Children & Public Health,Children And Education Services,3265,REDACTED PERSONAL DATA,10/10/2023,12074345,"1,036.68",Foster Carer Allowance,Other Agencies
Southend-on-Sea City Council,http://www.opendatacommunities.org/id/unitary-authority/southend,ED Children & Public Health,Children And Education Services,3265,REDACTED PERSONAL DATA,10/10/2023,12074345,982.94,Foster Carer Allowance,Other Agencies
Southend-on-Sea City Council,http://www.opendatacommunities.org/id/unitary-authority/southend,ED Children & Public Health,Children And Education Services,3265,REDACTED PERSONAL DATA,10/10/2023,12074345,591.47,Foster Carer Allowance,Other Agencies
Southend-on-Sea City Council,http://www.opendatacommunities.org/id/unitary-authority/southend,ED Children & Public Health,Children And Education Services,3265,REDACTED PERSONAL DATA,10/10/2023,12074345,"1,328.15",Foster Carer Allowance,Other Agencies
Southend-on-Sea City Council,http://www.opendatacommunities.org/id/unitary-authority/southend,ED Children & Public Health,Children And Education Services,3265,REDACTED PERSONAL DATA,10/10/2023,12074345,977.48,Foster Carer Allowance,Other Agencies
Southend-on-Sea City Council,http://www.opendatacommunities.org/id/unitary-authority/southend,ED Children & Public Health,Children And Education Services,3290,SAFE HAVEN SERVICES LTD,10/10/2023,12074345,950,Accomodation Payment,Services
Southend-on-Sea City Council,http://www.opendatacommunities.org/id/unitary-authority/southend,ED Children & Public Health,Children And Education Services,3307,SAFE HAVEN SERVICES LTD,10/10/2023,12074345,"1,300.00",Accomodation Payment,Services
Southend-on-Sea City Council,http://www.opendatacommunities.org/id/unitary-authority/southend,ED Children & Public Health,Children And Education Services,3308,SAFE HAVEN SERVICES LTD,10/10/2023,12074345,"2,691.54",Accomodation Payment,Services
Southend-on-Sea City Council,http://www.opendatacommunities.org/id/unitary-authority/southend,ED Adults & Communities,Adult Social Care,1105,SECAPLUS LIMITED T/A SECCARE+,10/10/2023,12074345,"21,916.08",Private Contractors,Other Agencies
Southend-on-Sea City Council,http://www.opendatacommunities.org/id/unitary-authority/southend,ED Adults & Communities,Adult Social Care,1205,SECAPLUS LIMITED T/A SECCARE+,10/10/2023,12074345,"1,551.61",Private Contractors,Other Agencies
Southend-on-Sea City Council,http://www.opendatacommunities.org/id/unitary-authority/southend,ED Adults & Communities,Adult Social Care,1674,SECAPLUS LIMITED T/A SECCARE+,10/10/2023,12074345,805.8,Private Contractors,Other Agencies
Southend-on-Sea City Council,http://www.opendatacommunities.org/id/unitary-authority/southend,ED Adults & Communities,Adult Social Care,1105,SECAPLUS LIMITED T/A SECCARE+,10/10/2023,12074345,"23,135.09",Private Contractors,Other Agencies
Southend-on-Sea City Council,http://www.opendatacommunities.org/id/unitary-authority/southend,ED Adults & Communities,Adult Social Care,1205,SECAPLUS LIMITED T/A SECCARE+,10/10/2023,12074345,"1,551.62",Private Contractors,Other Agencies
Southend-on-Sea City Council,http://www.opendatacommunities.org/id/unitary-authority/southend,ED Adults & Communities,Adult Social Care,1674,SECAPLUS LIMITED T/A SECCARE+,10/10/2023,12074345,805.8,Private Contractors,Other Agencies
Southend-on-Sea City Council,http://www.opendatacommunities.org/id/unitary-authority/southend,ED Children & Public Health,Children And Education Services,3265,REDACTED PERSONAL DATA,10/10/2023,12074345,836.68,Foster Carer Allowance,Other Agencies
Southend-on-Sea City Council,http://www.opendatacommunities.org/id/unitary-authority/southend,ED Neighbourhoods & Environment,Cultural and Related Services,7505,SOCIETE GENERALE EQUIPMENT FINANCE LIMITED,10/10/2023,12074345,"1,760.00",Vehicle Operating Lease,Contract Hire And Operating Leases
Southend-on-Sea City Council,http://www.opendatacommunities.org/id/unitary-authority/southend,ED Neighbourhoods & Environment,Cultural and Related Services,7520,SOCIETE GENERALE EQUIPMENT FINANCE LIMITED,10/10/2023,12074345,"1,050.00",Vehicle Operating Lease,Contract Hire And Operating Leases
Southend-on-Sea City Council,http://www.opendatacommunities.org/id/unitary-authority/southend,ED Neighbourhoods & Environment,Cultural and Related Services,7500,SOCIETE GENERALE EQUIPMENT FINANCE LIMITED,10/10/2023,12074345,905,Vehicle Operating Lease,Contract Hire And Operating Leases
Southend-on-Sea City Council,http://www.opendatacommunities.org/id/unitary-authority/southend,ED Growth & Housing,Housing Services,6010,SOUTHEND CENTRAL HOTEL LTD,10/10/2023,12074345,"4,187.50",Accommodation Costs,Expenses
Southend-on-Sea City Council,http://www.opendatacommunities.org/id/unitary-authority/southend,ED Growth & Housing,Housing Services,6010,SOUTHEND GUEST HOUSE,10/10/2023,12074345,"7,157.50",Accommodation Costs,Expenses
Southend-on-Sea City Council,http://www.opendatacommunities.org/id/unitary-authority/southend,Neighbourhoods & Environment,Central Services,9008,SOUTHERN ECOLOGICAL SOLUTIONS LTD,10/10/2023,12074345,"6,893.60",Contractors General,Contractors General
Southend-on-Sea City Council,http://www.opendatacommunities.org/id/unitary-authority/southend,ED Finance & Resources,Housing Services,6165,THE ISAIAH PROJECT T/A THE FURNITURE PROJECT,10/10/2023,12074345,783.49,Materials,Equipment Furniture And Materials
Southend-on-Sea City Council,http://www.opendatacommunities.org/id/unitary-authority/southend,ED Children & Public Health,Children And Education Services,3265,REDACTED PERSONAL DATA,10/10/2023,12074345,"1,364.22",Foster Carer Allowance,Other Agencies
Southend-on-Sea City Council,http://www.opendatacommunities.org/id/unitary-authority/southend,ED Adults & Communities,Adult Social Care,1105,TRIX MEDCARE LTD,10/10/2023,12074345,"7,535.85",Private Contractors,Other Agencies
Southend-on-Sea City Council,http://www.opendatacommunities.org/id/unitary-authority/southend,ED Adults & Communities,Adult Social Care,1205,TRIX MEDCARE LTD,10/10/2023,12074345,"2,263.42",Private Contractors,Other Agencies
Southend-on-Sea City Council,http://www.opendatacommunities.org/id/unitary-authority/southend,ED Adults & Communities,Adult Social Care,1105,TRIX MEDCARE LTD,10/10/2023,12074345,"7,518.82",Private Contractors,Other Agencies
Southend-on-Sea City Council,http://www.opendatacommunities.org/id/unitary-authority/southend,ED Adults & Communities,Adult Social Care,1205,TRIX MEDCARE LTD,10/10/2023,12074345,"1,510.64",Private Contractors,Other Agencies
Southend-on-Sea City Council,http://www.opendatacommunities.org/id/unitary-authority/southend,ED Adults & Communities,Adult Social Care,1105,TRIX MEDCARE LTD,10/10/2023,12074345,"7,391.98",Private Contractors,Other Agencies
Southend-on-Sea City Council,http://www.opendatacommunities.org/id/unitary-authority/southend,ED Adults & Communities,Adult Social Care,1205,TRIX MEDCARE LTD,10/10/2023,12074345,"1,510.65",Private Contractors,Other Agencies
Southend-on-Sea City Council,http://www.opendatacommunities.org/id/unitary-authority/southend,ED Children & Public Health,Children And Education Services,3265,REDACTED PERSONAL DATA,10/10/2023,12074345,890.96,Foster Carer Allowance,Other Agencies
Southend-on-Sea City Council,http://www.opendatacommunities.org/id/unitary-authority/southend,ED Children & Public Health,Children And Education Services,3265,REDACTED PERSONAL DATA,10/10/2023,12074345,891.47,Foster Carer Allowance,Other Agencies
Southend-on-Sea City Council,http://www.opendatacommunities.org/id/unitary-authority/southend,ED Finance & Resources,Central Services,9011,(G) CLOSE BROTHERS RAIL LTD,11/10/2023,12074350,"13,895.00",Main Contractor,Main Contractor
Southend-on-Sea City Council,http://www.opendatacommunities.org/id/unitary-authority/southend,Adults & Communities,Central Services,9010,(G) MILLANE CONTRACT SERVICES LTD,11/10/2023,12074350,"42,067.18",Main Contractor,Main Contractor
Southend-on-Sea City Council,http://www.opendatacommunities.org/id/unitary-authority/southend,Growth & Housing,Central Services,9007,(G) WILLMOTT DIXON CONSTRUCTION LIMITED,11/10/2023,12074350,"4,060.00",Main Contractor,Main Contractor
Southend-on-Sea City Council,http://www.opendatacommunities.org/id/unitary-authority/southend,ED Adults & Communities,Adult Social Care,1209,AIDAPT BATHROOMS LTD,11/10/2023,12074350,500,Tools And Equipment Purchase,Equipment Furniture And Materials
Southend-on-Sea City Council,http://www.opendatacommunities.org/id/unitary-authority/southend,ED Adults & Communities,Adult Social Care,1209,AIDAPT BATHROOMS LTD,11/10/2023,12074350,696,Tools And Equipment Purchase,Equipment Furniture And Materials
Southend-on-Sea City Council,http://www.opendatacommunities.org/id/unitary-authority/southend,ED Adults & Communities,Adult Social Care,1209,AIDAPT BATHROOMS LTD,11/10/2023,12074350,580,Tools And Equipment Purchase,Equipment Furniture And Materials
Southend-on-Sea City Council,http://www.opendatacommunities.org/id/unitary-authority/southend,ED Neighbourhoods & Environment,Environmental And Regulatory Services,4500,ANGLIA SIGN CASTING LIMITED,11/10/2023,12074350,896.24,Tools And Equipment Repair And Maintenance,Equipment Furniture And Materials
Southend-on-Sea City Council,http://www.opendatacommunities.org/id/unitary-authority/southend,ED Adults & Communities,Adult Social Care,1266,REDACTED PERSONAL DATA,11/10/2023,12074350,"1,036.42",Private Contractors,Other Agencies
Southend-on-Sea City Council,http://www.opendatacommunities.org/id/unitary-authority/southend,ED Adults & Communities,Adult Social Care,1260,ASHGATE HOUSE LIMITED,11/10/2023,12074350,"5,774.44",Private Contractors,Other Agencies
Southend-on-Sea City Council,http://www.opendatacommunities.org/id/unitary-authority/southend,ED Adults & Communities,Adult Social Care,1105,ASHLEY COMMUNITY CARE SERVICES LTD T/A ASHLEY CARE,11/10/2023,12074350,522.47,Private Contractors,Other Agencies
Southend-on-Sea City Council,http://www.opendatacommunities.org/id/unitary-authority/southend,ED Adults & Communities,Adult Social Care,1105,ASHLEY COMMUNITY CARE SERVICES LTD T/A ASHLEY CARE,11/10/2023,12074350,878.71,Private Contractors,Other Agencies
Southend-on-Sea City Council,http://www.opendatacommunities.org/id/unitary-authority/southend,ED Adults & Communities,Adult Social Care,1260,ASHTEAD HOUSE LIMITED,11/10/2023,12074350,"5,931.52",Private Contractors,Other Agencies
Southend-on-Sea City Council,http://www.opendatacommunities.org/id/unitary-authority/southend,ED Children & Public Health,Public Health,8700,ASSOCIATION OF DIRECTORS OF PUBLIC HEALTH,11/10/2023,12074350,"4,250.00",Subscriptions,Grants And Subscriptions
Southend-on-Sea City Council,http://www.opendatacommunities.org/id/unitary-authority/southend,ED Children & Public Health,Children And Education Services,3025,ATF SOUTHEND YFC,11/10/2023,12074350,"23,713.00",Grants,Grants And Subscriptions
Southend-on-Sea City Council,http://www.opendatacommunities.org/id/unitary-authority/southend,ED Adults & Communities,Adult Social Care,1320,BADGERS DEN (CARE) LIMITED T/A BADGERS DEN DAY OPPORTUNITIES,11/10/2023,12074350,780,Private Contractors,Other Agencies
Southend-on-Sea City Council,http://www.opendatacommunities.org/id/unitary-authority/southend,ED Children & Public Health,Children And Education Services,3481,BUTTERFLIES CLUB C.I.C.,11/10/2023,12074350,"1,210.00",Childrens outings,Services
Southend-on-Sea City Council,http://www.opendatacommunities.org/id/unitary-authority/southend,ED Children & Public Health,Children And Education Services,3481,BUTTERFLIES CLUB C.I.C.,11/10/2023,12074350,550,Childrens outings,Services
Southend-on-Sea City Council,http://www.opendatacommunities.org/id/unitary-authority/southend,ED Children & Public Health,Children And Education Services,3481,BUTTERFLIES CLUB C.I.C.,11/10/2023,12074350,990,Childrens outings,Services
Southend-on-Sea City Council,http://www.opendatacommunities.org/id/unitary-authority/southend,ED Children & Public Health,Children And Education Services,3307,BY THE BRIDGE LTD,11/10/2023,12074350,"4,284.00",Private Contractors,Other Agencies
Southend-on-Sea City Council,http://www.opendatacommunities.org/id/unitary-authority/southend,ED Children & Public Health,Children And Education Services,3250,BY THE BRIDGE LTD,11/10/2023,12074350,"4,284.00",Private Contractors,Other Agencies
Southend-on-Sea City Council,http://www.opendatacommunities.org/id/unitary-authority/southend,ED Children & Public Health,Children And Education Services,3307,CAPSTONE FOSTER CARE (SOUTH EAST) LTD,11/10/2023,12074350,"4,299.70",Private Contractors,Other Agencies
Southend-on-Sea City Council,http://www.opendatacommunities.org/id/unitary-authority/southend,ED Children & Public Health,Children And Education Services,3250,CEEBEE CARE SOLUTIONS LTD,11/10/2023,12074350,"4,116.00",Private Contractors,Other Agencies
Southend-on-Sea City Council,http://www.opendatacommunities.org/id/unitary-authority/southend,ED Adults & Communities,Adult Social Care,1205,CHOICES HEALTHCARE LTD,11/10/2023,12074350,"1,355.76",Private Contractors,Other Agencies
Southend-on-Sea City Council,http://www.opendatacommunities.org/id/unitary-authority/southend,ED Adults & Communities,Adult Social Care,1205,CHOICES HEALTHCARE LTD,11/10/2023,12074350,"1,355.76",Private Contractors,Other Agencies
Southend-on-Sea City Council,http://www.opendatacommunities.org/id/unitary-authority/southend,ED Adults & Communities,Adult Social Care,1105,CHRISTIES CARE LTD.,11/10/2023,12074350,"5,422.00",Private Contractors,Other Agencies
Southend-on-Sea City Council,http://www.opendatacommunities.org/id/unitary-authority/southend,ED Children & Public Health,Children And Education Services,3030,CLASS AFFINITY PROJECTS LTD T/A CLASS NETWORKS,11/10/2023,12074350,692.91,Communications Purchase Of Equipment,Communications And Computing
Southend-on-Sea City Council,http://www.opendatacommunities.org/id/unitary-authority/southend,ED Children & Public Health,Children And Education Services,3307,CLOVER FOSTERING LIMITED,11/10/2023,12074350,"3,542.99",Private Contractors,Other Agencies
Southend-on-Sea City Council,http://www.opendatacommunities.org/id/unitary-authority/southend,ED Children & Public Health,Children And Education Services,3290,COMPASS SOCIAL CARE LIMITED,11/10/2023,12074350,"7,885.71",Accomodation Payment,Services
Southend-on-Sea City Council,http://www.opendatacommunities.org/id/unitary-authority/southend,ED Children & Public Health,Children And Education Services,3250,COMPASS SOCIAL CARE LIMITED,11/10/2023,12074350,"11,314.29",Private Contractors,Other Agencies
Southend-on-Sea City Council,http://www.opendatacommunities.org/id/unitary-authority/southend,ED Children & Public Health,Children And Education Services,3250,COMPASS SOCIAL CARE LIMITED,11/10/2023,12074350,"1,714.29",Private Contractors,Other Agencies
Southend-on-Sea City Council,http://www.opendatacommunities.org/id/unitary-authority/southend,ED Adults & Communities,Adult Social Care,1105,CONCEPT CARE SOLUTIONS LTD T/A DOLPHIN CARE,11/10/2023,12074350,639.01,Private Contractors,Other Agencies
Southend-on-Sea City Council,http://www.opendatacommunities.org/id/unitary-authority/southend,ED Adults & Communities,Adult Social Care,1400,CONCEPT CARE SOLUTIONS LTD T/A DOLPHIN CARE,11/10/2023,12074350,522.72,Private Contractors,Other Agencies
Southend-on-Sea City Council,http://www.opendatacommunities.org/id/unitary-authority/southend,Adults & Communities,Central Services,9010,CRL SURVEYS LIMTIED,11/10/2023,12074350,"18,095.00",Main Contractor,Main Contractor
Southend-on-Sea City Council,http://www.opendatacommunities.org/id/unitary-authority/southend,ED Adults & Communities,Adult Social Care,1105,DE VERE CARE PARTNERSHIP LTD,11/10/2023,12074350,"12,575.65",Private Contractors,Other Agencies
Southend-on-Sea City Council,http://www.opendatacommunities.org/id/unitary-authority/southend,ED Finance & Resources,Central Services,2027,EAST OF ENGLAND LGA,11/10/2023,12074350,"2,000.00",Subscriptions,Grants And Subscriptions
Southend-on-Sea City Council,http://www.opendatacommunities.org/id/unitary-authority/southend,ED Children & Public Health,Children And Education Services,3592,ESSEX SOCIAL WORK THERAPIES LTD,11/10/2023,12074350,"1,015.75",Professional Fees,Services
Southend-on-Sea City Council,http://www.opendatacommunities.org/id/unitary-authority/southend,ED Neighbourhoods & Environment,Environmental And Regulatory Services,4505,F G MARSHALL LTD,11/10/2023,12074350,548.77,Crematoria And Cemetery Services,Services
Southend-on-Sea City Council,http://www.opendatacommunities.org/id/unitary-authority/southend,ED Neighbourhoods & Environment,Cultural And Related Services,7540,FUELOILS,11/10/2023,12074350,"2,536.00",Petrol Diesel Or Liquid Petroleum Gas,Direct Transport Costs
Southend-on-Sea City Council,http://www.opendatacommunities.org/id/unitary-authority/southend,ED Children & Public Health,Children And Education Services,3250,FUSION FOSTERING LTD,11/10/2023,12074350,"3,981.29",Private Contractors,Other Agencies
Southend-on-Sea City Council,http://www.opendatacommunities.org/id/unitary-authority/southend,ED Children & Public Health,Children And Education Services,3250,INTEGRATED SERVICES PROGRAMME,11/10/2023,12074350,"-3,144.12",Private Contractors,Other Agencies
Southend-on-Sea City Council,http://www.opendatacommunities.org/id/unitary-authority/southend,ED Children & Public Health,Children And Education Services,3250,INTEGRATED SERVICES PROGRAMME,11/10/2023,12074350,"-7,492.52",Private Contractors,Other Agencies
Southend-on-Sea City Council,http://www.opendatacommunities.org/id/unitary-authority/southend,ED Children & Public Health,Children And Education Services,3250,INTEGRATED SERVICES PROGRAMME,11/10/2023,12074350,"3,144.12",Private Contractors,Other Agencies
Southend-on-Sea City Council,http://www.opendatacommunities.org/id/unitary-authority/southend,ED Children & Public Health,Children And Education Services,3250,INTEGRATED SERVICES PROGRAMME,11/10/2023,12074350,"7,492.52",Private Contractors,Other Agencies
Southend-on-Sea City Council,http://www.opendatacommunities.org/id/unitary-authority/southend,ED Children & Public Health,Children And Education Services,3992,INTEGRATED SERVICES PROGRAMME,11/10/2023,12074350,800,Private Contractors,Other Agencies
Southend-on-Sea City Council,http://www.opendatacommunities.org/id/unitary-authority/southend,ED Children & Public Health,Children And Education Services,3092,J & R CARE LIMITED,11/10/2023,12074350,"4,740.00",Private Contractors,Other Agencies
Southend-on-Sea City Council,http://www.opendatacommunities.org/id/unitary-authority/southend,ED Children & Public Health,Children And Education Services,3250,J & R CARE LIMITED,11/10/2023,12074350,"23,100.00",Private Contractors,Other Agencies
Southend-on-Sea City Council,http://www.opendatacommunities.org/id/unitary-authority/southend,ED Adults & Communities,Cultural And Related Services,4055,JOANNE NACAR T/A JOEY HOLDER,11/10/2023,12074350,"1,000.00",Professional Fees,Services
Southend-on-Sea City Council,http://www.opendatacommunities.org/id/unitary-authority/southend,ED Children & Public Health,Children And Education Services,3250,KENT HOMEFINDING AND FOSTERING LTD,11/10/2023,12074350,"4,203.91",Private Contractors,Other Agencies
Southend-on-Sea City Council,http://www.opendatacommunities.org/id/unitary-authority/southend,ED Children & Public Health,Children And Education Services,3250,KENT HOMEFINDING AND FOSTERING LTD,11/10/2023,12074350,"4,076.50",Private Contractors,Other Agencies
Southend-on-Sea City Council,http://www.opendatacommunities.org/id/unitary-authority/southend,ED Children & Public Health,Children And Education Services,3250,KENT HOMEFINDING AND FOSTERING LTD,11/10/2023,12074350,"3,968.31",Private Contractors,Other Agencies
Southend-on-Sea City Council,http://www.opendatacommunities.org/id/unitary-authority/southend,ED Children & Public Health,Children And Education Services,3025,KICK OFF PHYSICAL ACTIVITY LTD,11/10/2023,12074350,"6,720.00",Grants,Grants And Subscriptions
Southend-on-Sea City Council,http://www.opendatacommunities.org/id/unitary-authority/southend,ED Growth & Housing,Housing Services,6010,LAMPWICK CARE LTD,11/10/2023,12074350,735,Accommodation Costs,Expenses
Southend-on-Sea City Council,http://www.opendatacommunities.org/id/unitary-authority/southend,ED Adults & Communities,Cultural And Related Services,4230,REDACTED PERSONAL DATA,11/10/2023,12074350,"1,000.00",Cultural And Entertainment Services,Services
Southend-on-Sea City Council,http://www.opendatacommunities.org/id/unitary-authority/southend,ED Adults & Communities,Cultural And Related Services,4055,REDACTED PERSONAL DATA,11/10/2023,12074350,"3,000.00",Professional Fees,Services
Southend-on-Sea City Council,http://www.opendatacommunities.org/id/unitary-authority/southend,ED Children & Public Health,Children And Education Services,3480,REDACTED PERSONAL DATA,11/10/2023,12074350,"1,024.70",Professional Fees,Services
Southend-on-Sea City Council,http://www.opendatacommunities.org/id/unitary-authority/southend,ED Children & Public Health,Children And Education Services,3250,NEXT CHAPTER CARE GROUP LTD,11/10/2023,12074350,"10,000.00",Private Contractors,Other Agencies
Southend-on-Sea City Council,http://www.opendatacommunities.org/id/unitary-authority/southend,"ED Strategy, Change & Governance",Central Services,8650,NEXTGENACCESS LTD,11/10/2023,12074350,"108,422.58",IT Contracts,Communications And Computing
Southend-on-Sea City Council,http://www.opendatacommunities.org/id/unitary-authority/southend,"ED Strategy, Change & Governance",Central Services,7105,NTC SERVICES LIMITED T/A DANIEL ATTRIDGE,11/10/2023,12074350,550,Barristers fees,Services
Southend-on-Sea City Council,http://www.opendatacommunities.org/id/unitary-authority/southend,"ED Strategy, Change & Governance",Central Services,7105,NTC SERVICES LTD 1 T/A MISS ANNE-MARIE LUCEY,11/10/2023,12074350,"1,240.00",Barristers fees,Services
Southend-on-Sea City Council,http://www.opendatacommunities.org/id/unitary-authority/southend,ED Children & Public Health,Children And Education Services,3250,OAK HOUSE CHILDRENS HOME LIMITED,11/10/2023,12074350,"45,968.57",Private Contractors,Other Agencies
Southend-on-Sea City Council,http://www.opendatacommunities.org/id/unitary-authority/southend,ED Children & Public Health,Children And Education Services,3250,PATHWAYS CARE GROUP LIMITED,11/10/2023,12074350,"24,011.28",Private Contractors,Other Agencies
Southend-on-Sea City Council,http://www.opendatacommunities.org/id/unitary-authority/southend,ED Children & Public Health,Children And Education Services,3892,POTTON KARE SERVICES LTD T/A PKS SOCIAL CARE AGENCY,11/10/2023,12074350,808,Private Contractors,Other Agencies
Southend-on-Sea City Council,http://www.opendatacommunities.org/id/unitary-authority/southend,ED Children & Public Health,Children And Education Services,3492,POTTON KARE SERVICES LTD T/A PKS SOCIAL CARE AGENCY,11/10/2023,12074350,"1,604.00",Private Contractors,Other Agencies
Southend-on-Sea City Council,http://www.opendatacommunities.org/id/unitary-authority/southend,"ED Strategy, Change & Governance",Central Services,7137,R & A SOFTWARE (SYSTEMS) LTD T/A R A INFORMATION SYSTEMS,11/10/2023,12074350,"2,500.00",IT Contracts,Communications And Computing
Southend-on-Sea City Council,http://www.opendatacommunities.org/id/unitary-authority/southend,ED Children & Public Health,Children And Education Services,3105,RHYTHM CONNECTIONS,11/10/2023,12074350,"4,500.00",Professional Fees,Services
Southend-on-Sea City Council,http://www.opendatacommunities.org/id/unitary-authority/southend,ED Adults & Communities,Cultural And Related Services,4025,ROCKSHOP WHOLESALE LTD,11/10/2023,12074350,653.5,Cultural And Entertainment Services,Services
Southend-on-Sea City Council,http://www.opendatacommunities.org/id/unitary-authority/southend,"ED Strategy, Change & Governance",Adult Social Care,3201,SAFE STEPS,11/10/2023,12074350,"4,200.00",Commissioned Training,Services
Southend-on-Sea City Council,http://www.opendatacommunities.org/id/unitary-authority/southend,ED Finance & Resources,Housing Services,6165,SALE APPLIANCES,11/10/2023,12074350,683.13,Materials,Equipment Furniture And Materials
Southend-on-Sea City Council,http://www.opendatacommunities.org/id/unitary-authority/southend,ED Children & Public Health,Children And Education Services,3691,SANCTUARY HOUSING ASSOCIATION,11/10/2023,12074350,"1,406.64",Accomodation Payment,Services
Southend-on-Sea City Council,http://www.opendatacommunities.org/id/unitary-authority/southend,ED Adults & Communities,Adult Social Care,1260,SATURN HEALTHCARE HOLDINGS LTD T/A BRETT VALE RESIDENTIAL HOME,11/10/2023,12074350,"10,944.64",Private Contractors,Other Agencies
Southend-on-Sea City Council,http://www.opendatacommunities.org/id/unitary-authority/southend,ED Adults & Communities,Adult Social Care,1209,SCAN MOBILITY LTD,11/10/2023,12074350,"1,598.88",Tools And Equipment Purchase,Equipment Furniture And Materials
Southend-on-Sea City Council,http://www.opendatacommunities.org/id/unitary-authority/southend,ED Adults & Communities,Adult Social Care,1105,SEVEN DAY CARE (ESSEX) LTD T/A SURECARE SOUTHEND,11/10/2023,12074350,"17,003.60",Private Contractors,Other Agencies
Southend-on-Sea City Council,http://www.opendatacommunities.org/id/unitary-authority/southend,ED Adults & Communities,Adult Social Care,1205,SEVEN DAY CARE (ESSEX) LTD T/A SURECARE SOUTHEND,11/10/2023,12074350,534.94,Private Contractors,Other Agencies
Southend-on-Sea City Council,http://www.opendatacommunities.org/id/unitary-authority/southend,ED Adults & Communities,Adult Social Care,1643,SEVEN DAY CARE (ESSEX) LTD T/A SURECARE SOUTHEND,11/10/2023,12074350,515.36,Private Contractors,Other Agencies
Southend-on-Sea City Council,http://www.opendatacommunities.org/id/unitary-authority/southend,ED Adults & Communities,Housing Services,1011,SOUTH ESSEX ADVOCACY SERVICES,11/10/2023,12074350,"55,737.00",Social Care Services,Services
Southend-on-Sea City Council,http://www.opendatacommunities.org/id/unitary-authority/southend,ED Adults & Communities,Adult Social Care,1350,SOUTHEND CENTRAL HOTEL LTD,11/10/2023,12074350,"1,950.00",Social Care Services,Services
Southend-on-Sea City Council,http://www.opendatacommunities.org/id/unitary-authority/southend,ED Children & Public Health,Children And Education Services,3791,SOUTHEND CENTRAL HOTEL LTD,11/10/2023,12074350,"1,425.00",Accomodation Payment,Services
Southend-on-Sea City Council,http://www.opendatacommunities.org/id/unitary-authority/southend,ED Children & Public Health,Children And Education Services,3791,SOUTHEND CENTRAL HOTEL LTD,11/10/2023,12074350,"2,550.00",Accomodation Payment,Services
Southend-on-Sea City Council,http://www.opendatacommunities.org/id/unitary-authority/southend,ED Adults & Communities,Adult Social Care,1105,SPDNS NURSE CARE CIC.,11/10/2023,12074350,"10,865.08",Private Contractors,Other Agencies
Southend-on-Sea City Council,http://www.opendatacommunities.org/id/unitary-authority/southend,ED Adults & Communities,Adult Social Care,1108,SPDNS NURSE CARE CIC.,11/10/2023,12074350,"1,671.10",Private Contractors,Other Agencies
Southend-on-Sea City Council,http://www.opendatacommunities.org/id/unitary-authority/southend,ED Adults & Communities,Adult Social Care,1205,SPDNS NURSE CARE CIC.,11/10/2023,12074350,"1,181.78",Private Contractors,Other Agencies
Southend-on-Sea City Council,http://www.opendatacommunities.org/id/unitary-authority/southend,ED Adults & Communities,Adult Social Care,1105,SPDNS NURSE CARE CIC.,11/10/2023,12074350,"10,941.62",Private Contractors,Other Agencies
Southend-on-Sea City Council,http://www.opendatacommunities.org/id/unitary-authority/southend,ED Adults & Communities,Adult Social Care,1108,SPDNS NURSE CARE CIC.,11/10/2023,12074350,"1,303.93",Private Contractors,Other Agencies
Southend-on-Sea City Council,http://www.opendatacommunities.org/id/unitary-authority/southend,ED Adults & Communities,Adult Social Care,1205,SPDNS NURSE CARE CIC.,11/10/2023,12074350,"1,162.57",Private Contractors,Other Agencies
Southend-on-Sea City Council,http://www.opendatacommunities.org/id/unitary-authority/southend,ED Adults & Communities,Adult Social Care,1105,SPDNS NURSE CARE CIC.,11/10/2023,12074350,"11,555.74",Private Contractors,Other Agencies
Southend-on-Sea City Council,http://www.opendatacommunities.org/id/unitary-authority/southend,ED Adults & Communities,Adult Social Care,1108,SPDNS NURSE CARE CIC.,11/10/2023,12074350,"1,713.72",Private Contractors,Other Agencies
Southend-on-Sea City Council,http://www.opendatacommunities.org/id/unitary-authority/southend,ED Adults & Communities,Adult Social Care,1205,SPDNS NURSE CARE CIC.,11/10/2023,12074350,"1,047.32",Private Contractors,Other Agencies
Southend-on-Sea City Council,http://www.opendatacommunities.org/id/unitary-authority/southend,ED Adults & Communities,Cultural And Related Services,4230,STAMBRIDGE SECURITY SERVICES LTD,11/10/2023,12074350,"4,316.00",Cultural And Entertainment Services,Services
Southend-on-Sea City Council,http://www.opendatacommunities.org/id/unitary-authority/southend,ED Adults & Communities,Adult Social Care,1266,REDACTED PERSONAL DATA,11/10/2023,12074350,613.34,Private Contractors,Other Agencies
Southend-on-Sea City Council,http://www.opendatacommunities.org/id/unitary-authority/southend,Neighbourhoods & Environment,Central Services,9008,SWARCO UK & IRELAND LTD,11/10/2023,12074350,"4,332.27",Main Contractor,Main Contractor
Southend-on-Sea City Council,http://www.opendatacommunities.org/id/unitary-authority/southend,ED Neighbourhoods & Environment,Highways And Transport Services,5130,SWARCO UK & IRELAND LTD,11/10/2023,12074350,"19,344.75",Private Contractors,Other Agencies
Southend-on-Sea City Council,http://www.opendatacommunities.org/id/unitary-authority/southend,ED Children & Public Health,Children And Education Services,3091,THE BRICKFIELDS TRUST T/A GREAT WAKERING PRIMARY ACADEMY,11/10/2023,12074350,"3,250.00",Private Contractors,Other Agencies
Southend-on-Sea City Council,http://www.opendatacommunities.org/id/unitary-authority/southend,"ED Strategy, Change & Governance",Central Services,2045,THE COPYRIGHT LICENSING AGENCY LTD,11/10/2023,12074350,"17,865.54",Services Fees And Charges,Services
Southend-on-Sea City Council,http://www.opendatacommunities.org/id/unitary-authority/southend,ED Children & Public Health,Children And Education Services,3482,THE PEACEFUL PONY CIC,11/10/2023,12074350,840,Additional Allowances (non employee),Services
Southend-on-Sea City Council,http://www.opendatacommunities.org/id/unitary-authority/southend,ED Children & Public Health,Children And Education Services,3310,UNIVERSITY OF ESSEX CAMPUS SERVICES LTD T/A EVENT ESSEX,11/10/2023,12074350,"1,702.50",Education Services,Services
Southend-on-Sea City Council,http://www.opendatacommunities.org/id/unitary-authority/southend,ED Children & Public Health,Children And Education Services,3020,WESTCLIFF PRE SCHOOL,11/10/2023,12074350,"3,542.34",Other Establishments,Other Establishments
Southend-on-Sea City Council,http://www.opendatacommunities.org/id/unitary-authority/southend,ED Finance & Resources,Central Services,9011,(G) A W HARDY & CO LIMITED,13/10/2023,12074354,"85,419.43",Main Contractor,Main Contractor
Southend-on-Sea City Council,http://www.opendatacommunities.org/id/unitary-authority/southend,Children & Public Health,Central Services,9009,(G) KIERAN LUCAS CONTRACTORS LTD,13/10/2023,12074354,"1,250.00",Main Contractor,Main Contractor
Southend-on-Sea City Council,http://www.opendatacommunities.org/id/unitary-authority/southend,Adults & Communities,Central Services,9010,(G) KIERAN LUCAS CONTRACTORS LTD,13/10/2023,12074354,"2,460.00",Main Contractor,Main Contractor
Southend-on-Sea City Council,http://www.opendatacommunities.org/id/unitary-authority/southend,Adults & Communities,Central Services,9010,(G) KIERAN LUCAS CONTRACTORS LTD,13/10/2023,12074354,"12,278.74",Main Contractor,Main Contractor
Southend-on-Sea City Council,http://www.opendatacommunities.org/id/unitary-authority/southend,ED Adults & Communities,Cultural And Related Services,4120,(G) KIERAN LUCAS CONTRACTORS LTD,13/10/2023,12074354,"1,068.00",Repairs And Maintenance Contracts,"Repairs, alterations and maintenance of buildings"
Southend-on-Sea City Council,http://www.opendatacommunities.org/id/unitary-authority/southend,ED Adults & Communities,Cultural And Related Services,4120,(G) KIERAN LUCAS CONTRACTORS LTD,13/10/2023,12074354,"1,486.00",Repairs And Maintenance Contracts,"Repairs, alterations and maintenance of buildings"
Southend-on-Sea City Council,http://www.opendatacommunities.org/id/unitary-authority/southend,Neighbourhoods & Environment,Central Services,9008,(G) MARLBOROUGH SURFACING LIMITED,13/10/2023,12074354,"23,300.32",Contractors General,Contractors General
Southend-on-Sea City Council,http://www.opendatacommunities.org/id/unitary-authority/southend,Neighbourhoods & Environment,Central Services,9008,(G) MARLBOROUGH SURFACING LIMITED,13/10/2023,12074354,"32,915.48",Main Contractor,Main Contractor
Southend-on-Sea City Council,http://www.opendatacommunities.org/id/unitary-authority/southend,ED Neighbourhoods & Environment,Environmental And Regulatory Services,4545,(G) MARLBOROUGH SURFACING LIMITED,13/10/2023,12074354,"17,700.71",Private Contractors,Other Agencies
Southend-on-Sea City Council,http://www.opendatacommunities.org/id/unitary-authority/southend,ED Neighbourhoods & Environment,Highways And Transport Services,5119,(G) MARLBOROUGH SURFACING LIMITED,13/10/2023,12074354,"1,477.45",Private Contractors,Other Agencies
Southend-on-Sea City Council,http://www.opendatacommunities.org/id/unitary-authority/southend,ED Neighbourhoods & Environment,Highways And Transport Services,5121,(G) MARLBOROUGH SURFACING LIMITED,13/10/2023,12074354,"1,550.05",Private Contractors,Other Agencies
Southend-on-Sea City Council,http://www.opendatacommunities.org/id/unitary-authority/southend,ED Neighbourhoods & Environment,Highways And Transport Services,5123,(G) MARLBOROUGH SURFACING LIMITED,13/10/2023,12074354,"7,764.40",Private Contractors,Other Agencies
Southend-on-Sea City Council,http://www.opendatacommunities.org/id/unitary-authority/southend,ED Neighbourhoods & Environment,Highways And Transport Services,5127,(G) MARLBOROUGH SURFACING LIMITED,13/10/2023,12074354,843.35,Private Contractors,Other Agencies
Southend-on-Sea City Council,http://www.opendatacommunities.org/id/unitary-authority/southend,ED Neighbourhoods & Environment,Highways And Transport Services,5130,(G) MARLBOROUGH SURFACING LIMITED,13/10/2023,12074354,"5,795.62",Private Contractors,Other Agencies
Southend-on-Sea City Council,http://www.opendatacommunities.org/id/unitary-authority/southend,ED Neighbourhoods & Environment,Highways And Transport Services,5170,(G) MARLBOROUGH SURFACING LIMITED,13/10/2023,12074354,"14,411.97",Private Contractors,Other Agencies
Southend-on-Sea City Council,http://www.opendatacommunities.org/id/unitary-authority/southend,ED Neighbourhoods & Environment,Highways And Transport Services,5710,(G) MARLBOROUGH SURFACING LIMITED,13/10/2023,12074354,"5,284.10",Private Contractors,Other Agencies
Southend-on-Sea City Council,http://www.opendatacommunities.org/id/unitary-authority/southend,ED Neighbourhoods & Environment,Highways And Transport Services,7025,(G) MARLBOROUGH SURFACING LIMITED,13/10/2023,12074354,"55,261.31",Private Contractors,Other Agencies
Southend-on-Sea City Council,http://www.opendatacommunities.org/id/unitary-authority/southend,ED Neighbourhoods & Environment,Highways And Transport Services,7025,(G) MARLBOROUGH SURFACING LIMITED,13/10/2023,12074354,943.84,Private Contractors,Other Agencies
Southend-on-Sea City Council,http://www.opendatacommunities.org/id/unitary-authority/southend,ED Neighbourhoods & Environment,Environmental And Regulatory Services,4605,(G) R & A MECHANICAL SERVICES LTD,13/10/2023,12074354,"2,100.00",Repairs And Maintenance Contracts,"Repairs, alterations and maintenance of buildings"
Southend-on-Sea City Council,http://www.opendatacommunities.org/id/unitary-authority/southend,ED Neighbourhoods & Environment,Environmental And Regulatory Services,4605,(G) R & A MECHANICAL SERVICES LTD,13/10/2023,12074354,630,Repairs And Maintenance Contracts,"Repairs, alterations and maintenance of buildings"
Southend-on-Sea City Council,http://www.opendatacommunities.org/id/unitary-authority/southend,ED Adults & Communities,Cultural And Related Services,4120,(G) TES 2000 LTD,13/10/2023,12074354,"6,946.96",Repairs And Maintenance Contracts,"Repairs, alterations and maintenance of buildings"
Southend-on-Sea City Council,http://www.opendatacommunities.org/id/unitary-authority/southend,ED Adults & Communities,Cultural And Related Services,4123,(N) LIFT SPECIALISTS LTD,13/10/2023,12074354,737.5,Repairs And Maintenance Lifts,"Repairs, alterations and maintenance of buildings"
Southend-on-Sea City Council,http://www.opendatacommunities.org/id/unitary-authority/southend,ED Adults & Communities,Adult Social Care,1391,A K SUPPORT HOUSING LIMITED,13/10/2023,12074354,"2,310.00",Private Contractors,Other Agencies
Southend-on-Sea City Council,http://www.opendatacommunities.org/id/unitary-authority/southend,ED Adults & Communities,Adult Social Care,1070,AARANDALE LODGE LTD,13/10/2023,12074354,"20,418.84",Private Contractors,Other Agencies
Southend-on-Sea City Council,http://www.opendatacommunities.org/id/unitary-authority/southend,ED Adults & Communities,Adult Social Care,1260,ABBEY CARE SAXON LTD T/A SAXON COURT,13/10/2023,12074354,"2,998.64",Private Contractors,Other Agencies
Southend-on-Sea City Council,http://www.opendatacommunities.org/id/unitary-authority/southend,ED Adults & Communities,Adult Social Care,1070,ABBEYFIELD SOCIETY LTD,13/10/2023,12074354,"13,658.40",Private Contractors,Other Agencies
Southend-on-Sea City Council,http://www.opendatacommunities.org/id/unitary-authority/southend,ED Adults & Communities,Adult Social Care,1260,ACHIEVE TOGETHER LIMITED,13/10/2023,12074354,"20,293.28",Private Contractors,Other Agencies
Southend-on-Sea City Council,http://www.opendatacommunities.org/id/unitary-authority/southend,ED Adults & Communities,Adult Social Care,1671,ACHIEVE TOGETHER LIMITED,13/10/2023,12074354,"13,001.40",Private Contractors,Other Agencies
Southend-on-Sea City Council,http://www.opendatacommunities.org/id/unitary-authority/southend,ED Adults & Communities,Adult Social Care,1260,ACORN VILLAGES LTD,13/10/2023,12074354,"6,147.96",Private Contractors,Other Agencies
